Body,Body Name,Date,Transaction Number,Invoice Number,Amount,Supplier Name,Supplier ID ,VAT Registration Number ,Expense Area,Expense Type,Expense Code,Purchase Order
http://statistics.data.gov.uk/id/local-authority/29UP,Tonbridge & Malling Borough Council,3/2/2022,0011043968/3,11043968, 250.00,Kingfisher Media Ltd,01761300,,Marketing,Tonbridge Castle Gatehouse,B40TG000044215,
http://statistics.data.gov.uk/id/local-authority/29UP,Tonbridge & Malling Borough Council,3/2/2022,0011043969/1,11043969, 1077.51,KH Recruitment Ltd,01738900,,Temporary Staff,Personnel Sals&Overheads,D01ABDB0311300,
http://statistics.data.gov.uk/id/local-authority/29UP,Tonbridge & Malling Borough Council,3/2/2022,0011043970/1,11043970, 993.15,Venn Group Ltd,00914300,,Temporary Staff,Legal Sals&Overheads,D01ARDR0011300,
http://statistics.data.gov.uk/id/local-authority/29UP,Tonbridge & Malling Borough Council,3/2/2022,0011043971/1,11043971, 900.00,Cornerstones Barristers,01359100,,Other Planning Enq - Legal Cos,Legal Sals&Overheads,D01ARDR0044146,
http://statistics.data.gov.uk/id/local-authority/29UP,Tonbridge & Malling Borough Council,3/2/2022,0011043972/1,11043972, 2250.00,Francis Taylor Building,01688700,,Legal Fees,Legal Sals&Overheads,D01ARDR0044002,
http://statistics.data.gov.uk/id/local-authority/29UP,Tonbridge & Malling Borough Council,3/2/2022,0011043973/1,11043973, 1134.00,Venn Group Ltd,00914300,,Temporary Staff,Legal Sals&Overheads,D01ARDR0011300,
http://statistics.data.gov.uk/id/local-authority/29UP,Tonbridge & Malling Borough Council,3/2/2022,0011043974/1,11043974, 1072.00,Thomson Snell & Passmore,00101700,,Legal Fees,Legal Sals&Overheads,D01ARDR0044002,
http://statistics.data.gov.uk/id/local-authority/29UP,Tonbridge & Malling Borough Council,3/2/2022,0011043975/1,11043975, 3000.00,Coco and Bloom,01838200,,H&CG Fund Council Specific,Eco Dev & Reg Gen Bus Support,D52TD000047027,
http://statistics.data.gov.uk/id/local-authority/29UP,Tonbridge & Malling Borough Council,3/2/2022,0012008266/1,12008266, 726.60,Idox Software Ltd,00962400,,Software Hire & Support,Information Technology,D27KD000044059,410032131
http://statistics.data.gov.uk/id/local-authority/29UP,Tonbridge & Malling Borough Council,3/2/2022,0012008266/10,12008266, 9066.49,Idox Software Ltd,00962400,,Software Hire & Support,Information Technology,D27KD000044059,410032131
http://statistics.data.gov.uk/id/local-authority/29UP,Tonbridge & Malling Borough Council,3/2/2022,0012008266/11,12008266, 556.72,Idox Software Ltd,00962400,,Software Hire & Support,Information Technology,D27KD000044059,410032131
http://statistics.data.gov.uk/id/local-authority/29UP,Tonbridge & Malling Borough Council,3/2/2022,0012008266/12,12008266, 902.43,Idox Software Ltd,00962400,,Software Hire & Support,Information Technology,D27KD000044059,410032131
http://statistics.data.gov.uk/id/local-authority/29UP,Tonbridge & Malling Borough Council,3/2/2022,0012008266/2,12008266, 29460.50,Idox Software Ltd,00962400,,Software Hire & Support,Information Technology,D27KD000044059,410032131
http://statistics.data.gov.uk/id/local-authority/29UP,Tonbridge & Malling Borough Council,3/2/2022,0012008266/3,12008266, 1211.00,Idox Software Ltd,00962400,,Software Hire & Support,Information Technology,D27KD000044059,410032131
http://statistics.data.gov.uk/id/local-authority/29UP,Tonbridge & Malling Borough Council,3/2/2022,0012008266/4,12008266, 25154.37,Idox Software Ltd,00962400,,Software Hire & Support,Information Technology,D27KD000044059,410032131
http://statistics.data.gov.uk/id/local-authority/29UP,Tonbridge & Malling Borough Council,3/2/2022,0012008266/5,12008266, 3425.16,Idox Software Ltd,00962400,,Software Hire & Support,Information Technology,D27KD000044059,410032131
http://statistics.data.gov.uk/id/local-authority/29UP,Tonbridge & Malling Borough Council,3/2/2022,0012008266/6,12008266, 3730.18,Idox Software Ltd,00962400,,Software Hire & Support,Information Technology,D27KD000044059,410032131
http://statistics.data.gov.uk/id/local-authority/29UP,Tonbridge & Malling Borough Council,3/2/2022,0012008266/7,12008266, 927.93,Idox Software Ltd,00962400,,Software Hire & Support,Information Technology,D27KD000044059,410032131
http://statistics.data.gov.uk/id/local-authority/29UP,Tonbridge & Malling Borough Council,3/2/2022,0012008266/8,12008266, 16357.00,Idox Software Ltd,00962400,,Software Hire & Support,Information Technology,D27KD000044059,410032131
http://statistics.data.gov.uk/id/local-authority/29UP,Tonbridge & Malling Borough Council,3/2/2022,0012008266/9,12008266, 2092.74,Idox Software Ltd,00962400,,Software Hire & Support,Information Technology,D27KD000044059,410032131
http://statistics.data.gov.uk/id/local-authority/29UP,Tonbridge & Malling Borough Council,3/2/2022,0012008271/1,12008271, 44940.22,NEC Software Solutions UK Ltd,01073900,202159745,Software Hire & Support,Information Technology,D27KD000044059,410032141
http://statistics.data.gov.uk/id/local-authority/29UP,Tonbridge & Malling Borough Council,3/2/2022,0012008272/1,12008272, 1604.67,NEC Software Solutions UK Ltd,01073900,202159745,Software Hire & Support,Information Technology,D27KD000044059,410032144
http://statistics.data.gov.uk/id/local-authority/29UP,Tonbridge & Malling Borough Council,3/2/2022,0012008273/1,12008273, 300.00,TwoFold Limited,00518000,,Maintenance - Ancillary Equip,Information Technology,D27KD000040137,410032132
http://statistics.data.gov.uk/id/local-authority/29UP,Tonbridge & Malling Borough Council,3/2/2022,0012008273/2,12008273, 300.00,TwoFold Limited,00518000,,Maintenance - Ancillary Equip,Information Technology,D27KD000040137,410032132
http://statistics.data.gov.uk/id/local-authority/29UP,Tonbridge & Malling Borough Council,3/2/2022,0012008274/1,12008274, 15.10,Esendex Limited,01008900,,Leased Lines & Modems,Information Technology,D27KD000045011,
http://statistics.data.gov.uk/id/local-authority/29UP,Tonbridge & Malling Borough Council,3/2/2022,0021037779/1,21037779, 81.00,Theatrix Arts,01712400,,Events Support,Events Development,B41TJ000044041,210056683
http://statistics.data.gov.uk/id/local-authority/29UP,Tonbridge & Malling Borough Council,3/2/2022,0021037780/1,21037780, 6000.00,LLoyd Bore Ltd,01818500,,Professional Fees,Open Spaces & Amenity Areas,B22LE000044001,210056536
http://statistics.data.gov.uk/id/local-authority/29UP,Tonbridge & Malling Borough Council,3/2/2022,0022026328/1,22026328, 2993.85,Kent County Council,00322500,,Energy Efficiency Initiatives,Private Sector Housing Renewal,C03BD000044232,220003195
http://statistics.data.gov.uk/id/local-authority/29UP,Tonbridge & Malling Borough Council,3/2/2022,0022026329/1,22026329, 750.00,Ramblers Wellbeing Walks,01798300,,Healthy Living Initiatives,Public Health - Healthy Living,H40SY000048145,220003100
http://statistics.data.gov.uk/id/local-authority/29UP,Tonbridge & Malling Borough Council,3/2/2022,0022026329/2,22026329, 200.00,Ramblers Wellbeing Walks,01798300,,Healthy Living Initiatives,Public Health - Healthy Living,H40SY000048145,220003100
http://statistics.data.gov.uk/id/local-authority/29UP,Tonbridge & Malling Borough Council,3/2/2022,0022026330/10,22026330, 66.06,Urbaser LTD,01718800,,Maintenance of Grounds,Leybourne Lakes Country Park,B22LK000020402,
http://statistics.data.gov.uk/id/local-authority/29UP,Tonbridge & Malling Borough Council,3/2/2022,0022026330/11,22026330, 23.91,Urbaser LTD,01718800,,Dog Bin Emptying,Leybourne Lakes Country Park,B22LK000044012,
http://statistics.data.gov.uk/id/local-authority/29UP,Tonbridge & Malling Borough Council,3/2/2022,0022026330/12,22026330, 55.10,Urbaser LTD,01718800,,Maintenance of Grounds,Grounds,D21FF000020402,
http://statistics.data.gov.uk/id/local-authority/29UP,Tonbridge & Malling Borough Council,3/2/2022,0022026330/13,22026330, 168.53,Urbaser LTD,01718800,,Maintenance of Grounds,Parking Off-Street,E10HA000020402,
http://statistics.data.gov.uk/id/local-authority/29UP,Tonbridge & Malling Borough Council,3/2/2022,0022026330/14,22026330, 4288.11,Urbaser LTD,01718800,,Maintenance of Grounds,Parking Off-Street,E10HAE00120402,
http://statistics.data.gov.uk/id/local-authority/29UP,Tonbridge & Malling Borough Council,3/2/2022,0022026330/15,22026330, 461.92,Urbaser LTD,01718800,,Maintenance of Grounds,Parking Off-Street,E10HAE00220402,
http://statistics.data.gov.uk/id/local-authority/29UP,Tonbridge & Malling Borough Council,3/2/2022,0022026330/16,22026330, 288.97,Urbaser LTD,01718800,,Maintenance of Grounds,Parking Off-Street,E10HAE00320402,
http://statistics.data.gov.uk/id/local-authority/29UP,Tonbridge & Malling Borough Council,3/2/2022,0022026330/17,22026330, 1511.29,Urbaser LTD,01718800,,Maintenance of Grounds,Parking Off-Street,E10HAE00420402,
http://statistics.data.gov.uk/id/local-authority/29UP,Tonbridge & Malling Borough Council,3/2/2022,0022026330/18,22026330, 251.14,Urbaser LTD,01718800,,Maintenance of Grounds,Parking Off-Street,E10HAE00520402,
http://statistics.data.gov.uk/id/local-authority/29UP,Tonbridge & Malling Borough Council,3/2/2022,0022026330/19,22026330, 936.67,Urbaser LTD,01718800,,Maintenance of Grounds,Parking Off-Street,E10HAE00620402,
http://statistics.data.gov.uk/id/local-authority/29UP,Tonbridge & Malling Borough Council,3/2/2022,0022026330/20,22026330, 7.90,Urbaser LTD,01718800,,Maintenance of Grounds,Parking Off-Street,E10HAE00820402,
http://statistics.data.gov.uk/id/local-authority/29UP,Tonbridge & Malling Borough Council,3/2/2022,0022026330/21,22026330, 7.80,Urbaser LTD,01718800,,Maintenance of Grounds,Parking Off-Street,E10HAE00920402,
http://statistics.data.gov.uk/id/local-authority/29UP,Tonbridge & Malling Borough Council,3/2/2022,0022026330/22,22026330, 18.51,Urbaser LTD,01718800,,Maintenance of Grounds,Parking Off-Street,E10HAE01020402,
http://statistics.data.gov.uk/id/local-authority/29UP,Tonbridge & Malling Borough Council,3/2/2022,0022026330/23,22026330, 87.95,Urbaser LTD,01718800,,Maintenance of Grounds,Parking Off-Street,E10HAE01120402,
http://statistics.data.gov.uk/id/local-authority/29UP,Tonbridge & Malling Borough Council,3/2/2022,0022026330/24,22026330, 55.34,Urbaser LTD,01718800,,Maintenance of Grounds,Parking Off-Street,E10HAE01220402,
http://statistics.data.gov.uk/id/local-authority/29UP,Tonbridge & Malling Borough Council,3/2/2022,0022026330/25,22026330, 1049.30,Urbaser LTD,01718800,,Maintenance of Grounds,Parking Off-Street,E10HAE01320402,
http://statistics.data.gov.uk/id/local-authority/29UP,Tonbridge & Malling Borough Council,3/2/2022,0022026330/26,22026330, 79.80,Urbaser LTD,01718800,,Maintenance of Grounds,Parking Off-Street,E10HAE01420402,
http://statistics.data.gov.uk/id/local-authority/29UP,Tonbridge & Malling Borough Council,3/2/2022,0022026330/27,22026330, 245.93,Urbaser LTD,01718800,,Maintenance of Grounds,Parking Off-Street,E10HAE01520402,
http://statistics.data.gov.uk/id/local-authority/29UP,Tonbridge & Malling Borough Council,3/2/2022,0022026330/28,22026330, 264.50,Urbaser LTD,01718800,,Maintenance of Grounds,Parking Off-Street,E10HAE01620402,
http://statistics.data.gov.uk/id/local-authority/29UP,Tonbridge & Malling Borough Council,3/2/2022,0022026330/29,22026330, 780.85,Urbaser LTD,01718800,,Maintenance of Grounds,Parking Off-Street,E10HAE01720402,
http://statistics.data.gov.uk/id/local-authority/29UP,Tonbridge & Malling Borough Council,3/2/2022,0022026330/3,22026330, 354.43,Urbaser LTD,01718800,,Maintenance of Grounds,Sports Grounds,B13ET000020402,
http://statistics.data.gov.uk/id/local-authority/29UP,Tonbridge & Malling Borough Council,3/2/2022,0022026330/30,22026330, 224.12,Urbaser LTD,01718800,,Maintenance of Grounds,Parking Off-Street,E10HAE01920402,
http://statistics.data.gov.uk/id/local-authority/29UP,Tonbridge & Malling Borough Council,3/2/2022,0022026330/31,22026330, 492.32,Urbaser LTD,01718800,,Maintenance of Grounds,Parking Off-Street,E10HAE02020402,
http://statistics.data.gov.uk/id/local-authority/29UP,Tonbridge & Malling Borough Council,3/2/2022,0022026330/32,22026330, 17.09,Urbaser LTD,01718800,,Maintenance of Grounds,Parking Off-Street,E10HAE02120402,
http://statistics.data.gov.uk/id/local-authority/29UP,Tonbridge & Malling Borough Council,3/2/2022,0022026330/33,22026330, 112.54,Urbaser LTD,01718800,,Maintenance of Grounds,Parking Off-Street,E10HAE02220402,
http://statistics.data.gov.uk/id/local-authority/29UP,Tonbridge & Malling Borough Council,3/2/2022,0022026330/34,22026330, 946.10,Urbaser LTD,01718800,,Maintenance of Grounds,Parking Off-Street,E10HAE02320402,
http://statistics.data.gov.uk/id/local-authority/29UP,Tonbridge & Malling Borough Council,3/2/2022,0022026330/35,22026330, 2.44,Urbaser LTD,01718800,,Maintenance of Grounds,Parking Off-Street,E10HAE02720402,
http://statistics.data.gov.uk/id/local-authority/29UP,Tonbridge & Malling Borough Council,3/2/2022,0022026330/36,22026330, 343.77,Urbaser LTD,01718800,,Maintenance of Grounds,Parking Off-Street,E10HAE02820402,
http://statistics.data.gov.uk/id/local-authority/29UP,Tonbridge & Malling Borough Council,3/2/2022,0022026330/37,22026330, 6.19,Urbaser LTD,01718800,,Maintenance of Grounds,Parking Off-Street,E10HAE02920402,
http://statistics.data.gov.uk/id/local-authority/29UP,Tonbridge & Malling Borough Council,3/2/2022,0022026330/38,22026330, 36.43,Urbaser LTD,01718800,,Maintenance of Grounds,Parking Off-Street,E10HAE03020402,
http://statistics.data.gov.uk/id/local-authority/29UP,Tonbridge & Malling Borough Council,3/2/2022,0022026330/39,22026330, 31.00,Urbaser LTD,01718800,,Maintenance of Grounds,Parking Off-Street,E10HAE03120402,
http://statistics.data.gov.uk/id/local-authority/29UP,Tonbridge & Malling Borough Council,3/2/2022,0022026330/4,22026330, 75.43,Urbaser LTD,01718800,,Maintenance of Grounds,Poult Wood Golf Centre,B21KE000020402,
http://statistics.data.gov.uk/id/local-authority/29UP,Tonbridge & Malling Borough Council,3/2/2022,0022026330/40,22026330, 657.32,Urbaser LTD,01718800,,Maintenance of Grounds,Parking Off-Street,E10HAE04020402,
http://statistics.data.gov.uk/id/local-authority/29UP,Tonbridge & Malling Borough Council,3/2/2022,0022026330/41,22026330, 455.90,Urbaser LTD,01718800,,Maintenance of Grounds,Parking Off-Street,E10HAE04220402,
http://statistics.data.gov.uk/id/local-authority/29UP,Tonbridge & Malling Borough Council,3/2/2022,0022026330/42,22026330, 1308.55,Urbaser LTD,01718800,,Maintenance of Grounds,Parking Off-Street,E10HAE04520402,
http://statistics.data.gov.uk/id/local-authority/29UP,Tonbridge & Malling Borough Council,3/2/2022,0022026330/43,22026330, 81773.77,Urbaser LTD,01718800,,Contract Payments,Refuse Collection,H20SA000054001,
http://statistics.data.gov.uk/id/local-authority/29UP,Tonbridge & Malling Borough Council,3/2/2022,0022026330/44,22026330, 865.70,Urbaser LTD,01718800,,Responsible Dog Ownership,Street Scene,H23SD000044050,
http://statistics.data.gov.uk/id/local-authority/29UP,Tonbridge & Malling Borough Council,3/2/2022,0022026330/45,22026330, 51717.72,Urbaser LTD,01718800,,Contract Payments,Street Scene,H23SD000054001,
http://statistics.data.gov.uk/id/local-authority/29UP,Tonbridge & Malling Borough Council,3/2/2022,0022026330/46,22026330, 819.23,Urbaser LTD,01718800,,General Maintenance,Dry Recycling,H34SR000020301,
http://statistics.data.gov.uk/id/local-authority/29UP,Tonbridge & Malling Borough Council,3/2/2022,0022026330/47,22026330, 73613.88,Urbaser LTD,01718800,,Contract Payments,Dry Recycling,H34SR000054001,
http://statistics.data.gov.uk/id/local-authority/29UP,Tonbridge & Malling Borough Council,3/2/2022,0022026330/48,22026330, 3803.64,Urbaser LTD,01718800,,Bring Sites Mixed Recycling,Dry Recycling,H34SR000054026,
http://statistics.data.gov.uk/id/local-authority/29UP,Tonbridge & Malling Borough Council,3/2/2022,0022026330/49,22026330, 28804.34,Urbaser LTD,01718800,,Contract Payments,Food Recycling,H34SS000054001,
http://statistics.data.gov.uk/id/local-authority/29UP,Tonbridge & Malling Borough Council,3/2/2022,0022026330/5,22026330, 31.13,Urbaser LTD,01718800,,Maintenance of Grounds,Haysden Country Park,B22LC000020402,
http://statistics.data.gov.uk/id/local-authority/29UP,Tonbridge & Malling Borough Council,3/2/2022,0022026330/50,22026330, 16367.16,Urbaser LTD,01718800,,Contract Payments,Garden Waste Recycling,H34ST000054001,
http://statistics.data.gov.uk/id/local-authority/29UP,Tonbridge & Malling Borough Council,3/2/2022,0022026330/6,22026330, 23.91,Urbaser LTD,01718800,,Dog Bin Emptying,Haysden Country Park,B22LC000044012,
http://statistics.data.gov.uk/id/local-authority/29UP,Tonbridge & Malling Borough Council,3/2/2022,0022026330/7,22026330, 677.66,Urbaser LTD,01718800,,Maintenance of Grounds,Open Spaces & Amenity Areas,B22LE000020402,
http://statistics.data.gov.uk/id/local-authority/29UP,Tonbridge & Malling Borough Council,3/2/2022,0022026330/8,22026330, 12.75,Urbaser LTD,01718800,,Dog Bin Emptying,Open Spaces & Amenity Areas,B22LE000044012,
http://statistics.data.gov.uk/id/local-authority/29UP,Tonbridge & Malling Borough Council,3/2/2022,0022026330/9,22026330, 22.00,Urbaser LTD,01718800,,Maintenance of Grounds,Countryside/Woodland Mgt,B22LG000020402,
http://statistics.data.gov.uk/id/local-authority/29UP,Tonbridge & Malling Borough Council,3/2/2022,0022026331/1,22026331, 50.84,Greenham Trading Ltd,00127900,745138823,Protective Clothing,Food & Safety - General,H35SW000042001,220003200
http://statistics.data.gov.uk/id/local-authority/29UP,Tonbridge & Malling Borough Council,3/2/2022,0022026332/3,22026332, 871.53,Tunbridge Wells Borough Council,00844600,,Partnership Receipts,Env Hlth & Hsg Sals&Overheads,D01AVDV0295008,
http://statistics.data.gov.uk/id/local-authority/29UP,Tonbridge & Malling Borough Council,3/2/2022,0022026333/3,22026333, 1224.00,The Oyster Partnership,01196400,,Temporary Staff,Env Hlth & Hsg Sals&Overheads,D01AVDV0711300,
http://statistics.data.gov.uk/id/local-authority/29UP,Tonbridge & Malling Borough Council,3/2/2022,0022026334/3,22026334, 1080.00,The Oyster Partnership,01196400,,Temporary Staff,Env Hlth & Hsg Sals&Overheads,D01AVDV0711300,
http://statistics.data.gov.uk/id/local-authority/29UP,Tonbridge & Malling Borough Council,3/2/2022,0022026335/1,22026335, 125.00,PSR Lighting & Signs Ltd,01265400,,Air Quality Monitoring,Environmental Protection,H32SN000054016,220003188
http://statistics.data.gov.uk/id/local-authority/29UP,Tonbridge & Malling Borough Council,3/2/2022,0022026337/3,22026337, 9.16,Amazon EU SARL,01738400,,Water Sampling,Environmental Protection,H32SN000054010,
http://statistics.data.gov.uk/id/local-authority/29UP,Tonbridge & Malling Borough Council,3/2/2022,0022026338/3,22026338, 41.66,Amazon EU SARL,01738400,,Water Sampling,Environmental Protection,H32SN000054010,
http://statistics.data.gov.uk/id/local-authority/29UP,Tonbridge & Malling Borough Council,3/2/2022,0022026339/1,22026339, 14.99,Amazon EU SARL,01738400,,Protective Clothing,Food & Safety - General,H35SW000042001,
http://statistics.data.gov.uk/id/local-authority/29UP,Tonbridge & Malling Borough Council,3/2/2022,0022026340/3,22026340, 3735.29,Ward Security LTD,01490000,,Dog Warden,Street Scene,H23SD000044100,
http://statistics.data.gov.uk/id/local-authority/29UP,Tonbridge & Malling Borough Council,3/2/2022,0022026341/3,22026341, 2181.82,Castle Water,01696500,,Water Charges (Metered),Public Conveniences,H22SCH01024001,
http://statistics.data.gov.uk/id/local-authority/29UP,Tonbridge & Malling Borough Council,3/2/2022,0022026342/3,22026342, 4645.60,Countrystyle Group,00835900,781981681,Plastic Recycling,Dry Recycling,H34SR000054019,
http://statistics.data.gov.uk/id/local-authority/29UP,Tonbridge & Malling Borough Council,3/2/2022,0022026343/1,22026343, 1810.36,Scottish Water Business Stream Ltd,01641100,,Sewerage Charges,Public Conveniences,H22SCH01024003,
http://statistics.data.gov.uk/id/local-authority/29UP,Tonbridge & Malling Borough Council,3/2/2022,0022026344/1,22026344, 3000.00,SWS Countryside & Landscape,01567200,,Contract Payments,LLCP Path Improvements,P05FH000009904,210056659
http://statistics.data.gov.uk/id/local-authority/29UP,Tonbridge & Malling Borough Council,3/2/2022,0022026345/1,22026345, 27.72,Alexandra Plc,00003000,,Protective Clothing,Food & Safety - General,H35SW000042001,220003196
http://statistics.data.gov.uk/id/local-authority/29UP,Tonbridge & Malling Borough Council,3/2/2022,0022026346/1,22026346, 3318.77,Town & Country Housing Group,01385400,,Rent Deposit / Rent in Advance,Homelessness,C01AAC84844093,
http://statistics.data.gov.uk/id/local-authority/29UP,Tonbridge & Malling Borough Council,3/2/2022,0022026347/1,22026347, 1221.00,G2 Recruitment Solutions,01786000,,Temporary Staff,Env Hlth & Hsg Sals&Overheads,D01AVDV0711300,
http://statistics.data.gov.uk/id/local-authority/29UP,Tonbridge & Malling Borough Council,3/2/2022,0022026348/1,22026348, 763.52,G2 Recruitment Solutions,01786000,,Temporary Staff,Env Hlth & Hsg Sals&Overheads,D01AVDV0711300,
http://statistics.data.gov.uk/id/local-authority/29UP,Tonbridge & Malling Borough Council,3/2/2022,0022026349/1,22026349, 4.50,SOCOTEC UK Limited,01284300,,Air Quality Monitoring,Environmental Protection,H32SN000054016,220003201
http://statistics.data.gov.uk/id/local-authority/29UP,Tonbridge & Malling Borough Council,3/2/2022,0022026350/1,22026350, 4.50,SOCOTEC UK Limited,01284300,,Air Quality Monitoring,Environmental Protection,H32SN000054016,220003193
http://statistics.data.gov.uk/id/local-authority/29UP,Tonbridge & Malling Borough Council,3/2/2022,0022026351/1,22026351, 1239.50,Vivid Resourcing,01773700,,Temporary Staff,Env Hlth & Hsg Sals&Overheads,D01AVDV0711300,
http://statistics.data.gov.uk/id/local-authority/29UP,Tonbridge & Malling Borough Council,3/2/2022,0022026352/1,22026352, 320.00,REDACTED PERSONAL DATA,01838500,,Other Expenses,Disabled Facilities Grant Mand,P03AC000009908,
http://statistics.data.gov.uk/id/local-authority/29UP,Tonbridge & Malling Borough Council,3/2/2022,0031018494/1,31018494, 500.00,Traffic Enforcement Centre,00604200,,Adjudication & Enforcement Ser,Parking Off-Street,E10HA000044230,
http://statistics.data.gov.uk/id/local-authority/29UP,Tonbridge & Malling Borough Council,3/2/2022,0031018494/2,31018494, 500.00,Traffic Enforcement Centre,00604200,,Adjudication & Enforcement Ser,Parking On-Street,E10HD000044230,
http://statistics.data.gov.uk/id/local-authority/29UP,Tonbridge & Malling Borough Council,3/2/2022,0031018496/3,31018496, 22.91,B&Q/Screwfix Direct(TradeUKAccount),00141300,,Purchases,Boro Highways & Emergency Oper,E01AA000040101,
http://statistics.data.gov.uk/id/local-authority/29UP,Tonbridge & Malling Borough Council,3/2/2022,0031018497/1,31018497, 224.91,KM Media Group Ltd,00053900,,Advertising General,Parking On-Street,E10HDZ99944216,310042781
http://statistics.data.gov.uk/id/local-authority/29UP,Tonbridge & Malling Borough Council,3/2/2022,0031018498/1,31018498, 224.91,KM Media Group Ltd,00053900,,Advertising General,Parking On-Street,E10HDZ99944216,310042781
http://statistics.data.gov.uk/id/local-authority/29UP,Tonbridge & Malling Borough Council,3/2/2022,0031018499/3,31018499, 500.00,Arnold & Court Ltd,01411300,,Sandbags,Civil Contingencies,D33NA000040128,
http://statistics.data.gov.uk/id/local-authority/29UP,Tonbridge & Malling Borough Council,3/2/2022,0031018500/3,31018500, 73.50,C. S. Mitchell LTD,01704800,,CCTV Monitoring Station,Security Services Management,E09GA000051020,
http://statistics.data.gov.uk/id/local-authority/29UP,Tonbridge & Malling Borough Council,3/2/2022,0031018501/1,31018501, 1106.00,DW Windsor,01651900,,Contract Payments,Car Park Imp Rolling Programme,P01AB000009904,310042759
http://statistics.data.gov.uk/id/local-authority/29UP,Tonbridge & Malling Borough Council,3/2/2022,0031018501/2,31018501, 126.98,DW Windsor,01651900,,Contract Payments,Car Park Imp Rolling Programme,P01AB000009904,310042759
http://statistics.data.gov.uk/id/local-authority/29UP,Tonbridge & Malling Borough Council,3/2/2022,0031018501/3,31018501, 126.98,DW Windsor,01651900,,Contract Payments,Car Park Imp Rolling Programme,P01AB000009904,310042759
http://statistics.data.gov.uk/id/local-authority/29UP,Tonbridge & Malling Borough Council,3/2/2022,0031018501/4,31018501, 84.11,DW Windsor,01651900,,Contract Payments,Car Park Imp Rolling Programme,P01AB000009904,310042759
http://statistics.data.gov.uk/id/local-authority/29UP,Tonbridge & Malling Borough Council,3/2/2022,0031018502/1,31018502, 2.95,The Safety Supply Company,01719500,,Purchases,Civil Contingencies,D33NA000040101,310042783
http://statistics.data.gov.uk/id/local-authority/29UP,Tonbridge & Malling Borough Council,3/2/2022,0031018502/2,31018502, 6.75,The Safety Supply Company,01719500,,Purchases,Civil Contingencies,D33NA000040101,310042783
http://statistics.data.gov.uk/id/local-authority/29UP,Tonbridge & Malling Borough Council,3/2/2022,0031018502/3,31018502, 7.15,The Safety Supply Company,01719500,,Purchases,Civil Contingencies,D33NA000040101,310042783
http://statistics.data.gov.uk/id/local-authority/29UP,Tonbridge & Malling Borough Council,3/2/2022,0031018502/4,31018502, 31.60,The Safety Supply Company,01719500,,Purchases,Civil Contingencies,D33NA000040101,310042783
http://statistics.data.gov.uk/id/local-authority/29UP,Tonbridge & Malling Borough Council,3/2/2022,0031018502/5,31018502, 41.60,The Safety Supply Company,01719500,,Purchases,Civil Contingencies,D33NA000040101,310042783
http://statistics.data.gov.uk/id/local-authority/29UP,Tonbridge & Malling Borough Council,3/2/2022,0031018503/1,31018503, 1255.00,Arnold & Court Ltd,01411300,,BRREP Response - General,Land Review,M15MAP50001997,
http://statistics.data.gov.uk/id/local-authority/29UP,Tonbridge & Malling Borough Council,3/2/2022,0031018504/1,31018504, 85.71,Arnold & Court Ltd,01411300,,Maintenance of Grounds,Churchyards St Peter & St Paul,B28MX000020402,
http://statistics.data.gov.uk/id/local-authority/29UP,Tonbridge & Malling Borough Council,3/2/2022,0031018504/2,31018504, 85.71,Arnold & Court Ltd,01411300,,Maintenance of Grounds,Churchyards St Stephens,B28MY000020402,
http://statistics.data.gov.uk/id/local-authority/29UP,Tonbridge & Malling Borough Council,3/2/2022,0031018504/3,31018504, 114.28,Arnold & Court Ltd,01411300,,Winter Maintenance,Parking Off-Street,E10HA000020701,
http://statistics.data.gov.uk/id/local-authority/29UP,Tonbridge & Malling Borough Council,3/2/2022,0031018504/4,31018504, 134.30,Arnold & Court Ltd,01411300,,Purchases,Parking On-Street,E10HD000040101,
http://statistics.data.gov.uk/id/local-authority/29UP,Tonbridge & Malling Borough Council,3/2/2022,0031018505/1,31018505, 414.00,Arnold & Court Ltd,01411300,,Premises Repairs & Maintenance,Parking Off-Street,E10HA000020601,310042777
http://statistics.data.gov.uk/id/local-authority/29UP,Tonbridge & Malling Borough Council,3/2/2022,0031018506/1,31018506, 424.00,Arnold & Court Ltd,01411300,,Premises Repairs & Maintenance,Parking Off-Street,E10HA000020601,310042777
http://statistics.data.gov.uk/id/local-authority/29UP,Tonbridge & Malling Borough Council,3/2/2022,0031018507/1,31018507, 400.00,Arnold & Court Ltd,01411300,,Contract Payments,Boro Drainage & Land Drainage,E20MA000054001,310042725
http://statistics.data.gov.uk/id/local-authority/29UP,Tonbridge & Malling Borough Council,3/2/2022,0031018508/1,31018508, 7780.00,Arnold & Court Ltd,01411300,,Re-opening High Streets,Eco Dev & Reg Gen Bus Support,D52TDCV1948076,310042726
http://statistics.data.gov.uk/id/local-authority/29UP,Tonbridge & Malling Borough Council,3/2/2022,0031018509/1,31018509, 2930.00,Forge Engineering,00137700,,Re-opening High Streets,Eco Dev & Reg Gen Bus Support,D52TDCV1948076,310042780
http://statistics.data.gov.uk/id/local-authority/29UP,Tonbridge & Malling Borough Council,3/2/2022,0031018512/1,31018512, 13050.00,EE Olley & Sons,01830300,,Contract Payments,TRSG Riverside Rivetment,P05DD000009904,310042773
http://statistics.data.gov.uk/id/local-authority/29UP,Tonbridge & Malling Borough Council,3/2/2022,0031018512/2,31018512, 4900.00,EE Olley & Sons,01830300,,Contract Payments,TRSG Riverside Rivetment,P05DD000009904,310042773
http://statistics.data.gov.uk/id/local-authority/29UP,Tonbridge & Malling Borough Council,3/2/2022,0032009417/1,32009417, 25.98,KCS,00054200,,Stationery,Planning Sals&Overheads,D01AJDJ0143003,320003389
http://statistics.data.gov.uk/id/local-authority/29UP,Tonbridge & Malling Borough Council,3/2/2022,0032009417/2,32009417, 2.95,KCS,00054200,,Stationery,Planning Sals&Overheads,D01AJDJ0143003,320003389
http://statistics.data.gov.uk/id/local-authority/29UP,Tonbridge & Malling Borough Council,3/2/2022,0032009418/1,32009418, 171.36,KM Media Group Ltd,00053900,,Advertising General,Development Management,A01ABZ99944216,320003382
http://statistics.data.gov.uk/id/local-authority/29UP,Tonbridge & Malling Borough Council,3/2/2022,0032009419/1,32009419, 128.52,KM Media Group Ltd,00053900,,Advertising General,Development Management,A01ABZ99944216,310042793
http://statistics.data.gov.uk/id/local-authority/29UP,Tonbridge & Malling Borough Council,3/2/2022,0032009424/1,32009424, 300.00,East Sussex County Council,00846700,,AONB Management,Planning Policy,A01AF000044163,320003362
http://statistics.data.gov.uk/id/local-authority/29UP,Tonbridge & Malling Borough Council,3/2/2022,0032009425/1,32009425, 3212.75,G2 Recruitment Solutions,01786000,,Temporary Staff,Planning Sals&Overheads,D01AJDJ0111300,
http://statistics.data.gov.uk/id/local-authority/29UP,Tonbridge & Malling Borough Council,3/2/2022,0032009426/1,32009426, 8450.00,Mott MacDonald,01661000,,H&CG Fund Council Specific,Eco Dev & Reg Gen Bus Support,D52TD000047027,320003318
http://statistics.data.gov.uk/id/local-authority/29UP,Tonbridge & Malling Borough Council,3/2/2022,0032009427/1,32009427, 1665.00,The Oyster Partnership,01196400,,Temporary Staff,Planning Sals&Overheads,D01AJDJ0111300,
http://statistics.data.gov.uk/id/local-authority/29UP,Tonbridge & Malling Borough Council,3/2/2022,0032009428/1,32009428, 1520.00,The Oyster Partnership,01196400,,Temporary Staff,Planning Sals&Overheads,D01AJDJ0111300,
http://statistics.data.gov.uk/id/local-authority/29UP,Tonbridge & Malling Borough Council,3/2/2022,0041034025/3,41034025, 495.00,KH Recruitment Ltd,01738900,,Temporary Staff,Finance Sals&Overheads,D01AFDF1111300,
http://statistics.data.gov.uk/id/local-authority/29UP,Tonbridge & Malling Borough Council,3/2/2022,0041034026/3,41034026, 1413.00,The Oyster Partnership,01196400,,Temporary Staff,Finance Sals&Overheads,D01AFDF1111300,
http://statistics.data.gov.uk/id/local-authority/29UP,Tonbridge & Malling Borough Council,3/2/2022,0041034027/1,41034027, 28051.17,Cushman & Wakefield,01772600,,Pay to Principal - Angel East,Parking Off-Street,E10HAE00144196,
http://statistics.data.gov.uk/id/local-authority/29UP,Tonbridge & Malling Borough Council,3/2/2022,0041034028/3,41034028, 925.00,Morgan Hunt UK Ltd,01086900,,Temporary Staff,Finance Sals&Overheads,D01AFDF1111300,
http://statistics.data.gov.uk/id/local-authority/29UP,Tonbridge & Malling Borough Council,3/2/2022,0041034029/3,41034029, 980.50,Morgan Hunt UK Ltd,01086900,,Temporary Staff,Finance Sals&Overheads,D01AFDF1111300,
http://statistics.data.gov.uk/id/local-authority/29UP,Tonbridge & Malling Borough Council,3/2/2022,0041034030/3,41034030, 2142.35,Maidstone Borough Council,01173700,,Bailiffs Commission,Local Revenue & NNDR Collect,D41QA000044075,
http://statistics.data.gov.uk/id/local-authority/29UP,Tonbridge & Malling Borough Council,3/2/2022,0041034031/3,41034031, 988.84,Maidstone Borough Council,01173700,,Bailiffs Commission,Local Revenue & NNDR Collect,D41QA000044075,
http://statistics.data.gov.uk/id/local-authority/29UP,Tonbridge & Malling Borough Council,3/2/2022,0041034032/3,41034032, 399.82,Rundle & Co Ltd,00087200,,Bailiffs Commission,Local Revenue & NNDR Collect,D41QA000044075,
http://statistics.data.gov.uk/id/local-authority/29UP,Tonbridge & Malling Borough Council,3/2/2022,0041034033/3,41034033, 951.01,Rundle & Co Ltd,00087200,,Bailiffs Commission,Local Revenue & NNDR Collect,D41QA000044075,
http://statistics.data.gov.uk/id/local-authority/29UP,Tonbridge & Malling Borough Council,3/2/2022,0041034034/1,41034034, 4734.00,Grant Thornton UK LLP,01407400,,Audit Fees,Public Accountability,D29LR000044223,410032065
http://statistics.data.gov.uk/id/local-authority/29UP,Tonbridge & Malling Borough Council,3/2/2022,0041034035/1,41034035, 20.00,Computershare Voucher Services,01212600,,Childcare Scheme,Finance Sals&Overheads,D01AFDF0911136,
http://statistics.data.gov.uk/id/local-authority/29UP,Tonbridge & Malling Borough Council,3/2/2022,0041034035/2,41034035, 0.80,Computershare Voucher Services,01212600,,National Insurance,Finance Sals&Overheads,D01AFDF0911191,
http://statistics.data.gov.uk/id/local-authority/29UP,Tonbridge & Malling Borough Council,3/2/2022,0041034035/3,41034035, 50.00,Computershare Voucher Services,01212600,,Childcare Scheme,Legal Sals&Overheads,D01ARDR0011136,
http://statistics.data.gov.uk/id/local-authority/29UP,Tonbridge & Malling Borough Council,3/2/2022,0041034035/4,41034035, 2.00,Computershare Voucher Services,01212600,,National Insurance,Legal Sals&Overheads,D01ARDR0011191,
http://statistics.data.gov.uk/id/local-authority/29UP,Tonbridge & Malling Borough Council,3/2/2022,0041034035/5,41034035, 20.00,Computershare Voucher Services,01212600,,Childcare Scheme,Env Hlth & Hsg Sals&Overheads,D01AVDV0211136,
http://statistics.data.gov.uk/id/local-authority/29UP,Tonbridge & Malling Borough Council,3/2/2022,0041034035/6,41034035, 0.80,Computershare Voucher Services,01212600,,National Insurance,Env Hlth & Hsg Sals&Overheads,D01AVDV0211191,
http://statistics.data.gov.uk/id/local-authority/29UP,Tonbridge & Malling Borough Council,3/2/2022,0041034035/7,41034035, 243.00,Computershare Voucher Services,01212600,,Childcare Scheme,Env Hlth & Hsg Sals&Overheads,D01AVDV0711136,
http://statistics.data.gov.uk/id/local-authority/29UP,Tonbridge & Malling Borough Council,3/2/2022,0041034035/8,41034035, 9.72,Computershare Voucher Services,01212600,,National Insurance,Env Hlth & Hsg Sals&Overheads,D01AVDV0711191,
http://statistics.data.gov.uk/id/local-authority/29UP,Tonbridge & Malling Borough Council,3/2/2022,0051008663/1,51008663, 3580.00,Ocean Media Group Ltd,01732900,,Recruitment Advertising,Recruitment Expenses,D10DADV0713110,510010551
http://statistics.data.gov.uk/id/local-authority/29UP,Tonbridge & Malling Borough Council,3/3/2022,0041034037/11,41034037, 19.82,National Westminster Bank Plc,00894500,,Software Hire & Support,Information Technology,D27KD000044059,
http://statistics.data.gov.uk/id/local-authority/29UP,Tonbridge & Malling Borough Council,3/3/2022,0041034037/12,41034037, 27.25,National Westminster Bank Plc,00894500,,Delivery Expenses,Information Technology,D27KD000044069,
http://statistics.data.gov.uk/id/local-authority/29UP,Tonbridge & Malling Borough Council,3/3/2022,0041034037/13,41034037, 7.27,National Westminster Bank Plc,00894500,,Delivery Expenses,Information Technology,D27KD000044069,
http://statistics.data.gov.uk/id/local-authority/29UP,Tonbridge & Malling Borough Council,3/3/2022,0041034037/14,41034037, 5.70,National Westminster Bank Plc,00894500,,Delivery Expenses,Information Technology,D27KD000044069,
http://statistics.data.gov.uk/id/local-authority/29UP,Tonbridge & Malling Borough Council,3/3/2022,0041034037/15,41034037, 150.00,National Westminster Bank Plc,00894500,,Legal Fees,Local Revenue & NNDR Collect,D41QA000044002,
http://statistics.data.gov.uk/id/local-authority/29UP,Tonbridge & Malling Borough Council,3/3/2022,0041034037/16,41034037, 57.32,National Westminster Bank Plc,00894500,,Sales,TIC Stock Account,K18AX000002002,
http://statistics.data.gov.uk/id/local-authority/29UP,Tonbridge & Malling Borough Council,3/4/2022,0041034048/1,41034048, 2209.97,WorldPay ,01568000,,Credit Card Commission,Banking Arrangements,D43QK000044082,
http://statistics.data.gov.uk/id/local-authority/29UP,Tonbridge & Malling Borough Council,3/4/2022,0041034048/2,41034048, 194.25,WorldPay ,01568000,,Credit Card Commission,Banking Arrangements,D43QK000044082,
http://statistics.data.gov.uk/id/local-authority/29UP,Tonbridge & Malling Borough Council,3/4/2022,0041034049/1,41034049, 2271.24,WorldPay ,01568000,,Credit Card Commission,Banking Arrangements,D43QK000044082,
http://statistics.data.gov.uk/id/local-authority/29UP,Tonbridge & Malling Borough Council,3/4/2022,0041034049/2,41034049, 219.76,WorldPay ,01568000,,Credit Card Commission,Banking Arrangements,D43QK000044082,
http://statistics.data.gov.uk/id/local-authority/29UP,Tonbridge & Malling Borough Council,3/4/2022,0041034050/1,41034050, 170.85,WorldPay ,01568000,,Credit Card Commission,Banking Arrangements,D43QK000044082,
http://statistics.data.gov.uk/id/local-authority/29UP,Tonbridge & Malling Borough Council,3/4/2022,0041034050/2,41034050, 2266.69,WorldPay ,01568000,,Credit Card Commission,Banking Arrangements,D43QK000044082,
http://statistics.data.gov.uk/id/local-authority/29UP,Tonbridge & Malling Borough Council,3/4/2022,0041034051/1,41034051, 1903.97,WorldPay ,01568000,,Credit Card Commission,Banking Arrangements,D43QK000044082,
http://statistics.data.gov.uk/id/local-authority/29UP,Tonbridge & Malling Borough Council,3/4/2022,0041034051/2,41034051, 154.87,WorldPay ,01568000,,Credit Card Commission,Banking Arrangements,D43QK000044082,
http://statistics.data.gov.uk/id/local-authority/29UP,Tonbridge & Malling Borough Council,3/7/2022,0041034053/2,41034053, 12009091.00,Department for Communities & Local Govt,01601500,,Payment re Prev Yrs Cred Acc,Sundry Creditors Finance,J80TF000001101,
http://statistics.data.gov.uk/id/local-authority/29UP,Tonbridge & Malling Borough Council,3/9/2022,0011042950/1,11042950, 147.51,Chubb Fire & Security Ltd,00115400,174605362,BRREP Servicing-IntruderAlarm,Leis Man Poult Wood Golf Centr,M15HEP20001939,
http://statistics.data.gov.uk/id/local-authority/29UP,Tonbridge & Malling Borough Council,3/9/2022,0011043976/1,11043976, 233.20,The Knight Shop International,01738800,,Purchases,TIC Stock Account,K18AX000001002,110069426
http://statistics.data.gov.uk/id/local-authority/29UP,Tonbridge & Malling Borough Council,3/9/2022,0011043976/2,11043976, 51.00,The Knight Shop International,01738800,,Purchases,TIC Stock Account,K18AX000001002,110069426
http://statistics.data.gov.uk/id/local-authority/29UP,Tonbridge & Malling Borough Council,3/9/2022,0011043976/3,11043976, 78.00,The Knight Shop International,01738800,,Purchases,TIC Stock Account,K18AX000001002,110069426
http://statistics.data.gov.uk/id/local-authority/29UP,Tonbridge & Malling Borough Council,3/9/2022,0011043976/4,11043976, 308.50,The Knight Shop International,01738800,,Purchases,TIC Stock Account,K18AX000001002,110069426
http://statistics.data.gov.uk/id/local-authority/29UP,Tonbridge & Malling Borough Council,3/9/2022,0011043976/5,11043976, 72.10,The Knight Shop International,01738800,,Purchases,TIC Stock Account,K18AX000001002,110069426
http://statistics.data.gov.uk/id/local-authority/29UP,Tonbridge & Malling Borough Council,3/9/2022,0011043977/1,11043977, 1560.00,G C Industrial Heating Services,00578100,,BRREP Servicing - boilers,Tonbridge Swimming Pool,M15HBP20001929,110069388
http://statistics.data.gov.uk/id/local-authority/29UP,Tonbridge & Malling Borough Council,3/9/2022,0011043978/1,11043978, 280.00,Automated Limited,00007000,,BRREP IEE Testing,Tonbridge Swimming Pool,M15HBP30001991,110069423
http://statistics.data.gov.uk/id/local-authority/29UP,Tonbridge & Malling Borough Council,3/9/2022,0011043978/2,11043978, 280.00,Automated Limited,00007000,,BRREP IEE Testing,Tonbridge Swimming Pool,M15HBP30001991,110069423
http://statistics.data.gov.uk/id/local-authority/29UP,Tonbridge & Malling Borough Council,3/9/2022,0011043978/3,11043978, 280.00,Automated Limited,00007000,,BRREP IEE Testing,Tonbridge Swimming Pool,M15HBP30001991,110069423
http://statistics.data.gov.uk/id/local-authority/29UP,Tonbridge & Malling Borough Council,3/9/2022,0011043978/4,11043978, 280.00,Automated Limited,00007000,,BRREP IEE Testing,Tonbridge Swimming Pool,M15HBP30001991,110069423
http://statistics.data.gov.uk/id/local-authority/29UP,Tonbridge & Malling Borough Council,3/9/2022,0011043979/1,11043979, 891.00,H20 Servicing Limited,00888800,808041553,BRREP Servicing - pool plant,Larkfield Leisure Centre,M15HDP20001910,110069430
http://statistics.data.gov.uk/id/local-authority/29UP,Tonbridge & Malling Borough Council,3/9/2022,0011043980/1,11043980, 670.00,TMD Services,01719600,,BRREP Slipstream flume ovrhaul,Larkfield Leisure Centre,M15HDP20001954,110069435
http://statistics.data.gov.uk/id/local-authority/29UP,Tonbridge & Malling Borough Council,3/9/2022,0011043981/1,11043981, 707.50,K T Fire Protection Ltd,00057000,,BRREP Servicing - FireAlarmSys,Larkfield Leisure Centre,M15HDP20001937,110069417
http://statistics.data.gov.uk/id/local-authority/29UP,Tonbridge & Malling Borough Council,3/9/2022,0011043982/1,11043982, 3699.00,Coolburn Air Conditioning Ltd,01137900,,BRREP Servicing - air handling,Larkfield Leisure Centre,M15HDP20001936,110069391
http://statistics.data.gov.uk/id/local-authority/29UP,Tonbridge & Malling Borough Council,3/9/2022,0011043983/1,11043983, 1965.00,SECOM plc,01084600,445838322,BRREP Servicing-roller shutter,Larkfield Leisure Centre,M15HDP20001928,110069398
http://statistics.data.gov.uk/id/local-authority/29UP,Tonbridge & Malling Borough Council,3/9/2022,0011043984/1,11043984, 181.00,Loxton Installations Ltd,01278800,,BRREP IEE Testing,Larkfield Leisure Centre,M15HDP30001991,110068905
http://statistics.data.gov.uk/id/local-authority/29UP,Tonbridge & Malling Borough Council,3/9/2022,0011043985/1,11043985, 596.00,Loxton Installations Ltd,01278800,,BRREP Response - General,Leybourne Lakes Country Park,M15HLP50001997,110069424
http://statistics.data.gov.uk/id/local-authority/29UP,Tonbridge & Malling Borough Council,3/9/2022,0011043986/1,11043986, 784.00,Loxton Installations Ltd,01278800,,BRREP Response - General,Leybourne Lakes Country Park,M15HLP50001997,110069425
http://statistics.data.gov.uk/id/local-authority/29UP,Tonbridge & Malling Borough Council,3/9/2022,0011043987/1,11043987, 1112.00,Loxton Installations Ltd,01278800,,BRREP Serv Internal Lighting,Larkfield Leisure Centre,M15HDP20001957,110069385
http://statistics.data.gov.uk/id/local-authority/29UP,Tonbridge & Malling Borough Council,3/9/2022,0011043988/1,11043988, 1164.02,KH Recruitment Ltd,01738900,,Temporary Staff,Personnel Sals&Overheads,D01ABDB0311300,
http://statistics.data.gov.uk/id/local-authority/29UP,Tonbridge & Malling Borough Council,3/9/2022,0011043989/1,11043989, 996.00,Thomson Snell & Passmore,00101700,,Legal Fees,Legal Sals&Overheads,D01ARDR0044002,
http://statistics.data.gov.uk/id/local-authority/29UP,Tonbridge & Malling Borough Council,3/9/2022,0011043990/1,11043990, 682.00,Thomson Snell & Passmore,00101700,,Legal Fees,Legal Sals&Overheads,D01ARDR0044002,
http://statistics.data.gov.uk/id/local-authority/29UP,Tonbridge & Malling Borough Council,3/9/2022,0011043991/1,11043991, 310.00,Thomson Snell & Passmore,00101700,,Legal Fees,Legal Sals&Overheads,D01ARDR0044002,
http://statistics.data.gov.uk/id/local-authority/29UP,Tonbridge & Malling Borough Council,3/9/2022,0011043992/1,11043992, 496.00,Thomson Snell & Passmore,00101700,,Legal Fees,Legal Sals&Overheads,D01ARDR0044002,
http://statistics.data.gov.uk/id/local-authority/29UP,Tonbridge & Malling Borough Council,3/9/2022,0011043993/1,11043993, 775.00,Thomson Snell & Passmore,00101700,,Legal Fees,Legal Sals&Overheads,D01ARDR0044002,
http://statistics.data.gov.uk/id/local-authority/29UP,Tonbridge & Malling Borough Council,3/9/2022,0011043994/1,11043994, 744.00,Thomson Snell & Passmore,00101700,,Legal Fees,Legal Sals&Overheads,D01ARDR0044002,
http://statistics.data.gov.uk/id/local-authority/29UP,Tonbridge & Malling Borough Council,3/9/2022,0011043995/1,11043995, 558.00,Thomson Snell & Passmore,00101700,,Legal Fees,Legal Sals&Overheads,D01ARDR0044002,
http://statistics.data.gov.uk/id/local-authority/29UP,Tonbridge & Malling Borough Council,3/9/2022,0011043996/1,11043996, 1000.00,Aylesford Parish Council,00007300,,Re-opening High Streets,Eco Dev & Reg Gen Bus Support,D52TDCV1948076,
http://statistics.data.gov.uk/id/local-authority/29UP,Tonbridge & Malling Borough Council,3/9/2022,0011043997/1,11043997, 780.00,G C Industrial Heating Services,00578100,,BRREP Response - General,Larkfield Leisure Centre,M15HDP50001997,
http://statistics.data.gov.uk/id/local-authority/29UP,Tonbridge & Malling Borough Council,3/9/2022,0011043998/1,11043998, 595.40,Castle Water,01696500,,Water Charges (Metered),Buildings,D21FEDD6024001,
http://statistics.data.gov.uk/id/local-authority/29UP,Tonbridge & Malling Borough Council,3/9/2022,0011043999/1,11043999, 1661.90,Royal Mail,00086200,,Purchases,Mailsort Stock Account,K37BR000001002,
http://statistics.data.gov.uk/id/local-authority/29UP,Tonbridge & Malling Borough Council,3/9/2022,0011043999/2,11043999, 18.84,Royal Mail,00086200,,Purchases,Mailsort Stock Account,K37BR000001002,
http://statistics.data.gov.uk/id/local-authority/29UP,Tonbridge & Malling Borough Council,3/9/2022,0011044000/1,11044000, 155.88,TwoFold Limited,00518000,,Purchases,Printing,D22GA000040101,
http://statistics.data.gov.uk/id/local-authority/29UP,Tonbridge & Malling Borough Council,3/9/2022,0011044001/1,11044001, 371.75,Premier Paper Group,01421800,,Purchases - Paper,Printing,D22GA000040102,
http://statistics.data.gov.uk/id/local-authority/29UP,Tonbridge & Malling Borough Council,3/9/2022,0011044002/1,11044002, 2236.81,KCS,00054200,,Electricity,Buildings,D21FEDD6021002,
http://statistics.data.gov.uk/id/local-authority/29UP,Tonbridge & Malling Borough Council,3/9/2022,0011044003/1,11044003, 4798.31,KCS,00054200,,Electricity,Buildings,D21FEDD1021002,
http://statistics.data.gov.uk/id/local-authority/29UP,Tonbridge & Malling Borough Council,3/9/2022,0011044004/1,11044004, 3411.13,KCS,00054200,,Electricity,Buildings,D21FEDD5021002,
http://statistics.data.gov.uk/id/local-authority/29UP,Tonbridge & Malling Borough Council,3/9/2022,0011044005/1,11044005, 149.69,Castle Water,01696500,,Water Charges (Metered),Buildings,D21FEDD1024001,
http://statistics.data.gov.uk/id/local-authority/29UP,Tonbridge & Malling Borough Council,3/9/2022,0011044006/1,11044006, 127.20,Biffa Waste Services Ltd,01284500,,Trade Refuse Charges,Cleaning & Security,D21FD000044008,
http://statistics.data.gov.uk/id/local-authority/29UP,Tonbridge & Malling Borough Council,3/9/2022,0011044007/1,11044007, 37.16,Biffa Waste Services Ltd,01284500,,Trade Refuse Charges,Cleaning & Security,D21FD000044008,
http://statistics.data.gov.uk/id/local-authority/29UP,Tonbridge & Malling Borough Council,3/9/2022,0011044008/1,11044008, 37.16,Biffa Waste Services Ltd,01284500,,Trade Refuse Charges,Cleaning & Security,D21FD000044008,
http://statistics.data.gov.uk/id/local-authority/29UP,Tonbridge & Malling Borough Council,3/9/2022,0011044009/1,11044009, 160.80,Biffa Waste Services Ltd,01284500,,Trade Refuse Charges,Cleaning & Security,D21FD000044008,
http://statistics.data.gov.uk/id/local-authority/29UP,Tonbridge & Malling Borough Council,3/9/2022,0011044010/1,11044010, 64.96,Biffa Waste Services Ltd,01284500,,Trade Refuse Charges,Cleaning & Security,D21FD000044008,
http://statistics.data.gov.uk/id/local-authority/29UP,Tonbridge & Malling Borough Council,3/9/2022,0011044011/1,11044011, 268.00,Biffa Waste Services Ltd,01284500,,Trade Refuse Charges,Cleaning & Security,D21FD000044008,
http://statistics.data.gov.uk/id/local-authority/29UP,Tonbridge & Malling Borough Council,3/9/2022,0011044012/1,11044012, 250.00,G C Industrial Heating Services,00578100,,BRREP Response - General,Gibson Building West,M15KBP50001997,
http://statistics.data.gov.uk/id/local-authority/29UP,Tonbridge & Malling Borough Council,3/9/2022,0011044013/1,11044013, 320.00,G C Industrial Heating Services,00578100,,BRREP Response - General,Tonbridge Swimming Pool,M15HBP50001997,
http://statistics.data.gov.uk/id/local-authority/29UP,Tonbridge & Malling Borough Council,3/9/2022,0011044014/1,11044014, 150.00,G C Industrial Heating Services,00578100,,BRREP Response - General,Angel Centre,M15HAP50001997,
http://statistics.data.gov.uk/id/local-authority/29UP,Tonbridge & Malling Borough Council,3/9/2022,0011044015/1,11044015, 600.00,Disclosure & Barring Service,00865900,,Professional Fees,Licences - Fee Paying,H27SH000044001,
http://statistics.data.gov.uk/id/local-authority/29UP,Tonbridge & Malling Borough Council,3/9/2022,0011044016/1,11044016, 774.00,BML Building Services Ltd,01505000,,BRREP Window/door repairs,Larkfield Leisure Centre,M15HDP20001919,
http://statistics.data.gov.uk/id/local-authority/29UP,Tonbridge & Malling Borough Council,3/9/2022,0011044017/1,11044017, 589.00,Thomson Snell & Passmore,00101700,,Legal Fees,Legal Sals&Overheads,D01ARDR0044002,
http://statistics.data.gov.uk/id/local-authority/29UP,Tonbridge & Malling Borough Council,3/9/2022,0011044018/1,11044018, 574.00,BML Building Services Ltd,01505000,,BRREP Response - General,Tonbridge Castle / CAB,M15KFP50001997,
http://statistics.data.gov.uk/id/local-authority/29UP,Tonbridge & Malling Borough Council,3/9/2022,0011044019/1,11044019, 380.00,G C Industrial Heating Services,00578100,,BRREP Response - General,Larkfield Leisure Centre,M15HDP50001997,
http://statistics.data.gov.uk/id/local-authority/29UP,Tonbridge & Malling Borough Council,3/9/2022,0011044020/1,11044020, 480.00,G C Industrial Heating Services,00578100,,BRREP Response - General,Larkfield Leisure Centre,M15HDP50001997,
http://statistics.data.gov.uk/id/local-authority/29UP,Tonbridge & Malling Borough Council,3/9/2022,0011044021/1,11044021, 2509.38,Borough Green Parish Council,00011000,,Re-opening High Streets,Eco Dev & Reg Gen Bus Support,D52TDCV1948076,
http://statistics.data.gov.uk/id/local-authority/29UP,Tonbridge & Malling Borough Council,3/9/2022,0012008275/1,12008275, 102.12,3C Technology Limited,00997700,,Purchases,Information Technology,D27KD000040101,410032151
http://statistics.data.gov.uk/id/local-authority/29UP,Tonbridge & Malling Borough Council,3/9/2022,0012008276/1,12008276, 1350.00,ANSecurity,01837500,824906715,Consultancy Fees,Information Technology,D27KD000044011,410032145
http://statistics.data.gov.uk/id/local-authority/29UP,Tonbridge & Malling Borough Council,3/9/2022,0012008277/1,12008277, 18.29,Amazon EU SARL,01738400,,Purchases,Information Technology,D27KD000040101,410032149
http://statistics.data.gov.uk/id/local-authority/29UP,Tonbridge & Malling Borough Council,3/9/2022,0012008277/2,12008277, 8.29,Amazon EU SARL,01738400,,Delivery Expenses,Information Technology,D27KD000044069,410032149
http://statistics.data.gov.uk/id/local-authority/29UP,Tonbridge & Malling Borough Council,3/9/2022,0012008278/1,12008278, 9085.70,Bytes Software Services,01676900,823818226,Software Hire & Support,Information Technology,D27KD000044059,410032133
http://statistics.data.gov.uk/id/local-authority/29UP,Tonbridge & Malling Borough Council,3/9/2022,0012008278/2,12008278, 1366.72,Bytes Software Services,01676900,823818226,Software Hire & Support,Information Technology,D27KD000044059,410032133
http://statistics.data.gov.uk/id/local-authority/29UP,Tonbridge & Malling Borough Council,3/9/2022,0012008279/1,12008279, 853.20,Insight Direct (UK) Ltd,01092700,,Software Hire & Support,Information Technology,D27KD000044059,410032096
http://statistics.data.gov.uk/id/local-authority/29UP,Tonbridge & Malling Borough Council,3/9/2022,0012008280/1,12008280, 575.00,MISO - Dotted Eyes Ltd,01022500,,Software Hire & Support,Information Technology,D27KD000044059,410032147
http://statistics.data.gov.uk/id/local-authority/29UP,Tonbridge & Malling Borough Council,3/9/2022,0012008281/1,12008281, 1646.72,NTT Cloud Communications UK Ltd,01794600,,Leased Lines & Modems,Information Technology,D27KD000045011,
http://statistics.data.gov.uk/id/local-authority/29UP,Tonbridge & Malling Borough Council,3/9/2022,0012008282/1,12008282, 178.22,KCS,00054200,,Copy Charges,Multi Function Devices,D22GB000040125,
http://statistics.data.gov.uk/id/local-authority/29UP,Tonbridge & Malling Borough Council,3/9/2022,0012008282/2,12008282, 130.63,KCS,00054200,,Leasing Charges,Multi Function Devices,D22GB000044038,
http://statistics.data.gov.uk/id/local-authority/29UP,Tonbridge & Malling Borough Council,3/9/2022,0021037781/1,21037781, 20.83,REDACTED PERSONAL DATA,01714400,,Purchases,Haysden Country Park,B22LC000040101,
http://statistics.data.gov.uk/id/local-authority/29UP,Tonbridge & Malling Borough Council,3/9/2022,0021037782/1,21037782, 492.24,G.L. & R.G. Bourne,00737500,,Gates / Security,Haysden Country Park,B22LC000044017,210056214
http://statistics.data.gov.uk/id/local-authority/29UP,Tonbridge & Malling Borough Council,3/9/2022,0021037783/1,21037783, 67.48,G.L. & R.G. Bourne,00737500,,Gates / Security,Haysden Country Park,B22LC000044017,210056214
http://statistics.data.gov.uk/id/local-authority/29UP,Tonbridge & Malling Borough Council,3/9/2022,0021037784/1,21037784, 4.80,G.L. & R.G. Bourne,00737500,,Gates / Security,Haysden Country Park,B22LC000044017,210056214
http://statistics.data.gov.uk/id/local-authority/29UP,Tonbridge & Malling Borough Council,3/9/2022,0021037785/1,21037785, 9.00,G.L. & R.G. Bourne,00737500,,Maintenance of Grounds,Haysden Country Park,B22LC000020402,
http://statistics.data.gov.uk/id/local-authority/29UP,Tonbridge & Malling Borough Council,3/9/2022,0021037788/1,21037788, 2300.00,M & M Developers LLP,01266500,,Maintenance of Grounds,Haysden Country Park,B22LC000020402,210056686
http://statistics.data.gov.uk/id/local-authority/29UP,Tonbridge & Malling Borough Council,3/9/2022,0021037789/1,21037789, 1565.64,Landscape Services Ltd,00057600,,Re-opening High Streets,Eco Dev & Reg Gen Bus Support,D52TDCV1948076,210056675
http://statistics.data.gov.uk/id/local-authority/29UP,Tonbridge & Malling Borough Council,3/9/2022,0021037790/3,21037790, 168.63,KCC - L.A.S.E.R Commercial Services ,00184300,,Electricity,Open Spaces & Amenity Areas,B22LE000021002,
http://statistics.data.gov.uk/id/local-authority/29UP,Tonbridge & Malling Borough Council,3/9/2022,0021037793/1,21037793, 762.85,Streetmaster (South Wales) Ltd,00222100,,Maintenance of Grounds,Tonbridge Castle Grounds,B22LB000020402,210056464
http://statistics.data.gov.uk/id/local-authority/29UP,Tonbridge & Malling Borough Council,3/9/2022,0021037794/1,21037794, 28.94,The Culinary Herb Company,01819700,310683429,Maintenance of Grounds,Sports Grounds,B13ET000020402,210056565
http://statistics.data.gov.uk/id/local-authority/29UP,Tonbridge & Malling Borough Council,3/9/2022,0021037795/1,21037795, 495.00,Just Markings Ltd,01833500,944996558,Maintenance of Grounds,Sports Grounds,B13ET000020402,210056663
http://statistics.data.gov.uk/id/local-authority/29UP,Tonbridge & Malling Borough Council,3/9/2022,0022026353/1,22026353, 5148.00,MCL  Mechanical Handling Ltd,00064100,,Other Expenses,Disabled Facilities Grant Mand,P03AC000009908,
http://statistics.data.gov.uk/id/local-authority/29UP,Tonbridge & Malling Borough Council,3/9/2022,0022026355/1,22026355, 3277.50,Waste Consulting LLP,01530700,737059028,Other Expenses,Garden Waste Recycling,H34ST000048010,210056660
http://statistics.data.gov.uk/id/local-authority/29UP,Tonbridge & Malling Borough Council,3/9/2022,0022026356/1,22026356, 32.18,Biffa Waste Services Ltd,01284500,,Trade Refuse Charges,Cleaning & Security,D21FD000044008,
http://statistics.data.gov.uk/id/local-authority/29UP,Tonbridge & Malling Borough Council,3/9/2022,0022026357/1,22026357, 439.60,Countrystyle Group,00835900,781981681,Plastic Recycling,Dry Recycling,H34SR000054019,
http://statistics.data.gov.uk/id/local-authority/29UP,Tonbridge & Malling Borough Council,3/9/2022,0022026358/1,22026358, 800.00,Green Recycling LTD,01563000,,Paper Recycling,Dry Recycling,H34SR000054024,
http://statistics.data.gov.uk/id/local-authority/29UP,Tonbridge & Malling Borough Council,3/9/2022,0022026359/1,22026359, 3720.00,MCL  Mechanical Handling Ltd,00064100,,Other Expenses,Disabled Facilities Grant Mand,P03AC000009908,
http://statistics.data.gov.uk/id/local-authority/29UP,Tonbridge & Malling Borough Council,3/9/2022,0022026360/1,22026360, 1710.17,Peabody South East LTD,01680900,,Other Expenses,Disabled Facilities Grant Mand,P03AC000009908,
http://statistics.data.gov.uk/id/local-authority/29UP,Tonbridge & Malling Borough Council,3/9/2022,0022026361/1,22026361, 1780.00,Clarkes Funeral Service,00021200,,Funeral Expenses,Public Health Act 1984,H26SG000054002,
http://statistics.data.gov.uk/id/local-authority/29UP,Tonbridge & Malling Borough Council,3/9/2022,0022026362/1,22026362, 421.76,Stiles Harold Williams LLP,01721700,,Temporary Accommodation,Homelessness,C01AASYRI44051,
http://statistics.data.gov.uk/id/local-authority/29UP,Tonbridge & Malling Borough Council,3/9/2022,0022026363/1,22026363, 465.20,Countrystyle Group,00835900,781981681,Plastic Recycling,Dry Recycling,H34SR000054019,
http://statistics.data.gov.uk/id/local-authority/29UP,Tonbridge & Malling Borough Council,3/9/2022,0022026365/1,22026365, 17032.36,Consultants in Care Ltd,01764200,,Temporary Accommodation,Homelessness,C01AA000044051,
http://statistics.data.gov.uk/id/local-authority/29UP,Tonbridge & Malling Borough Council,3/9/2022,0022026366/3,22026366, 1152.00,The Oyster Partnership,01196400,,Temporary Staff,Env Hlth & Hsg Sals&Overheads,D01AVDV0711300,
http://statistics.data.gov.uk/id/local-authority/29UP,Tonbridge & Malling Borough Council,3/9/2022,0022026367/1,22026367, 5145.89,Lifestyle (KENT) LTD,01348800,,Other Expenses,Disabled Facilities Grant Mand,P03AC000009908,
http://statistics.data.gov.uk/id/local-authority/29UP,Tonbridge & Malling Borough Council,3/9/2022,0022026368/1,22026368, 741.00,Peabody South East LTD,01680900,,Other Expenses,Disabled Facilities Grant Mand,P03AC000009908,
http://statistics.data.gov.uk/id/local-authority/29UP,Tonbridge & Malling Borough Council,3/9/2022,0022026369/1,22026369, 90.00,LA Personal Fitness,01782300,,Healthy Living Initiatives,Public Health - Healthy Living,H40SYVH0048145,220003204
http://statistics.data.gov.uk/id/local-authority/29UP,Tonbridge & Malling Borough Council,3/9/2022,0022026370/1,22026370, 120.00,Enviro Technology Services PLC,01461300,,Air Quality Monitoring,Environmental Protection,H32SN000054016,220003199
http://statistics.data.gov.uk/id/local-authority/29UP,Tonbridge & Malling Borough Council,3/9/2022,0022026370/2,22026370, 225.00,Enviro Technology Services PLC,01461300,,Air Quality Monitoring,Environmental Protection,H32SN000054016,220003199
http://statistics.data.gov.uk/id/local-authority/29UP,Tonbridge & Malling Borough Council,3/9/2022,0022026371/1,22026371, 4.10,Amazon EU SARL,01738400,,Water Sampling,Environmental Protection,H32SN000054010,
http://statistics.data.gov.uk/id/local-authority/29UP,Tonbridge & Malling Borough Council,3/9/2022,0031018513/1,31018513, 3726.72,Chroma Vision Ltd,00891600,,Initial Furniture & Equipment,Cap Ren CCTV,P01BA000009906,310042732
http://statistics.data.gov.uk/id/local-authority/29UP,Tonbridge & Malling Borough Council,3/9/2022,0031018515/1,31018515, 448.00,Elite Stewarding and Security Solutions,01743600,,Cash Collection,Parking Off-Street,E10HA000044007,
http://statistics.data.gov.uk/id/local-authority/29UP,Tonbridge & Malling Borough Council,3/9/2022,0031018515/2,31018515, 448.00,Elite Stewarding and Security Solutions,01743600,,Cash Collection,Parking On-Street,E10HD000044007,
http://statistics.data.gov.uk/id/local-authority/29UP,Tonbridge & Malling Borough Council,3/9/2022,0031018516/1,31018516, 1.44,Kings Hill Garage Ltd,01546300,,Transport Repair & Maintenance,Parking Off-Street,E10HA000030103,310042795
http://statistics.data.gov.uk/id/local-authority/29UP,Tonbridge & Malling Borough Council,3/9/2022,0031018516/10,31018516, 6.48,Kings Hill Garage Ltd,01546300,,Transport Repair & Maintenance,Parking On-Street,E10HD000030103,310042795
http://statistics.data.gov.uk/id/local-authority/29UP,Tonbridge & Malling Borough Council,3/9/2022,0031018516/11,31018516, 207.92,Kings Hill Garage Ltd,01546300,,Transport Repair & Maintenance,Parking On-Street,E10HD000030103,310042795
http://statistics.data.gov.uk/id/local-authority/29UP,Tonbridge & Malling Borough Council,3/9/2022,0031018516/12,31018516, 9.00,Kings Hill Garage Ltd,01546300,,Transport Repair & Maintenance,Parking On-Street,E10HD000030103,310042795
http://statistics.data.gov.uk/id/local-authority/29UP,Tonbridge & Malling Borough Council,3/9/2022,0031018516/13,31018516, 192.00,Kings Hill Garage Ltd,01546300,,Transport Repair & Maintenance,Parking On-Street,E10HD000030103,310042795
http://statistics.data.gov.uk/id/local-authority/29UP,Tonbridge & Malling Borough Council,3/9/2022,0031018516/14,31018516, 0.96,Kings Hill Garage Ltd,01546300,,Transport Repair & Maintenance,Parking On-Street,E10HD000030103,310042795
http://statistics.data.gov.uk/id/local-authority/29UP,Tonbridge & Malling Borough Council,3/9/2022,0031018516/15,31018516, 2.02,Kings Hill Garage Ltd,01546300,,Transport Repair & Maintenance,Parking On-Street,E10HD000030103,310042795
http://statistics.data.gov.uk/id/local-authority/29UP,Tonbridge & Malling Borough Council,3/9/2022,0031018516/16,31018516, 10.21,Kings Hill Garage Ltd,01546300,,Transport Repair & Maintenance,Parking On-Street,E10HD000030103,310042795
http://statistics.data.gov.uk/id/local-authority/29UP,Tonbridge & Malling Borough Council,3/9/2022,0031018516/17,31018516, 3.46,Kings Hill Garage Ltd,01546300,,Transport Repair & Maintenance,Parking On-Street,E10HD000030103,310042795
http://statistics.data.gov.uk/id/local-authority/29UP,Tonbridge & Malling Borough Council,3/9/2022,0031018516/18,31018516, 2.16,Kings Hill Garage Ltd,01546300,,Transport Repair & Maintenance,Parking On-Street,E10HD000030103,310042795
http://statistics.data.gov.uk/id/local-authority/29UP,Tonbridge & Malling Borough Council,3/9/2022,0031018516/2,31018516, 2.30,Kings Hill Garage Ltd,01546300,,Transport Repair & Maintenance,Parking Off-Street,E10HA000030103,310042795
http://statistics.data.gov.uk/id/local-authority/29UP,Tonbridge & Malling Borough Council,3/9/2022,0031018516/3,31018516, 1.34,Kings Hill Garage Ltd,01546300,,Transport Repair & Maintenance,Parking Off-Street,E10HA000030103,310042795
http://statistics.data.gov.uk/id/local-authority/29UP,Tonbridge & Malling Borough Council,3/9/2022,0031018516/4,31018516, 0.64,Kings Hill Garage Ltd,01546300,,Transport Repair & Maintenance,Parking Off-Street,E10HA000030103,310042795
http://statistics.data.gov.uk/id/local-authority/29UP,Tonbridge & Malling Borough Council,3/9/2022,0031018516/5,31018516, 288.00,Kings Hill Garage Ltd,01546300,,Transport Repair & Maintenance,Parking Off-Street,E10HA000030103,310042795
http://statistics.data.gov.uk/id/local-authority/29UP,Tonbridge & Malling Borough Council,3/9/2022,0031018516/6,31018516, 6.00,Kings Hill Garage Ltd,01546300,,Transport Repair & Maintenance,Parking Off-Street,E10HA000030103,310042795
http://statistics.data.gov.uk/id/local-authority/29UP,Tonbridge & Malling Borough Council,3/9/2022,0031018516/7,31018516, 138.61,Kings Hill Garage Ltd,01546300,,Transport Repair & Maintenance,Parking Off-Street,E10HA000030103,310042795
http://statistics.data.gov.uk/id/local-authority/29UP,Tonbridge & Malling Borough Council,3/9/2022,0031018516/8,31018516, 4.32,Kings Hill Garage Ltd,01546300,,Transport Repair & Maintenance,Parking Off-Street,E10HA000030103,310042795
http://statistics.data.gov.uk/id/local-authority/29UP,Tonbridge & Malling Borough Council,3/9/2022,0031018516/9,31018516, 6.80,Kings Hill Garage Ltd,01546300,,Transport Repair & Maintenance,Parking Off-Street,E10HA000030103,310042795
http://statistics.data.gov.uk/id/local-authority/29UP,Tonbridge & Malling Borough Council,3/9/2022,0031018517/1,31018517, 1625.00,Marston,01485000,,Adjudication & Enforcement Ser,Parking Off-Street,E10HA000044230,
http://statistics.data.gov.uk/id/local-authority/29UP,Tonbridge & Malling Borough Council,3/9/2022,0031018518/1,31018518, 4.87,B&Q/Screwfix Direct(TradeUKAccount),00141300,,Other Expenses,TRSG Riverside Rivetment,P05DD000009908,
http://statistics.data.gov.uk/id/local-authority/29UP,Tonbridge & Malling Borough Council,3/9/2022,0031018519/1,31018519, 12.99,B&Q/Screwfix Direct(TradeUKAccount),00141300,,Other Expenses,TRSG Riverside Rivetment,P05DD000009908,
http://statistics.data.gov.uk/id/local-authority/29UP,Tonbridge & Malling Borough Council,3/9/2022,0031018519/2,31018519, 16.56,B&Q/Screwfix Direct(TradeUKAccount),00141300,,Other Expenses,TRSG Riverside Rivetment,P05DD000009908,
http://statistics.data.gov.uk/id/local-authority/29UP,Tonbridge & Malling Borough Council,3/9/2022,0031018520/1,31018520, 65.47,Shell U.K. Oil Products Limited,01673300,,"Petrol, Diesel & Oil",Patrolling,B22LF000030106,
http://statistics.data.gov.uk/id/local-authority/29UP,Tonbridge & Malling Borough Council,3/9/2022,0031018520/2,31018520, 110.22,Shell U.K. Oil Products Limited,01673300,,"Petrol, Diesel & Oil",Parking Off-Street,E10HA000030106,
http://statistics.data.gov.uk/id/local-authority/29UP,Tonbridge & Malling Borough Council,3/9/2022,0031018520/3,31018520, 110.23,Shell U.K. Oil Products Limited,01673300,,"Petrol, Diesel & Oil",Parking On-Street,E10HD000030106,
http://statistics.data.gov.uk/id/local-authority/29UP,Tonbridge & Malling Borough Council,3/9/2022,0031018521/1,31018521, 3022.50,G4S Cash Solutions ( UK ) Ltd,01398400,,Cash Collection,Parking Off-Street,E10HA000044007,
http://statistics.data.gov.uk/id/local-authority/29UP,Tonbridge & Malling Borough Council,3/9/2022,0031018521/2,31018521, 30.00,G4S Cash Solutions ( UK ) Ltd,01398400,,Cash Collection,Parking On-Street,E10HD000044007,
http://statistics.data.gov.uk/id/local-authority/29UP,Tonbridge & Malling Borough Council,3/9/2022,0031018525/1,31018525, 1227.94,Chroma Vision Ltd,00891600,,Initial Furniture & Equipment,Cap Ren CCTV,P01BA000009906,310042769
http://statistics.data.gov.uk/id/local-authority/29UP,Tonbridge & Malling Borough Council,3/9/2022,0031018526/1,31018526, 6.17,Npower Ltd,01675800,,Electricity,Parking Off-Street,E10HA000021002,
http://statistics.data.gov.uk/id/local-authority/29UP,Tonbridge & Malling Borough Council,3/9/2022,0031018526/2,31018526, 136.29,Npower Ltd,01675800,,Electricity,Parking Off-Street,E10HA000021002,
http://statistics.data.gov.uk/id/local-authority/29UP,Tonbridge & Malling Borough Council,3/9/2022,0031018527/1,31018527, 2.35,Npower Ltd,01675800,,Electricity,Parking Off-Street,E10HA000021002,
http://statistics.data.gov.uk/id/local-authority/29UP,Tonbridge & Malling Borough Council,3/9/2022,0031018527/2,31018527, 59.60,Npower Ltd,01675800,,Electricity,Parking Off-Street,E10HA000021002,
http://statistics.data.gov.uk/id/local-authority/29UP,Tonbridge & Malling Borough Council,3/9/2022,0031018528/1,31018528, 1.11,Npower Ltd,01675800,,Electricity,Parking Off-Street,E10HA000021002,
http://statistics.data.gov.uk/id/local-authority/29UP,Tonbridge & Malling Borough Council,3/9/2022,0031018528/2,31018528, 28.93,Npower Ltd,01675800,,Electricity,Parking Off-Street,E10HA000021002,
http://statistics.data.gov.uk/id/local-authority/29UP,Tonbridge & Malling Borough Council,3/9/2022,0031018529/1,31018529, 256.99,Royal British Legion Industries Ltd,00139700,,Premises Repairs & Maintenance,Parking On-Street,E10HD000020601,310042790
http://statistics.data.gov.uk/id/local-authority/29UP,Tonbridge & Malling Borough Council,3/9/2022,0031018530/1,31018530, 410.00,Wellden Land Surveys,01410600,,Professional Fees,Boro Drainage & Land Drainage,E20MA000044001,310042644
http://statistics.data.gov.uk/id/local-authority/29UP,Tonbridge & Malling Borough Council,3/9/2022,0032009429/1,32009429, 224.91,KM Media Group Ltd,00053900,,Advertising General,Development Management,A01ABZ99944216,320003383
http://statistics.data.gov.uk/id/local-authority/29UP,Tonbridge & Malling Borough Council,3/9/2022,0032009430/1,32009430, 2204.00,Arc4,01652100,,Development of Local Plan,Development of Local Plan,A01AE000044023,310042779
http://statistics.data.gov.uk/id/local-authority/29UP,Tonbridge & Malling Borough Council,3/9/2022,0032009431/1,32009431, 3201.39,G2 Recruitment Solutions,01786000,,Temporary Staff,Planning Sals&Overheads,D01AJDJ0111300,
http://statistics.data.gov.uk/id/local-authority/29UP,Tonbridge & Malling Borough Council,3/9/2022,0032009432/1,32009432, 1665.00,The Oyster Partnership,01196400,,Temporary Staff,Planning Sals&Overheads,D01AJDJ0111300,
http://statistics.data.gov.uk/id/local-authority/29UP,Tonbridge & Malling Borough Council,3/9/2022,0032009433/1,32009433, 3315.00,TSC Designs,01602800,359305975,Professional Fees,Building Control,A01AD000044001,
http://statistics.data.gov.uk/id/local-authority/29UP,Tonbridge & Malling Borough Council,3/9/2022,0032009434/1,32009434, 1520.00,The Oyster Partnership,01196400,,Temporary Staff,Planning Sals&Overheads,D01AJDJ0111300,
http://statistics.data.gov.uk/id/local-authority/29UP,Tonbridge & Malling Borough Council,3/9/2022,0032009435/1,32009435, 3650.00,Quality Bailiffs,01835600,,Professional Fees,Development Management,A01ABENFO44001,320003388
http://statistics.data.gov.uk/id/local-authority/29UP,Tonbridge & Malling Borough Council,3/9/2022,0041034044/3,41034044, 47.52,Adelante Software Limited,01393800,812115871,Credit Card Commission,Banking Arrangements,D43QK000044082,
http://statistics.data.gov.uk/id/local-authority/29UP,Tonbridge & Malling Borough Council,3/9/2022,0041034045/1,41034045, 1795.00,LG Futures Ltd,01108200,,Subscriptions,Finance Sals&Overheads,D01AFDF0247002,410032136
http://statistics.data.gov.uk/id/local-authority/29UP,Tonbridge & Malling Borough Council,3/9/2022,0041034045/2,41034045, 1695.00,LG Futures Ltd,01108200,,Subscriptions,Finance Sals&Overheads,D01AFDF0247002,410032136
http://statistics.data.gov.uk/id/local-authority/29UP,Tonbridge & Malling Borough Council,3/9/2022,0041034046/3,41034046, 499.13,KH Recruitment Ltd,01738900,,Temporary Staff,Finance Sals&Overheads,D01AFDF1111300,
http://statistics.data.gov.uk/id/local-authority/29UP,Tonbridge & Malling Borough Council,3/9/2022,0041034047/3,41034047, 1017.00,The Oyster Partnership,01196400,,Temporary Staff,Finance Sals&Overheads,D01AFDF1111300,
http://statistics.data.gov.uk/id/local-authority/29UP,Tonbridge & Malling Borough Council,3/9/2022,0041034054/1,41034054, 987.13,Morgan Hunt UK Ltd,01086900,,Temporary Staff,Finance Sals&Overheads,D01AFDF1111300,
http://statistics.data.gov.uk/id/local-authority/29UP,Tonbridge & Malling Borough Council,3/9/2022,0041034055/1,41034055, 750.00,Morgan Hunt UK Ltd,01086900,,Temporary Staff,Finance Sals&Overheads,D01AFDF1111300,
http://statistics.data.gov.uk/id/local-authority/29UP,Tonbridge & Malling Borough Council,3/9/2022,0041034056/1,41034056, 1544.26,Rundle & Co Ltd,00087200,,Bailiffs Commission,Local Revenue & NNDR Collect,D41QA000044075,
http://statistics.data.gov.uk/id/local-authority/29UP,Tonbridge & Malling Borough Council,3/9/2022,0051008664/1,51008664, 125.01,The Association of Building Engineers,00304300,,Ext Fees/Prof & Tech,Training,D10DCDJ0213561,510010555
http://statistics.data.gov.uk/id/local-authority/29UP,Tonbridge & Malling Borough Council,3/9/2022,0051008665/1,51008665, 275.00,NEC Software Solutions UK Ltd,01073900,202159745,Ext Fees/Prof & Tech,Training,D10DCDF1113561,510010552
http://statistics.data.gov.uk/id/local-authority/29UP,Tonbridge & Malling Borough Council,3/10/2022,0041034065/1,41034065, 15.00,BNP Paribas,01360500,,Bank Charges,Banking Arrangements,D43QK000044222,
http://statistics.data.gov.uk/id/local-authority/29UP,Tonbridge & Malling Borough Council,3/15/2022,0041034088/1,41034088, 15.00,BNP Paribas,01360500,,Bank Charges,Banking Arrangements,D43QK000044222,
http://statistics.data.gov.uk/id/local-authority/29UP,Tonbridge & Malling Borough Council,3/16/2022,0011044022/1,11044022, 571.00,Tonbridge & Malling Leisure Trust,01469100,,H&CG Fund Council Specific,Eco Dev & Reg Gen Bus Support,D52TD000047027,110069334
http://statistics.data.gov.uk/id/local-authority/29UP,Tonbridge & Malling Borough Council,3/16/2022,0011044023/1,11044023, 155.00,SJC Door Security Installations,01278600,,Purchases - Identity Cards,Admin & Prop Sals&Overheads,D01AADA0240104,110069445
http://statistics.data.gov.uk/id/local-authority/29UP,Tonbridge & Malling Borough Council,3/16/2022,0011044024/1,11044024, 342.72,KM Media Group Ltd,00053900,,Advertising General,Local Revenue & NNDR Collect,D41QAZ99944216,110069442
http://statistics.data.gov.uk/id/local-authority/29UP,Tonbridge & Malling Borough Council,3/16/2022,0011044025/1,11044025, 56.00,Willow Pumps Ltd,00114100,,BRREP Servicing - Pumping Stn,Tonbridge Swimming Pool,M15HBP20001931,110069172
http://statistics.data.gov.uk/id/local-authority/29UP,Tonbridge & Malling Borough Council,3/16/2022,0011044025/2,11044025, 112.00,Willow Pumps Ltd,00114100,,BRREP Servicing - Pumping Stn,Ton Sportsgrnd Bldgs / Toilets,M15HCP20001931,110069172
http://statistics.data.gov.uk/id/local-authority/29UP,Tonbridge & Malling Borough Council,3/16/2022,0011044025/3,11044025, 112.00,Willow Pumps Ltd,00114100,,BRREP Servicing - Pumping Stn,Vale Rise Depot,M15LCP20001931,110069172
http://statistics.data.gov.uk/id/local-authority/29UP,Tonbridge & Malling Borough Council,3/16/2022,0011044026/1,11044026, 2279.50,Willow Pumps Ltd,00114100,,BRREP Servicing - Pumping Stn,Tonbridge Swimming Pool,M15HBP20001931,110069394
http://statistics.data.gov.uk/id/local-authority/29UP,Tonbridge & Malling Borough Council,3/16/2022,0011044027/1,11044027, 78.50,Triple S Lift Services,01344900,,BRREP Servicing - lifts,Gibson Building East,M15KGP20001930,110069280
http://statistics.data.gov.uk/id/local-authority/29UP,Tonbridge & Malling Borough Council,3/16/2022,0011044028/1,11044028, 110.00,Triple S Lift Services,01344900,,BRREP Servicing - lifts,Angel Centre,M15HAP20001930,110069286
http://statistics.data.gov.uk/id/local-authority/29UP,Tonbridge & Malling Borough Council,3/16/2022,0011044029/1,11044029, 1614.00,H20 Servicing Limited,00888800,808041553,BRREP Servicing - pool plant,Tonbridge Swimming Pool,M15HBP20001910,110069408
http://statistics.data.gov.uk/id/local-authority/29UP,Tonbridge & Malling Borough Council,3/16/2022,0011044030/1,11044030, 154.50,Medisave (UK) Ltd,01403400,,Other Expenses,Civil Contingencies,D33NACV1948010,110069357
http://statistics.data.gov.uk/id/local-authority/29UP,Tonbridge & Malling Borough Council,3/16/2022,0011044031/1,11044031, 632.00,Westcountry Group,00656400,,Purchases,Central Stationery Stock A/c,K03AD000001002,110069437
http://statistics.data.gov.uk/id/local-authority/29UP,Tonbridge & Malling Borough Council,3/16/2022,0011044032/1,11044032, 346.00,Chillmech Limited,00978700,,BRREP Servicing-Air Condition,Tonbridge Castle / CAB,M15KFP20001935,110069454
http://statistics.data.gov.uk/id/local-authority/29UP,Tonbridge & Malling Borough Council,3/16/2022,0011044033/1,11044033, 222.50,Chillmech Limited,00978700,,BRREP Servicing-Air Condition,Gibson Building East,M15KGP20001935,110069450
http://statistics.data.gov.uk/id/local-authority/29UP,Tonbridge & Malling Borough Council,3/16/2022,0011044034/1,11044034, 1660.00,G C Industrial Heating Services,00578100,,BRREP Plant renewals,Angel Centre,M15HAP20001909,110069452
http://statistics.data.gov.uk/id/local-authority/29UP,Tonbridge & Malling Borough Council,3/16/2022,0011044035/1,11044035, 390.00,G C Industrial Heating Services,00578100,,BRREP Response - General,Pleasure Grounds & Open Spaces,M15HHP50001997,110069395
http://statistics.data.gov.uk/id/local-authority/29UP,Tonbridge & Malling Borough Council,3/16/2022,0011044037/1,11044037, 5016.63,Kent Farmers Market Association,01839900,,Re-opening High Streets,Eco Dev & Reg Gen Bus Support,D52TDCV1948076,
http://statistics.data.gov.uk/id/local-authority/29UP,Tonbridge & Malling Borough Council,3/16/2022,0011044038/1,11044038, 757.80,Venn Group Ltd,00914300,,Temporary Staff,Legal Sals&Overheads,D01ARDR0011300,
http://statistics.data.gov.uk/id/local-authority/29UP,Tonbridge & Malling Borough Council,3/16/2022,0011044039/1,11044039, 714.00,Venn Group Ltd,00914300,,Temporary Staff,Legal Sals&Overheads,D01ARDR0011300,
http://statistics.data.gov.uk/id/local-authority/29UP,Tonbridge & Malling Borough Council,3/16/2022,0011044040/1,11044040, 1134.00,Venn Group Ltd,00914300,,Temporary Staff,Legal Sals&Overheads,D01ARDR0011300,
http://statistics.data.gov.uk/id/local-authority/29UP,Tonbridge & Malling Borough Council,3/16/2022,0011044041/1,11044041, 1600.10,GSF SANDYLIGHT LTD,01705300,,Temporary Staff,Admin & Prop Sals&Overheads,D01AADA0511300,
http://statistics.data.gov.uk/id/local-authority/29UP,Tonbridge & Malling Borough Council,3/16/2022,0011044042/1,11044042, 1426.00,Thomson Snell & Passmore,00101700,,Legal Fees,Legal Sals&Overheads,D01ARDR0044002,
http://statistics.data.gov.uk/id/local-authority/29UP,Tonbridge & Malling Borough Council,3/16/2022,0011044043/1,11044043, 682.00,Thomson Snell & Passmore,00101700,,Legal Fees,Legal Sals&Overheads,D01ARDR0044002,
http://statistics.data.gov.uk/id/local-authority/29UP,Tonbridge & Malling Borough Council,3/16/2022,0011044044/1,11044044, 310.00,Thomson Snell & Passmore,00101700,,Legal Fees,Legal Sals&Overheads,D01ARDR0044002,
http://statistics.data.gov.uk/id/local-authority/29UP,Tonbridge & Malling Borough Council,3/16/2022,0011044045/1,11044045, 42.00,Sevenoaks Mayor's Charity Account,01273000,,Hospitality,Mayoral & Other Member Support,D29LX000048003,
http://statistics.data.gov.uk/id/local-authority/29UP,Tonbridge & Malling Borough Council,3/16/2022,0011044046/1,11044046, 97.00,Coloursped Services Ltd,01806600,,Purchases,Printing,D22GA000040101,
http://statistics.data.gov.uk/id/local-authority/29UP,Tonbridge & Malling Borough Council,3/16/2022,0011044047/1,11044047, 19.95,Coloursped Services Ltd,01806600,,Purchases,Printing,D22GA000040101,
http://statistics.data.gov.uk/id/local-authority/29UP,Tonbridge & Malling Borough Council,3/16/2022,0011044048/1,11044048, 275.00,Driven to perfection,01541000,,Mayors Transport Allowance,Mayoral & Other Member Support,D29LX000034111,
http://statistics.data.gov.uk/id/local-authority/29UP,Tonbridge & Malling Borough Council,3/16/2022,0011044049/1,11044049, 8.76,Royal Mail,00086200,,Purchases,Mailsort Stock Account,K37BR000001002,
http://statistics.data.gov.uk/id/local-authority/29UP,Tonbridge & Malling Borough Council,3/16/2022,0011044049/2,11044049, 3.20,Royal Mail,00086200,,Purchases,Mailsort Stock Account,K37BR000001002,
http://statistics.data.gov.uk/id/local-authority/29UP,Tonbridge & Malling Borough Council,3/16/2022,0011044049/3,11044049, 1042.25,Royal Mail,00086200,,Purchases,Mailsort Stock Account,K37BR000001002,
http://statistics.data.gov.uk/id/local-authority/29UP,Tonbridge & Malling Borough Council,3/16/2022,0011044050/1,11044050, 330.94,Castle Water,01696500,,Water Charges (Metered),Buildings,D21FEDD5024001,
http://statistics.data.gov.uk/id/local-authority/29UP,Tonbridge & Malling Borough Council,3/16/2022,0011044051/1,11044051, 344.44,Castle Water,01696500,,Estate Management Charge,Land Review,D40PS000020400,
http://statistics.data.gov.uk/id/local-authority/29UP,Tonbridge & Malling Borough Council,3/16/2022,0011044052/1,11044052, 252.25,Castle Water,01696500,,Estate Management Charge,Land Review,D40PS000020400,
http://statistics.data.gov.uk/id/local-authority/29UP,Tonbridge & Malling Borough Council,3/16/2022,0011044053/1,11044053, 165.51,Scottish Water Business Stream Ltd,01641100,,Sewerage Charges,Buildings,D21FEDD1024003,
http://statistics.data.gov.uk/id/local-authority/29UP,Tonbridge & Malling Borough Council,3/16/2022,0011044054/1,11044054, 2673.00,Prosec General Security Ltd,00810600,,Office Security,Tonbridge Gateway,D23TG000044047,
http://statistics.data.gov.uk/id/local-authority/29UP,Tonbridge & Malling Borough Council,3/16/2022,0011044054/2,11044054, 708.75,Prosec General Security Ltd,00810600,,Office Security,Tonbridge Gateway,D23TG000044047,
http://statistics.data.gov.uk/id/local-authority/29UP,Tonbridge & Malling Borough Council,3/16/2022,0011044054/3,11044054, 216.00,Prosec General Security Ltd,00810600,,Office Security,Tonbridge Gateway,D23TG000044047,
http://statistics.data.gov.uk/id/local-authority/29UP,Tonbridge & Malling Borough Council,3/16/2022,0011044055/1,11044055, 43.14,Atlas Facilities Managment Limited ,01075900,,Miscellaneous Services,Cleaning & Security,D21FDDD6044015,
http://statistics.data.gov.uk/id/local-authority/29UP,Tonbridge & Malling Borough Council,3/16/2022,0011044056/1,11044056, 240.00,G C Industrial Heating Services,00578100,,BRREP Response - General,Leis Man Poult Wood Golf Centr,M15HEP50001997,
http://statistics.data.gov.uk/id/local-authority/29UP,Tonbridge & Malling Borough Council,3/16/2022,0011044057/1,11044057, 300.00,G C Industrial Heating Services,00578100,,BRREP Servicing - Sadia Tea,Gibson Building East,M15KGP20001932,
http://statistics.data.gov.uk/id/local-authority/29UP,Tonbridge & Malling Borough Council,3/16/2022,0011044058/1,11044058, 180.00,G C Industrial Heating Services,00578100,,BRREP Servicing - Sadia Tea,Gibson Building West,M15KBP20001932,
http://statistics.data.gov.uk/id/local-authority/29UP,Tonbridge & Malling Borough Council,3/16/2022,0011044059/1,11044059, 116.97,Premier Paper Group,01421800,,Purchases - Paper,Printing,D22GA000040102,
http://statistics.data.gov.uk/id/local-authority/29UP,Tonbridge & Malling Borough Council,3/16/2022,0011044060/1,11044060, 336.96,Chubb Fire & Security Ltd,00115400,174605362,BRREP Servicing-IntruderAlarm,Tonbridge Swimming Pool,M15HBP20001939,
http://statistics.data.gov.uk/id/local-authority/29UP,Tonbridge & Malling Borough Council,3/16/2022,0011044061/1,11044061, 270.00,G C Industrial Heating Services,00578100,,BRREP Servicing - boilers,Tonbridge Farm Pavillion,M15HGP20001929,
http://statistics.data.gov.uk/id/local-authority/29UP,Tonbridge & Malling Borough Council,3/16/2022,0011044062/1,11044062, 460.00,G C Industrial Heating Services,00578100,,BRREP Servicing - Sadia Tea,Gibson Building West,M15KBP20001932,
http://statistics.data.gov.uk/id/local-authority/29UP,Tonbridge & Malling Borough Council,3/16/2022,0011044063/1,11044063, 37.16,Biffa Waste Services Ltd,01284500,,Trade Refuse Charges,Cleaning & Security,D21FD000044008,
http://statistics.data.gov.uk/id/local-authority/29UP,Tonbridge & Malling Borough Council,3/16/2022,0011044064/1,11044064, 159.00,Biffa Waste Services Ltd,01284500,,Trade Refuse Charges,Cleaning & Security,D21FD000044008,
http://statistics.data.gov.uk/id/local-authority/29UP,Tonbridge & Malling Borough Council,3/16/2022,0011044065/1,11044065, 160.80,Biffa Waste Services Ltd,01284500,,Trade Refuse Charges,Cleaning & Security,D21FD000044008,
http://statistics.data.gov.uk/id/local-authority/29UP,Tonbridge & Malling Borough Council,3/16/2022,0011044066/1,11044066, 37.16,Biffa Waste Services Ltd,01284500,,Trade Refuse Charges,Cleaning & Security,D21FD000044008,
http://statistics.data.gov.uk/id/local-authority/29UP,Tonbridge & Malling Borough Council,3/16/2022,0011044067/1,11044067, 241.20,Biffa Waste Services Ltd,01284500,,Trade Refuse Charges,Cleaning & Security,D21FD000044008,
http://statistics.data.gov.uk/id/local-authority/29UP,Tonbridge & Malling Borough Council,3/16/2022,0011044068/1,11044068, 73.08,Biffa Waste Services Ltd,01284500,,Trade Refuse Charges,Cleaning & Security,D21FD000044008,
http://statistics.data.gov.uk/id/local-authority/29UP,Tonbridge & Malling Borough Council,3/16/2022,0011044069/1,11044069, 344.83,Initial Washroom Hygiene,00048300,,Laundry - Roller Towels,Cleaning & Security,D21FD000042003,
http://statistics.data.gov.uk/id/local-authority/29UP,Tonbridge & Malling Borough Council,3/16/2022,0011044070/1,11044070, 21.15,Oasis Group  - Box-It South East,00966800,931579211,Purchases,Electoral Registration,D31MF000040101,
http://statistics.data.gov.uk/id/local-authority/29UP,Tonbridge & Malling Borough Council,3/16/2022,0012008283/3,12008283, 29.43,KCS,00054200,,Leasing Charges,Multi Function Devices,D22GB000044038,
http://statistics.data.gov.uk/id/local-authority/29UP,Tonbridge & Malling Borough Council,3/16/2022,0012008284/3,12008284, 11.07,Daisy Communications,01068100,,Telephones - General,Leybourne Lakes Country Park,B22LK000045010,
http://statistics.data.gov.uk/id/local-authority/29UP,Tonbridge & Malling Borough Council,3/16/2022,0012008284/4,12008284, 9.58,Daisy Communications,01068100,,Telephones - Rentals,General Admin Telephones,D24GT000045005,
http://statistics.data.gov.uk/id/local-authority/29UP,Tonbridge & Malling Borough Council,3/16/2022,0012008284/5,12008284, 252.91,Daisy Communications,01068100,,Telephones - Call Costs,General Admin Telephones,D24GT000045006,
http://statistics.data.gov.uk/id/local-authority/29UP,Tonbridge & Malling Borough Council,3/16/2022,0012008284/6,12008284, 84.88,Daisy Communications,01068100,,Leased Lines & Modems,Information Technology,D27KD000045011,
http://statistics.data.gov.uk/id/local-authority/29UP,Tonbridge & Malling Borough Council,3/16/2022,0012008284/7,12008284, 65.88,Daisy Communications,01068100,,Maintenance - General,Security Services Management,E09GA000040135,
http://statistics.data.gov.uk/id/local-authority/29UP,Tonbridge & Malling Borough Council,3/16/2022,0012008285/10,12008285, 3.00,O2 UK Ltd,01268000,,Mobile Telephones,Chief Exec Sals&Overheads,D01ACDC0245013,
http://statistics.data.gov.uk/id/local-authority/29UP,Tonbridge & Malling Borough Council,3/16/2022,0012008285/11,12008285, 3.00,O2 UK Ltd,01268000,,Mobile Telephones,Technical Sals&Overheads,D01AEDE0045013,
http://statistics.data.gov.uk/id/local-authority/29UP,Tonbridge & Malling Borough Council,3/16/2022,0012008285/12,12008285, 6.00,O2 UK Ltd,01268000,,Mobile Telephones,Technical Sals&Overheads,D01AEDE0145013,
http://statistics.data.gov.uk/id/local-authority/29UP,Tonbridge & Malling Borough Council,3/16/2022,0012008285/13,12008285, 11.43,O2 UK Ltd,01268000,,Mobile Telephones,Technical Sals&Overheads,D01AEDE0245013,
http://statistics.data.gov.uk/id/local-authority/29UP,Tonbridge & Malling Borough Council,3/16/2022,0012008285/14,12008285, 39.00,O2 UK Ltd,01268000,,Mobile Telephones,Technical Sals&Overheads,D01AEDE0445013,
http://statistics.data.gov.uk/id/local-authority/29UP,Tonbridge & Malling Borough Council,3/16/2022,0012008285/15,12008285, 3.00,O2 UK Ltd,01268000,,Mobile Telephones,Technical Sals&Overheads,D01AEDE0545013,
http://statistics.data.gov.uk/id/local-authority/29UP,Tonbridge & Malling Borough Council,3/16/2022,0012008285/16,12008285, 12.00,O2 UK Ltd,01268000,,Mobile Telephones,Finance Sals&Overheads,D01AFDF0045013,
http://statistics.data.gov.uk/id/local-authority/29UP,Tonbridge & Malling Borough Council,3/16/2022,0012008285/17,12008285, 6.00,O2 UK Ltd,01268000,,Mobile Telephones,Finance Sals&Overheads,D01AFDF0945013,
http://statistics.data.gov.uk/id/local-authority/29UP,Tonbridge & Malling Borough Council,3/16/2022,0012008285/18,12008285, 12.00,O2 UK Ltd,01268000,,Mobile Telephones,St Scene & Leis Sals&Overheads,D01AGDG0045013,
http://statistics.data.gov.uk/id/local-authority/29UP,Tonbridge & Malling Borough Council,3/16/2022,0012008285/19,12008285, 6.00,O2 UK Ltd,01268000,,Mobile Telephones,St Scene & Leis Sals&Overheads,D01AGDG0145013,
http://statistics.data.gov.uk/id/local-authority/29UP,Tonbridge & Malling Borough Council,3/16/2022,0012008285/20,12008285, 9.00,O2 UK Ltd,01268000,,Mobile Telephones,St Scene & Leis Sals&Overheads,D01AGDG0445013,
http://statistics.data.gov.uk/id/local-authority/29UP,Tonbridge & Malling Borough Council,3/16/2022,0012008285/21,12008285, 33.00,O2 UK Ltd,01268000,,Mobile Telephones,St Scene & Leis Sals&Overheads,D01AGDG2045013,
http://statistics.data.gov.uk/id/local-authority/29UP,Tonbridge & Malling Borough Council,3/16/2022,0012008285/22,12008285, 9.00,O2 UK Ltd,01268000,,Mobile Telephones,Planning Sals&Overheads,D01AJDJ0045013,
http://statistics.data.gov.uk/id/local-authority/29UP,Tonbridge & Malling Borough Council,3/16/2022,0012008285/23,12008285, 12.20,O2 UK Ltd,01268000,,Mobile Telephones,Planning Sals&Overheads,D01AJDJ0245013,
http://statistics.data.gov.uk/id/local-authority/29UP,Tonbridge & Malling Borough Council,3/16/2022,0012008285/24,12008285, 6.00,O2 UK Ltd,01268000,,Mobile Telephones,Legal Sals&Overheads,D01ARDR0045013,
http://statistics.data.gov.uk/id/local-authority/29UP,Tonbridge & Malling Borough Council,3/16/2022,0012008285/25,12008285, 12.00,O2 UK Ltd,01268000,,Mobile Telephones,Legal Sals&Overheads,D01ARDR0445013,
http://statistics.data.gov.uk/id/local-authority/29UP,Tonbridge & Malling Borough Council,3/16/2022,0012008285/26,12008285, 3.00,O2 UK Ltd,01268000,,Mobile Telephones,Legal Sals&Overheads,D01ARDR0745013,
http://statistics.data.gov.uk/id/local-authority/29UP,Tonbridge & Malling Borough Council,3/16/2022,0012008285/27,12008285, 3.00,O2 UK Ltd,01268000,,Mobile Telephones,Env Hlth & Hsg Sals&Overheads,D01AVDV0045013,
http://statistics.data.gov.uk/id/local-authority/29UP,Tonbridge & Malling Borough Council,3/16/2022,0012008285/28,12008285, 9.00,O2 UK Ltd,01268000,,Mobile Telephones,Env Hlth & Hsg Sals&Overheads,D01AVDV0145013,
http://statistics.data.gov.uk/id/local-authority/29UP,Tonbridge & Malling Borough Council,3/16/2022,0012008285/29,12008285, 6.00,O2 UK Ltd,01268000,,Mobile Telephones,Env Hlth & Hsg Sals&Overheads,D01AVDV0345013,
http://statistics.data.gov.uk/id/local-authority/29UP,Tonbridge & Malling Borough Council,3/16/2022,0012008285/3,12008285, 3.00,O2 UK Ltd,01268000,,Telephones - General,Open Spaces & Amenity Areas,B22LE000045010,
http://statistics.data.gov.uk/id/local-authority/29UP,Tonbridge & Malling Borough Council,3/16/2022,0012008285/30,12008285, 3.00,O2 UK Ltd,01268000,,Mobile Telephones,Env Hlth & Hsg Sals&Overheads,D01AVDV0745013,
http://statistics.data.gov.uk/id/local-authority/29UP,Tonbridge & Malling Borough Council,3/16/2022,0012008285/31,12008285, 6.00,O2 UK Ltd,01268000,,Mobile Telephones,Env Hlth & Hsg Sals&Overheads,D01AVDV0945013,
http://statistics.data.gov.uk/id/local-authority/29UP,Tonbridge & Malling Borough Council,3/16/2022,0012008285/32,12008285, 9.20,O2 UK Ltd,01268000,,Mobile Telephones,Customer Services,D23CS000045013,
http://statistics.data.gov.uk/id/local-authority/29UP,Tonbridge & Malling Borough Council,3/16/2022,0012008285/33,12008285, 3.00,O2 UK Ltd,01268000,,Mobile Telephones,Tonbridge Gateway,D23TG000045013,
http://statistics.data.gov.uk/id/local-authority/29UP,Tonbridge & Malling Borough Council,3/16/2022,0012008285/34,12008285, 627.00,O2 UK Ltd,01268000,,Leased Lines & Modems,Information Technology,D27KD000045011,
http://statistics.data.gov.uk/id/local-authority/29UP,Tonbridge & Malling Borough Council,3/16/2022,0012008285/35,12008285, 3.00,O2 UK Ltd,01268000,,Mobile Telephones,Mayoral & Other Member Support,D29LX000045013,
http://statistics.data.gov.uk/id/local-authority/29UP,Tonbridge & Malling Borough Council,3/16/2022,0012008285/36,12008285, 3.00,O2 UK Ltd,01268000,,Emergency Out of Hours Recharg,Refuse Collection,H20SA000045030,
http://statistics.data.gov.uk/id/local-authority/29UP,Tonbridge & Malling Borough Council,3/16/2022,0012008285/37,12008285, 3.10,O2 UK Ltd,01268000,,Emergency Out of Hours Recharg,Street Scene,H23SD000045030,
http://statistics.data.gov.uk/id/local-authority/29UP,Tonbridge & Malling Borough Council,3/16/2022,0012008285/4,12008285, 6.00,O2 UK Ltd,01268000,,Telephones - General,Leybourne Lakes Country Park,B22LK000045010,
http://statistics.data.gov.uk/id/local-authority/29UP,Tonbridge & Malling Borough Council,3/16/2022,0012008285/5,12008285, 6.00,O2 UK Ltd,01268000,,Mobile Telephones,Admin & Prop Sals&Overheads,D01AADA0045013,
http://statistics.data.gov.uk/id/local-authority/29UP,Tonbridge & Malling Borough Council,3/16/2022,0012008285/6,12008285, 3.00,O2 UK Ltd,01268000,,Mobile Telephones,Admin & Prop Sals&Overheads,D01AADA1045013,
http://statistics.data.gov.uk/id/local-authority/29UP,Tonbridge & Malling Borough Council,3/16/2022,0012008285/7,12008285, 9.00,O2 UK Ltd,01268000,,Mobile Telephones,Admin & Prop Sals&Overheads,D01AADA1245013,
http://statistics.data.gov.uk/id/local-authority/29UP,Tonbridge & Malling Borough Council,3/16/2022,0012008285/8,12008285, 3.00,O2 UK Ltd,01268000,,Mobile Telephones,Chief Exec Sals&Overheads,D01ACDC0045013,
http://statistics.data.gov.uk/id/local-authority/29UP,Tonbridge & Malling Borough Council,3/16/2022,0012008285/9,12008285, 3.00,O2 UK Ltd,01268000,,Mobile Telephones,Chief Exec Sals&Overheads,D01ACDC0145013,
http://statistics.data.gov.uk/id/local-authority/29UP,Tonbridge & Malling Borough Council,3/16/2022,0012008286/1,12008286, 2990.00,3C Technology Limited,00997700,,Purchases,Information Technology,D27KD000040101,410032156
http://statistics.data.gov.uk/id/local-authority/29UP,Tonbridge & Malling Borough Council,3/16/2022,0012008286/2,12008286, 290.00,3C Technology Limited,00997700,,Purchases,Information Technology,D27KD000040101,410032156
http://statistics.data.gov.uk/id/local-authority/29UP,Tonbridge & Malling Borough Council,3/16/2022,0012008287/1,12008287, 14345.90,Kent County Council,00322500,,Leased Lines & Modems,Information Technology,D27KD000045011,410032150
http://statistics.data.gov.uk/id/local-authority/29UP,Tonbridge & Malling Borough Council,3/16/2022,0021037796/1,21037796, 1302.02,Burslem Memorials Ltd,01013400,,Re-opening High Streets,Eco Dev & Reg Gen Bus Support,D52TDCV1948076,210056577
http://statistics.data.gov.uk/id/local-authority/29UP,Tonbridge & Malling Borough Council,3/16/2022,0021037797/1,21037797, 2000.00,Imagink LTD,01513300,,Youth Initiatives,Youth Partnerships,B33PG000048124,210056664
http://statistics.data.gov.uk/id/local-authority/29UP,Tonbridge & Malling Borough Council,3/16/2022,0021037798/1,21037798, 80.00,SWS Countryside & Landscape,01567200,,Health & Safety - Trees,Countryside/Woodland Mgt,B22LG000044045,210056650
http://statistics.data.gov.uk/id/local-authority/29UP,Tonbridge & Malling Borough Council,3/16/2022,0021037798/2,21037798, 60.00,SWS Countryside & Landscape,01567200,,Health & Safety - Trees,Countryside/Woodland Mgt,B22LG000044045,210056650
http://statistics.data.gov.uk/id/local-authority/29UP,Tonbridge & Malling Borough Council,3/16/2022,0021037799/1,21037799, 845.60,SWS Countryside & Landscape,01567200,,Re-opening High Streets,Eco Dev & Reg Gen Bus Support,D52TDCV1948076,210056410
http://statistics.data.gov.uk/id/local-authority/29UP,Tonbridge & Malling Borough Council,3/16/2022,0021037800/1,21037800, 1200.00,SWS Countryside & Landscape,01567200,,Health & Safety - Trees,Countryside/Woodland Mgt,B22LG000044045,210056606
http://statistics.data.gov.uk/id/local-authority/29UP,Tonbridge & Malling Borough Council,3/16/2022,0021037801/1,21037801, 550.00,SWS Countryside & Landscape,01567200,,Health & Safety - Trees,Countryside/Woodland Mgt,B22LG000044045,210056630
http://statistics.data.gov.uk/id/local-authority/29UP,Tonbridge & Malling Borough Council,3/16/2022,0021037802/1,21037802, 60.00,SWS Countryside & Landscape,01567200,,Contract Payments,TRSG Riverside Rivetment,P05DD000009904,210056649
http://statistics.data.gov.uk/id/local-authority/29UP,Tonbridge & Malling Borough Council,3/16/2022,0021037802/2,21037802, 450.00,SWS Countryside & Landscape,01567200,,Contract Payments,TRSG Riverside Rivetment,P05DD000009904,210056649
http://statistics.data.gov.uk/id/local-authority/29UP,Tonbridge & Malling Borough Council,3/16/2022,0021037803/1,21037803, 275.00,SWS Countryside & Landscape,01567200,,Maintenance of Grounds,Open Spaces & Amenity Areas,B22LE000020402,210056369
http://statistics.data.gov.uk/id/local-authority/29UP,Tonbridge & Malling Borough Council,3/16/2022,0021037804/1,21037804, 500.00,SWS Countryside & Landscape,01567200,,Health & Safety - Trees,Countryside/Woodland Mgt,B22LG000044045,210056655
http://statistics.data.gov.uk/id/local-authority/29UP,Tonbridge & Malling Borough Council,3/16/2022,0021037805/3,21037805, 350.00,SWS Countryside & Landscape,01567200,,Health & Safety - Trees,Countryside/Woodland Mgt,B22LG000044045,
http://statistics.data.gov.uk/id/local-authority/29UP,Tonbridge & Malling Borough Council,3/16/2022,0021037806/3,21037806, 300.00,SWS Countryside & Landscape,01567200,,Health & Safety - Trees,Countryside/Woodland Mgt,B22LG000044045,
http://statistics.data.gov.uk/id/local-authority/29UP,Tonbridge & Malling Borough Council,3/16/2022,0021037807/1,21037807, 300.00,SWS Countryside & Landscape,01567200,,Health & Safety - Trees,Countryside/Woodland Mgt,B22LG000044045,210056613
http://statistics.data.gov.uk/id/local-authority/29UP,Tonbridge & Malling Borough Council,3/16/2022,0021037808/1,21037808, 250.00,SWS Countryside & Landscape,01567200,,Health & Safety - Trees,Countryside/Woodland Mgt,B22LG000044045,210056677
http://statistics.data.gov.uk/id/local-authority/29UP,Tonbridge & Malling Borough Council,3/16/2022,0021037809/3,21037809, 175000.00,Tonbridge & Malling Leisure Trust,01469100,,Leisure Trust Service Fee,T&M Leisure Trust,B10DA000050101,
http://statistics.data.gov.uk/id/local-authority/29UP,Tonbridge & Malling Borough Council,3/16/2022,0021037810/1,21037810, 840.00,Treework,00560700,,Health & Safety - Trees,Countryside/Woodland Mgt,B22LG000044045,210056690
http://statistics.data.gov.uk/id/local-authority/29UP,Tonbridge & Malling Borough Council,3/16/2022,0021037810/2,21037810, 480.00,Treework,00560700,,Health & Safety - Trees,Countryside/Woodland Mgt,B22LG000044045,210056690
http://statistics.data.gov.uk/id/local-authority/29UP,Tonbridge & Malling Borough Council,3/16/2022,0021037811/1,21037811, 98854.18,Alliance Leisure Services Ltd,01781100,,Contract Payments,LLCP Facility Improv,P05FF000009904,
http://statistics.data.gov.uk/id/local-authority/29UP,Tonbridge & Malling Borough Council,3/16/2022,0021037812/1,21037812, 550.00,Arnold Tarmac Ltd,01685100,,Maintenance of Grounds,Sports Grounds,B13ET000020402,210056680
http://statistics.data.gov.uk/id/local-authority/29UP,Tonbridge & Malling Borough Council,3/16/2022,0021037813/1,21037813, 37.51,Castle Water,01696500,,Water Charges (Metered),Cemetery,B26MP000024001,
http://statistics.data.gov.uk/id/local-authority/29UP,Tonbridge & Malling Borough Council,3/16/2022,0021037814/1,21037814, 972.84,Landscape Services Ltd,00057600,,Grounds Maintenance Contract,Cemetery,B26MP000050103,
http://statistics.data.gov.uk/id/local-authority/29UP,Tonbridge & Malling Borough Council,3/16/2022,0021037815/1,21037815, 2211.00,Landscape Services Ltd,00057600,,Re-opening High Streets,Eco Dev & Reg Gen Bus Support,D52TDCV1948076,210056674
http://statistics.data.gov.uk/id/local-authority/29UP,Tonbridge & Malling Borough Council,3/16/2022,0021037816/1,21037816, 395.00,David Hodgkinson Photographer,01068900,,Marketing,Events Development,B41TJZ99944215,210056692
http://statistics.data.gov.uk/id/local-authority/29UP,Tonbridge & Malling Borough Council,3/16/2022,0021037817/1,21037817, 125.00,Flash Mobile Welding Services Ltd,01189200,,Maintenance of Grounds,Open Spaces & Amenity Areas,B22LE000020402,
http://statistics.data.gov.uk/id/local-authority/29UP,Tonbridge & Malling Borough Council,3/16/2022,0021037818/1,21037818, 50.00,G Purser - Carp & Build Services,01589900,,Events Support,Events Development,B41TJ000044041,
http://statistics.data.gov.uk/id/local-authority/29UP,Tonbridge & Malling Borough Council,3/16/2022,0021037819/1,21037819, 64.09,Initial Washroom Hygiene,00048300,,Cleaning & Domestic Supplies,Haysden Country Park,B22LC000026001,
http://statistics.data.gov.uk/id/local-authority/29UP,Tonbridge & Malling Borough Council,3/16/2022,0021037820/1,21037820, 50.00,Monitor Pest Control Ltd,01476700,,Rodent Control,Haysden Country Park,B22LC000044053,210056216
http://statistics.data.gov.uk/id/local-authority/29UP,Tonbridge & Malling Borough Council,3/16/2022,0021037821/1,21037821, 395.00,Rob Steele T/A Radii Skatepark Repairs,01683100,,Maintenance of Play Equipment,Open Spaces & Amenity Areas,B22LE000020503,210056691
http://statistics.data.gov.uk/id/local-authority/29UP,Tonbridge & Malling Borough Council,3/16/2022,0021037822/1,21037822, 427.00,Rumwoods Limited,00959000,,Tree Planting Schemes,Countryside/Woodland Mgt,B22LH000020405,210056666
http://statistics.data.gov.uk/id/local-authority/29UP,Tonbridge & Malling Borough Council,3/16/2022,0021037823/1,21037823, 290.00,Rumwoods Limited,00959000,,Initiatives,Climate Change,D47SA000048135,210056684
http://statistics.data.gov.uk/id/local-authority/29UP,Tonbridge & Malling Borough Council,3/16/2022,0021037824/1,21037824, 50.00,South East Water Ltd,01330300,,Purchases,Haysden Country Park,B22LC000040101,210056661
http://statistics.data.gov.uk/id/local-authority/29UP,Tonbridge & Malling Borough Council,3/16/2022,0021037825/1,21037825, 620.00,Atlas Facilities Managment Limited ,01075900,,Gates / Security,Patrolling,B22LF000044017,210056489
http://statistics.data.gov.uk/id/local-authority/29UP,Tonbridge & Malling Borough Council,3/16/2022,0022026372/3,22026372, 1.48,REDACTED PERSONAL DATA,01055600,,Health General,Food & Safety - Food Safety,H35SX000044049,
http://statistics.data.gov.uk/id/local-authority/29UP,Tonbridge & Malling Borough Council,3/16/2022,0022026373/1,22026373, 1876.00,1st  Steps Housing Kent,01716100,,Temporary Accommodation,Homelessness,C01AA000044051,
http://statistics.data.gov.uk/id/local-authority/29UP,Tonbridge & Malling Borough Council,3/16/2022,0022026374/1,22026374, 48.27,Biffa Waste Services Ltd,01284500,,Trade Refuse Charges,Cleaning & Security,D21FD000044008,
http://statistics.data.gov.uk/id/local-authority/29UP,Tonbridge & Malling Borough Council,3/16/2022,0022026375/1,22026375, 37.85,British Gas Services LTD,01260000,,Electricity,Homelessness,C01AAMAUN21002,
http://statistics.data.gov.uk/id/local-authority/29UP,Tonbridge & Malling Borough Council,3/16/2022,0022026376/1,22026376, 408.12,British Gas Services LTD,01260000,,Electricity,Homelessness,C01AAMAUN21002,
http://statistics.data.gov.uk/id/local-authority/29UP,Tonbridge & Malling Borough Council,3/16/2022,0022026379/1,22026379, 221.00,Countrystyle Group,00835900,781981681,Plastic Recycling,Dry Recycling,H34SR000054019,
http://statistics.data.gov.uk/id/local-authority/29UP,Tonbridge & Malling Borough Council,3/16/2022,0022026380/1,22026380, 346.72,Dartford Borough Council,00026000,,Other Expenses,Housing Assistance,P03AD000009908,
http://statistics.data.gov.uk/id/local-authority/29UP,Tonbridge & Malling Borough Council,3/16/2022,0022026381/1,22026381, 1221.00,G2 Recruitment Solutions,01786000,,Temporary Staff,Env Hlth & Hsg Sals&Overheads,D01AVDV0711300,
http://statistics.data.gov.uk/id/local-authority/29UP,Tonbridge & Malling Borough Council,3/16/2022,0022026382/1,22026382, 763.31,G2 Recruitment Solutions,01786000,,Temporary Staff,Env Hlth & Hsg Sals&Overheads,D01AVDV0711300,
http://statistics.data.gov.uk/id/local-authority/29UP,Tonbridge & Malling Borough Council,3/16/2022,0022026383/1,22026383, 3178.00,House to Home Lettings Ltd ,01647600,,Temporary Accommodation,Homelessness,C01AA000044051,
http://statistics.data.gov.uk/id/local-authority/29UP,Tonbridge & Malling Borough Council,3/16/2022,0022026384/1,22026384, 1210.30,Independent Reviews Ltd,01657100,,Temporary Staff,Env Hlth & Hsg Sals&Overheads,D01AVDV0711300,
http://statistics.data.gov.uk/id/local-authority/29UP,Tonbridge & Malling Borough Council,3/16/2022,0022026385/1,22026385, 19.50,KCS,00054200,,Abatement Initiatives,Street Scene,H23SD000044006,220003206
http://statistics.data.gov.uk/id/local-authority/29UP,Tonbridge & Malling Borough Council,3/16/2022,0022026385/2,22026385, 2.95,KCS,00054200,,Abatement Initiatives,Street Scene,H23SD000044006,220003206
http://statistics.data.gov.uk/id/local-authority/29UP,Tonbridge & Malling Borough Council,3/16/2022,0022026386/1,22026386, 6027.00,Kent Accommodation Ltd,01722000,,Temporary Accommodation,Homelessness,C01AA000044051,
http://statistics.data.gov.uk/id/local-authority/29UP,Tonbridge & Malling Borough Council,3/16/2022,0022026387/1,22026387, 868.00,Kent Property Services,01722500,,Temporary Accommodation,Homelessness,C01AA000044051,
http://statistics.data.gov.uk/id/local-authority/29UP,Tonbridge & Malling Borough Council,3/16/2022,0022026388/1,22026388, 11093.00,Less Homeless Ltd,01489300,,Temporary Accommodation,Homelessness,C01AA000044051,
http://statistics.data.gov.uk/id/local-authority/29UP,Tonbridge & Malling Borough Council,3/16/2022,0022026389/1,22026389, 2519.40,Lucy and Martin Recycling LTD,01694200,,Vehicle Licences,Dry Recycling,H34SR000030105,
http://statistics.data.gov.uk/id/local-authority/29UP,Tonbridge & Malling Borough Council,3/16/2022,0022026390/1,22026390, 8050.00,Premier Property Providers,01785400,,Temporary Accommodation,Homelessness,C01AA000044051,
http://statistics.data.gov.uk/id/local-authority/29UP,Tonbridge & Malling Borough Council,3/16/2022,0022026391/1,22026391, 8640.00,Simon Niblett Lettings,00072600,,Temporary Accommodation,Homelessness,C01AA000044051,
http://statistics.data.gov.uk/id/local-authority/29UP,Tonbridge & Malling Borough Council,3/16/2022,0022026392/1,22026392, 2970.00,Simon Niblett Lettings,00072600,,Temporary Accommodation,Homelessness,C01AA000044051,
http://statistics.data.gov.uk/id/local-authority/29UP,Tonbridge & Malling Borough Council,3/16/2022,0022026393/1,22026393, 72.25,South East Water Ltd,01330300,,Water Sampling,Environmental Protection,H32SN000054010,
http://statistics.data.gov.uk/id/local-authority/29UP,Tonbridge & Malling Borough Council,3/16/2022,0022026394/1,22026394, 337.88,Specialist Hygiene Services,01466100,,Cleaning & Domestic Supplies,Haysden Country Park,B22LC000026001,
http://statistics.data.gov.uk/id/local-authority/29UP,Tonbridge & Malling Borough Council,3/16/2022,0022026394/2,22026394, 4546.00,Specialist Hygiene Services,01466100,,Contract Payments,Public Conveniences,H22SC000054001,
http://statistics.data.gov.uk/id/local-authority/29UP,Tonbridge & Malling Borough Council,3/16/2022,0022026395/1,22026395, 3982.50,Specialist Hygiene Services,01466100,,Contract Payments,Public Conveniences,H22SC000054001,
http://statistics.data.gov.uk/id/local-authority/29UP,Tonbridge & Malling Borough Council,3/16/2022,0022026396/1,22026396, 53.00,Specialist Hygiene Services,01466100,,Cleaning & Domestic Supplies,Haysden Country Park,B22LC000026001,
http://statistics.data.gov.uk/id/local-authority/29UP,Tonbridge & Malling Borough Council,3/16/2022,0022026396/2,22026396, 4062.00,Specialist Hygiene Services,01466100,,Contract Payments,Public Conveniences,H22SC000054001,
http://statistics.data.gov.uk/id/local-authority/29UP,Tonbridge & Malling Borough Council,3/16/2022,0022026397/1,22026397, 89.40,Specialist Hygiene Services,01466100,,Cleaning & Domestic Supplies,Haysden Country Park,B22LC000026001,
http://statistics.data.gov.uk/id/local-authority/29UP,Tonbridge & Malling Borough Council,3/16/2022,0022026397/2,22026397, 3995.75,Specialist Hygiene Services,01466100,,Contract Payments,Public Conveniences,H22SC000054001,
http://statistics.data.gov.uk/id/local-authority/29UP,Tonbridge & Malling Borough Council,3/16/2022,0022026398/1,22026398, 4396.00,Simply Rented Ltd ,01691400,,Temporary Accommodation,Homelessness,C01AA000044051,
http://statistics.data.gov.uk/id/local-authority/29UP,Tonbridge & Malling Borough Council,3/16/2022,0022026399/1,22026399, 2011.20,The Care Group-Housing & Care Trust,01699600,,Temporary Accommodation,Homelessness,C01AA000044051,
http://statistics.data.gov.uk/id/local-authority/29UP,Tonbridge & Malling Borough Council,3/16/2022,0022026400/1,22026400, 26332.50,Social & Community Care,01768400,,Temporary Accommodation,Homelessness,C01AA000044051,
http://statistics.data.gov.uk/id/local-authority/29UP,Tonbridge & Malling Borough Council,3/16/2022,0022026401/1,22026401, 14451.00,SPA CAFFE LIMITED,00127100,,Temporary Accommodation,Homelessness,C01AA000044051,
http://statistics.data.gov.uk/id/local-authority/29UP,Tonbridge & Malling Borough Council,3/16/2022,0022026402/1,22026402, 1239.50,Vivid Resourcing,01773700,,Temporary Staff,Env Hlth & Hsg Sals&Overheads,D01AVDV0711300,
http://statistics.data.gov.uk/id/local-authority/29UP,Tonbridge & Malling Borough Council,3/16/2022,0022026403/1,22026403, 1504.13,Ward Security LTD,01490000,,Dog Warden,Street Scene,H23SD000044100,
http://statistics.data.gov.uk/id/local-authority/29UP,Tonbridge & Malling Borough Council,3/16/2022,0022026404/3,22026404, 112.46,British Gas,01148500,,Electricity,Homelessness,C01AAMAUN21002,
http://statistics.data.gov.uk/id/local-authority/29UP,Tonbridge & Malling Borough Council,3/16/2022,0022026405/3,22026405, 1221.00,G2 Recruitment Solutions,01786000,,Temporary Staff,Env Hlth & Hsg Sals&Overheads,D01AVDV0711300,
http://statistics.data.gov.uk/id/local-authority/29UP,Tonbridge & Malling Borough Council,3/16/2022,0031018533/3,31018533, 2773.74,CDER Group,01773300,,Adjudication & Enforcement Ser,Parking Off-Street,E10HA000044230,
http://statistics.data.gov.uk/id/local-authority/29UP,Tonbridge & Malling Borough Council,3/16/2022,0031018534/1,31018534, 178.00,Chillmech Limited,00978700,,CCTV Monitoring Station,Security Services Management,E09GA000051020,310042714
http://statistics.data.gov.uk/id/local-authority/29UP,Tonbridge & Malling Borough Council,3/16/2022,0031018535/1,31018535, 1440.79,Chroma Vision Ltd,00891600,,CCTV Monitoring Station,Security Services Management,E09GA000051020,310042788
http://statistics.data.gov.uk/id/local-authority/29UP,Tonbridge & Malling Borough Council,3/16/2022,0031018536/1,31018536, 15046.08,G & J Steele,01835500,,Other Expenses,Car Park Imp Rolling Programme,P01AB000009908,310042789
http://statistics.data.gov.uk/id/local-authority/29UP,Tonbridge & Malling Borough Council,3/16/2022,0031018536/2,31018536, 3000.00,G & J Steele,01835500,,Other Expenses,Car Park Imp Rolling Programme,P01AB000009908,310042789
http://statistics.data.gov.uk/id/local-authority/29UP,Tonbridge & Malling Borough Council,3/16/2022,0031018538/1,31018538, 2656.46,SKF Contractors Ltd,00092000,,Repair & Mtce of Fixed Plant,Boro Highways & Emergency Oper,E01AA000020501,310042794
http://statistics.data.gov.uk/id/local-authority/29UP,Tonbridge & Malling Borough Council,3/16/2022,0031018538/2,31018538, 468.79,SKF Contractors Ltd,00092000,,Purchases,Boro Highways & Emergency Oper,E01AA000040101,310042794
http://statistics.data.gov.uk/id/local-authority/29UP,Tonbridge & Malling Borough Council,3/16/2022,0031018539/3,31018539, 37.99,B&Q/Screwfix Direct(TradeUKAccount),00141300,,Purchases,Boro Highways & Emergency Oper,E01AA000040101,
http://statistics.data.gov.uk/id/local-authority/29UP,Tonbridge & Malling Borough Council,3/16/2022,0031018539/4,31018539, 38.32,B&Q/Screwfix Direct(TradeUKAccount),00141300,,Purchases,Boro Highways & Emergency Oper,E01AA000040101,
http://statistics.data.gov.uk/id/local-authority/29UP,Tonbridge & Malling Borough Council,3/16/2022,0031018540/3,31018540, 26.05,B&Q/Screwfix Direct(TradeUKAccount),00141300,,Purchases,Boro Highways & Emergency Oper,E01AA000040101,
http://statistics.data.gov.uk/id/local-authority/29UP,Tonbridge & Malling Borough Council,3/16/2022,0032009438/1,32009438, 139.23,KM Media Group Ltd,00053900,,Advertising General,Development Management,A01ABZ99944216,320003384
http://statistics.data.gov.uk/id/local-authority/29UP,Tonbridge & Malling Borough Council,3/16/2022,0032009442/3,32009442, 3029.57,G2 Recruitment Solutions,01786000,,Temporary Staff,Planning Sals&Overheads,D01AJDJ0111300,
http://statistics.data.gov.uk/id/local-authority/29UP,Tonbridge & Malling Borough Council,3/16/2022,0032009443/3,32009443, 1665.00,The Oyster Partnership,01196400,,Temporary Staff,Planning Sals&Overheads,D01AJDJ0111300,
http://statistics.data.gov.uk/id/local-authority/29UP,Tonbridge & Malling Borough Council,3/16/2022,0032009444/3,32009444, 1526.80,The Oyster Partnership,01196400,,Temporary Staff,Planning Sals&Overheads,D01AJDJ0111300,
http://statistics.data.gov.uk/id/local-authority/29UP,Tonbridge & Malling Borough Council,3/16/2022,0032009445/3,32009445, 1268.00,Tunbridge Wells Borough Council,00844600,,Temporary Staff,Planning Sals&Overheads,D01AJDJ0311300,
http://statistics.data.gov.uk/id/local-authority/29UP,Tonbridge & Malling Borough Council,3/16/2022,0041034066/3,41034066, 507.38,KH Recruitment Ltd,01738900,,Temporary Staff,Finance Sals&Overheads,D01AFDF1111300,
http://statistics.data.gov.uk/id/local-authority/29UP,Tonbridge & Malling Borough Council,3/16/2022,0041034068/3,41034068, 1422.00,The Oyster Partnership,01196400,,Temporary Staff,Finance Sals&Overheads,D01AFDF1111300,
http://statistics.data.gov.uk/id/local-authority/29UP,Tonbridge & Malling Borough Council,3/16/2022,0041034069/3,41034069, 537.23,Maidstone Borough Council,01173700,,Bailiffs Commission,Local Revenue & NNDR Collect,D41QA000044075,
http://statistics.data.gov.uk/id/local-authority/29UP,Tonbridge & Malling Borough Council,3/16/2022,0041034070/3,41034070, 2907.80,Maidstone Borough Council,01173700,,Bailiffs Commission,Local Revenue & NNDR Collect,D41QA000044075,
http://statistics.data.gov.uk/id/local-authority/29UP,Tonbridge & Malling Borough Council,3/16/2022,0041034071/3,41034071, 9458.08,Rundle & Co Ltd,00087200,,Bailiffs Commission,Local Revenue & NNDR Collect,D41QA000044075,
http://statistics.data.gov.uk/id/local-authority/29UP,Tonbridge & Malling Borough Council,3/16/2022,0041034072/3,41034072, 39.19,Rundle & Co Ltd,00087200,,Bailiffs Commission,Local Revenue & NNDR Collect,D41QA000044075,
http://statistics.data.gov.uk/id/local-authority/29UP,Tonbridge & Malling Borough Council,3/16/2022,0041034073/3,41034073, 925.00,Morgan Hunt UK Ltd,01086900,,Temporary Staff,Finance Sals&Overheads,D01AFDF1111300,
http://statistics.data.gov.uk/id/local-authority/29UP,Tonbridge & Malling Borough Council,3/16/2022,0041034074/3,41034074, 980.50,Morgan Hunt UK Ltd,01086900,,Temporary Staff,Finance Sals&Overheads,D01AFDF1111300,
http://statistics.data.gov.uk/id/local-authority/29UP,Tonbridge & Malling Borough Council,3/16/2022,0041034075/1,41034075, 5500.00,NEC Software Solutions UK Ltd,01073900,202159745,Software Enhancement,Local Revenue & NNDR Collect,D41QA000044063,410032155
http://statistics.data.gov.uk/id/local-authority/29UP,Tonbridge & Malling Borough Council,3/16/2022,0041034076/1,41034076, 725.00,NEC Software Solutions UK Ltd,01073900,202159745,Software Enhancement,Local Revenue & NNDR Collect,D41QA000044063,410032155
http://statistics.data.gov.uk/id/local-authority/29UP,Tonbridge & Malling Borough Council,3/16/2022,0041034077/2,41034077, 692029.29,"Dep for Business, Energy & Industial Str",01793500,,Payment re Prev Yrs Cred Acc,Sundry Creditors Finance,J80TF000001101,
http://statistics.data.gov.uk/id/local-authority/29UP,Tonbridge & Malling Borough Council,3/16/2022,0041034086/1,41034086, 175.00,Irrv,00050300,,Reference Books & Publications,Local Revenue & NNDR Collect,D41QA000043010,410032161
http://statistics.data.gov.uk/id/local-authority/29UP,Tonbridge & Malling Borough Council,3/16/2022,0041034087/1,41034087, 160.00,Irrv,00050300,,Reference Books & Publications,Local Revenue & NNDR Collect,D41QA000043010,410032160
http://statistics.data.gov.uk/id/local-authority/29UP,Tonbridge & Malling Borough Council,3/16/2022,0051008666/1,51008666, 238.80,REDACTED PERSONAL DATA,01804200,,Ext Fees/Prof & Tech,Training,D10DCDJ0313561,
http://statistics.data.gov.uk/id/local-authority/29UP,Tonbridge & Malling Borough Council,3/16/2022,0051008667/1,51008667, 450.00,Mallard Consultancy Ltd,01528600,,Ext Fees/Prof & Tech,Training,D10DCDR0413561,510010553
http://statistics.data.gov.uk/id/local-authority/29UP,Tonbridge & Malling Borough Council,3/16/2022,0051008668/1,51008668, 120.00,LABC Training,01180300,,Ext Fees/Prof & Tech,Training,D10DCDJ0213561,510010560
http://statistics.data.gov.uk/id/local-authority/29UP,Tonbridge & Malling Borough Council,3/16/2022,0051008669/1,51008669, 120.00,LABC Training,01180300,,Ext Fees/Prof & Tech,Training,D10DCDJ0213561,510010561
http://statistics.data.gov.uk/id/local-authority/29UP,Tonbridge & Malling Borough Council,3/16/2022,0051008670/1,51008670, 75.00,LABC Training,01180300,,Ext Fees/Prof & Tech,Training,D10DCDJ0213561,510010562
http://statistics.data.gov.uk/id/local-authority/29UP,Tonbridge & Malling Borough Council,3/16/2022,0051008671/1,51008671, 350.00,Firebrand Training Ltd,01716800,,Ext Fees/IT Training,Training,D10DCDN0113564,510010559
http://statistics.data.gov.uk/id/local-authority/29UP,Tonbridge & Malling Borough Council,3/16/2022,0051008672/1,51008672, 350.00,Firebrand Training Ltd,01716800,,Ext Fees/IT Training,Training,D10DCDN0113564,510010558
http://statistics.data.gov.uk/id/local-authority/29UP,Tonbridge & Malling Borough Council,3/16/2022,0051008673/1,51008673, 350.00,Firebrand Training Ltd,01716800,,Ext Fees/IT Training,Training,D10DCDN0113564,510010557
http://statistics.data.gov.uk/id/local-authority/29UP,Tonbridge & Malling Borough Council,3/16/2022,0051008674/1,51008674, 700.00,Firebrand Training Ltd,01716800,,Ext Fees/IT Training,Training,D10DCDN0113564,510010556
http://statistics.data.gov.uk/id/local-authority/29UP,Tonbridge & Malling Borough Council,3/17/2022,0041034092/1,41034092, 97.68,Utax UK Ltd,01658500,642302771,Copy Charges,Multi Function Devices,D22GB000040125,
http://statistics.data.gov.uk/id/local-authority/29UP,Tonbridge & Malling Borough Council,3/18/2022,0041034095/1,41034095, 191.35,National Westminster Bank Plc,00069400,,Bank Charges,Banking Arrangements,D43QK000044222,
http://statistics.data.gov.uk/id/local-authority/29UP,Tonbridge & Malling Borough Council,3/22/2022,0041034111/1,41034111, 2371.00,H.M. Revenue & Customs,00048400,,Levy Payment,Apprenticeship Scheme,D10DE000013700,
http://statistics.data.gov.uk/id/local-authority/29UP,Tonbridge & Malling Borough Council,3/22/2022,0041034115/1,41034115, 20.03,WorldPay Ltd,01402000,991280207,Credit Card Commission,Banking Arrangements,D43QK000044082,
http://statistics.data.gov.uk/id/local-authority/29UP,Tonbridge & Malling Borough Council,3/23/2022,0011044072/1,11044072, 365.00,Broadwater Technologies,01534500,,BRREP Servicing - pool plant,Tonbridge Swimming Pool,M15HBP20001910,110069453
http://statistics.data.gov.uk/id/local-authority/29UP,Tonbridge & Malling Borough Council,3/23/2022,0011044073/1,11044073, 637.00,BML Building Services Ltd,01505000,,BRREP Response - General,Larkfield Leisure Centre,M15HDP50001997,110069440
http://statistics.data.gov.uk/id/local-authority/29UP,Tonbridge & Malling Borough Council,3/23/2022,0011044074/1,11044074, 1290.00,BML Building Services Ltd,01505000,,BRREP Fence/Compound Repairs,Larkfield Leisure Centre,M15HDP20001945,110069436
http://statistics.data.gov.uk/id/local-authority/29UP,Tonbridge & Malling Borough Council,3/23/2022,0011044075/1,11044075, 2122.00,BML Building Services Ltd,01505000,,BRREP Response - General,Larkfield Leisure Centre,M15HDP50001997,110069436
http://statistics.data.gov.uk/id/local-authority/29UP,Tonbridge & Malling Borough Council,3/23/2022,0011044076/1,11044076, 2588.00,Chubb Fire & Security Ltd,00115400,174605362,BRREP Servicing-IntruderAlarm,Angel Centre,M15HAP20001939,110069404
http://statistics.data.gov.uk/id/local-authority/29UP,Tonbridge & Malling Borough Council,3/23/2022,0011044077/1,11044077, 474.00,DORMA UK Ltd,00413500,549361128,BRREP Servicing-entrance doors,Angel Centre,M15HAP20001927,110069208
http://statistics.data.gov.uk/id/local-authority/29UP,Tonbridge & Malling Borough Council,3/23/2022,0011044078/1,11044078, 9.90,KCS,00054200,,Stationery,Admin & Prop Sals&Overheads,D01AA000043003,110069459
http://statistics.data.gov.uk/id/local-authority/29UP,Tonbridge & Malling Borough Council,3/23/2022,0011044078/10,11044078, 159.00,KCS,00054200,,Stationery,Admin & Prop Sals&Overheads,D01AA000043003,110069459
http://statistics.data.gov.uk/id/local-authority/29UP,Tonbridge & Malling Borough Council,3/23/2022,0011044078/11,11044078, 34.65,KCS,00054200,,Stationery,Admin & Prop Sals&Overheads,D01AA000043003,110069459
http://statistics.data.gov.uk/id/local-authority/29UP,Tonbridge & Malling Borough Council,3/23/2022,0011044078/12,11044078, 2.85,KCS,00054200,,Stationery,Admin & Prop Sals&Overheads,D01AA000043003,110069459
http://statistics.data.gov.uk/id/local-authority/29UP,Tonbridge & Malling Borough Council,3/23/2022,0011044078/13,11044078, 19.90,KCS,00054200,,Stationery,Admin & Prop Sals&Overheads,D01AA000043003,110069459
http://statistics.data.gov.uk/id/local-authority/29UP,Tonbridge & Malling Borough Council,3/23/2022,0011044078/14,11044078, 29.85,KCS,00054200,,Stationery,Admin & Prop Sals&Overheads,D01AA000043003,110069459
http://statistics.data.gov.uk/id/local-authority/29UP,Tonbridge & Malling Borough Council,3/23/2022,0011044078/15,11044078, 49.50,KCS,00054200,,Stationery,Admin & Prop Sals&Overheads,D01AA000043003,110069459
http://statistics.data.gov.uk/id/local-authority/29UP,Tonbridge & Malling Borough Council,3/23/2022,0011044078/16,11044078, 5.96,KCS,00054200,,Stationery,Admin & Prop Sals&Overheads,D01AA000043003,110069459
http://statistics.data.gov.uk/id/local-authority/29UP,Tonbridge & Malling Borough Council,3/23/2022,0011044078/2,11044078, 8.95,KCS,00054200,,Stationery,Admin & Prop Sals&Overheads,D01AA000043003,110069459
http://statistics.data.gov.uk/id/local-authority/29UP,Tonbridge & Malling Borough Council,3/23/2022,0011044078/3,11044078, 11.99,KCS,00054200,,Stationery,Admin & Prop Sals&Overheads,D01AA000043003,110069459
http://statistics.data.gov.uk/id/local-authority/29UP,Tonbridge & Malling Borough Council,3/23/2022,0011044078/4,11044078, 23.98,KCS,00054200,,Stationery,Admin & Prop Sals&Overheads,D01AA000043003,110069459
http://statistics.data.gov.uk/id/local-authority/29UP,Tonbridge & Malling Borough Council,3/23/2022,0011044078/5,11044078, 63.60,KCS,00054200,,Stationery,Admin & Prop Sals&Overheads,D01AA000043003,110069459
http://statistics.data.gov.uk/id/local-authority/29UP,Tonbridge & Malling Borough Council,3/23/2022,0011044078/6,11044078, 23.70,KCS,00054200,,Stationery,Admin & Prop Sals&Overheads,D01AA000043003,110069459
http://statistics.data.gov.uk/id/local-authority/29UP,Tonbridge & Malling Borough Council,3/23/2022,0011044078/7,11044078, 59.50,KCS,00054200,,Stationery,Admin & Prop Sals&Overheads,D01AA000043003,110069459
http://statistics.data.gov.uk/id/local-authority/29UP,Tonbridge & Malling Borough Council,3/23/2022,0011044078/8,11044078, 59.50,KCS,00054200,,Stationery,Admin & Prop Sals&Overheads,D01AA000043003,110069459
http://statistics.data.gov.uk/id/local-authority/29UP,Tonbridge & Malling Borough Council,3/23/2022,0011044078/9,11044078, 89.50,KCS,00054200,,Stationery,Admin & Prop Sals&Overheads,D01AA000043003,110069459
http://statistics.data.gov.uk/id/local-authority/29UP,Tonbridge & Malling Borough Council,3/23/2022,0011044079/1,11044079, 24.00,Edmundson Electrical Ltd,01210900,,Cleaning & Domestic Supplies,Cleaning & Security,D21FD000026001,110069387
http://statistics.data.gov.uk/id/local-authority/29UP,Tonbridge & Malling Borough Council,3/23/2022,0011044079/2,11044079, 37.00,Edmundson Electrical Ltd,01210900,,Cleaning & Domestic Supplies,Cleaning & Security,D21FD000026001,110069387
http://statistics.data.gov.uk/id/local-authority/29UP,Tonbridge & Malling Borough Council,3/23/2022,0011044080/1,11044080, 490.00,Envirocure Limited,00963300,,BRREP Legionella Certification,PC - General,M15JAP30001995,110069427
http://statistics.data.gov.uk/id/local-authority/29UP,Tonbridge & Malling Borough Council,3/23/2022,0011044081/1,11044081, 199.99,KCS,00054200,,Purchases,Tonbridge Castle Gatehouse,B40TG000040101,110069412
http://statistics.data.gov.uk/id/local-authority/29UP,Tonbridge & Malling Borough Council,3/23/2022,0011044082/1,11044082, 100.00,BML Building Services Ltd,01505000,,BRREP Response - General,Pleasure Grounds & Open Spaces,M15HHP50001997,110069457
http://statistics.data.gov.uk/id/local-authority/29UP,Tonbridge & Malling Borough Council,3/23/2022,0011044083/1,11044083, 10000.00,Waterlink Services - South East Water,00496500,,BRREP Response - General,Tonbridge Farm Pavillion,M15HGP50001997,110069371
http://statistics.data.gov.uk/id/local-authority/29UP,Tonbridge & Malling Borough Council,3/23/2022,0011044083/2,11044083, 11965.00,Waterlink Services - South East Water,00496500,,BRREP Response - General,Tonbridge Farm Pavillion,M15HGP50001997,110069371
http://statistics.data.gov.uk/id/local-authority/29UP,Tonbridge & Malling Borough Council,3/23/2022,0011044084/1,11044084, 441.00,Bevan Brittan LLP,01096600,,Legal Fees,Legal Sals&Overheads,D01ARDR0044002,
http://statistics.data.gov.uk/id/local-authority/29UP,Tonbridge & Malling Borough Council,3/23/2022,0011044085/1,11044085, 360.00,G C Industrial Heating Services,00578100,,BRREP Response - General,Larkfield Leisure Centre,M15HDP50001997,
http://statistics.data.gov.uk/id/local-authority/29UP,Tonbridge & Malling Borough Council,3/23/2022,0011044086/1,11044086, 294.67,KCS,00054200,,Estate Management Charge,Land Review,D40PS000020400,
http://statistics.data.gov.uk/id/local-authority/29UP,Tonbridge & Malling Borough Council,3/23/2022,0011044087/1,11044087, 163.21,Chubb Fire & Security Ltd,00115400,174605362,BRREP Servicing-IntruderAlarm,Angel Centre,M15HAP20001939,
http://statistics.data.gov.uk/id/local-authority/29UP,Tonbridge & Malling Borough Council,3/23/2022,0011044088/1,11044088, 250.00,BML Building Services Ltd,01505000,,BRREP Response - General,Tonbridge Castle Gatehouse,M15HKP50001997,
http://statistics.data.gov.uk/id/local-authority/29UP,Tonbridge & Malling Borough Council,3/23/2022,0011044089/1,11044089, 188.00,BML Building Services Ltd,01505000,,BRREP Window/door repairs,PC - General,M15JAP20001919,
http://statistics.data.gov.uk/id/local-authority/29UP,Tonbridge & Malling Borough Council,3/23/2022,0011044090/1,11044090, 178.00,BML Building Services Ltd,01505000,,BRREP Response - General,Larkfield Leisure Centre,M15HDP50001997,
http://statistics.data.gov.uk/id/local-authority/29UP,Tonbridge & Malling Borough Council,3/23/2022,0011044091/1,11044091, 4552.15,KCS,00054200,,Gas,Buildings,D21FEDD1021003,
http://statistics.data.gov.uk/id/local-authority/29UP,Tonbridge & Malling Borough Council,3/23/2022,0011044092/1,11044092, 1460.21,KCS,00054200,,Gas,Buildings,D21FEDD6021003,
http://statistics.data.gov.uk/id/local-authority/29UP,Tonbridge & Malling Borough Council,3/23/2022,0011044093/1,11044093, 11.46,B&Q/Screwfix Direct(TradeUKAccount),00141300,,Protective Clothing,Admin & Prop Sals&Overheads,D01AA000042001,
http://statistics.data.gov.uk/id/local-authority/29UP,Tonbridge & Malling Borough Council,3/23/2022,0011044094/1,11044094, 296.25,K T Fire Protection Ltd,00057000,,BRREP Servicing - FireAlarmSys,Tonbridge Swimming Pool,M15HBP20001937,
http://statistics.data.gov.uk/id/local-authority/29UP,Tonbridge & Malling Borough Council,3/23/2022,0011044095/1,11044095, 250.00,BML Building Services Ltd,01505000,,BRREP Drain and gully cleaning,PC - General,M15JAP20001975,
http://statistics.data.gov.uk/id/local-authority/29UP,Tonbridge & Malling Borough Council,3/23/2022,0011044096/1,11044096, 408.00,BML Building Services Ltd,01505000,,BRREP Drain and gully cleaning,PC - General,M15JAP20001975,
http://statistics.data.gov.uk/id/local-authority/29UP,Tonbridge & Malling Borough Council,3/23/2022,0011044097/1,11044097, 1160.09,KH Recruitment Ltd,01738900,,Temporary Staff,Personnel Sals&Overheads,D01ABDB0311300,
http://statistics.data.gov.uk/id/local-authority/29UP,Tonbridge & Malling Borough Council,3/23/2022,0011044099/1,11044099, 1500.00,Cornerstones Barristers,01359100,,Legal Fees,Legal Sals&Overheads,D01ARDR0044002,
http://statistics.data.gov.uk/id/local-authority/29UP,Tonbridge & Malling Borough Council,3/23/2022,0011044100/7,11044100, 12181.24,Partnership Regeneration Development Ltd,01822400,,Re-opening High Streets,Eco Dev & Reg Gen Bus Support,D52TDCV1948076,
http://statistics.data.gov.uk/id/local-authority/29UP,Tonbridge & Malling Borough Council,3/23/2022,0011044101/1,11044101, 6090.62,Partnership Regeneration Development Ltd,01822400,,Re-opening High Streets,Eco Dev & Reg Gen Bus Support,D52TDCV1948076,
http://statistics.data.gov.uk/id/local-authority/29UP,Tonbridge & Malling Borough Council,3/23/2022,0011044102/1,11044102, 1097.17,KH Recruitment Ltd,01738900,,Temporary Staff,Personnel Sals&Overheads,D01ABDB0311300,
http://statistics.data.gov.uk/id/local-authority/29UP,Tonbridge & Malling Borough Council,3/23/2022,0011044103/1,11044103, 585.00,Venn Group Ltd,00914300,,Temporary Staff,Legal Sals&Overheads,D01ARDR0011300,
http://statistics.data.gov.uk/id/local-authority/29UP,Tonbridge & Malling Borough Council,3/23/2022,0011044104/1,11044104, 573.75,Venn Group Ltd,00914300,,Temporary Staff,Legal Sals&Overheads,D01ARDR0011300,
http://statistics.data.gov.uk/id/local-authority/29UP,Tonbridge & Malling Borough Council,3/23/2022,0011044105/1,11044105, 8000.00,Kent County Council,00322500,,H&CG Fund Council Specific,Eco Dev & Reg Gen Bus Support,D52TD000047027,
http://statistics.data.gov.uk/id/local-authority/29UP,Tonbridge & Malling Borough Council,3/23/2022,0011044106/1,11044106, 2452.61,Chubb Fire & Security Ltd,00115400,174605362,BRREP Servicing-IntruderAlarm,Angel Centre,M15HAP20001939,110069468
http://statistics.data.gov.uk/id/local-authority/29UP,Tonbridge & Malling Borough Council,3/23/2022,0011044107/1,11044107, 5000.00,West Malling Flowers,01337200,994405587,H&CG Fund Council Specific,Eco Dev & Reg Gen Bus Support,D52TD000047027,
http://statistics.data.gov.uk/id/local-authority/29UP,Tonbridge & Malling Borough Council,3/23/2022,0011044108/1,11044108, 941.40,Venn Group Ltd,00914300,,Temporary Staff,Legal Sals&Overheads,D01ARDR0011300,
http://statistics.data.gov.uk/id/local-authority/29UP,Tonbridge & Malling Borough Council,3/23/2022,0011044109/1,11044109, 1134.00,Venn Group Ltd,00914300,,Temporary Staff,Legal Sals&Overheads,D01ARDR0011300,
http://statistics.data.gov.uk/id/local-authority/29UP,Tonbridge & Malling Borough Council,3/23/2022,0011044110/1,11044110, 1134.00,Venn Group Ltd,00914300,,Temporary Staff,Legal Sals&Overheads,D01ARDR0011300,
http://statistics.data.gov.uk/id/local-authority/29UP,Tonbridge & Malling Borough Council,3/23/2022,0011044111/1,11044111, 17500.00,The East Malling Centre,01168000,,Charitable / Voluntary Organis,Grants & Payments to Vol Orgn,D37PACV1947005,
http://statistics.data.gov.uk/id/local-authority/29UP,Tonbridge & Malling Borough Council,3/23/2022,0011044112/1,11044112, 17500.00,Tonbridge Baptist Church,00401200,,Charitable / Voluntary Organis,Grants & Payments to Vol Orgn,D37PACV1947005,
http://statistics.data.gov.uk/id/local-authority/29UP,Tonbridge & Malling Borough Council,3/23/2022,0011044113/1,11044113, 116.67,Hadlow Manor Hotel,00885000,,Hospitality,Mayoral & Other Member Support,D29LX000048003,
http://statistics.data.gov.uk/id/local-authority/29UP,Tonbridge & Malling Borough Council,3/23/2022,0012008288/1,12008288, 703.45,Bytes Software Services,01676900,823818226,Software Hire & Support,Information Technology,D27KD000044059,410032157
http://statistics.data.gov.uk/id/local-authority/29UP,Tonbridge & Malling Borough Council,3/23/2022,0012008289/1,12008289, 372.00,Zoho Corporation BV,01796100,,Subscriptions,Information Technology,D27KD000047002,410032158
http://statistics.data.gov.uk/id/local-authority/29UP,Tonbridge & Malling Borough Council,3/23/2022,0012008290/3,12008290, 14928.51,Phoenix Software Ltd,00077400,755349015,Software Hire & Support,Information Technology,D27KD000044059,
http://statistics.data.gov.uk/id/local-authority/29UP,Tonbridge & Malling Borough Council,3/23/2022,0012008291/1,12008291, 240.00,NEC Software Solutions UK Ltd,01073900,202159745,Software Hire & Support,Information Technology,D27KD000044059,410032138
http://statistics.data.gov.uk/id/local-authority/29UP,Tonbridge & Malling Borough Council,3/23/2022,0012008292/1,12008292, 666.32,NEC Software Solutions UK Ltd,01073900,202159745,Software Hire & Support,Information Technology,D27KD000044059,410032139
http://statistics.data.gov.uk/id/local-authority/29UP,Tonbridge & Malling Borough Council,3/23/2022,0012008293/1,12008293, 3.00,O2 UK Ltd,01268000,,Telephones - General,Open Spaces & Amenity Areas,B22LE000045010,
http://statistics.data.gov.uk/id/local-authority/29UP,Tonbridge & Malling Borough Council,3/23/2022,0012008293/10,12008293, 6.00,O2 UK Ltd,01268000,,Mobile Telephones,Technical Sals&Overheads,D01AEDE0145013,
http://statistics.data.gov.uk/id/local-authority/29UP,Tonbridge & Malling Borough Council,3/23/2022,0012008293/11,12008293, 9.10,O2 UK Ltd,01268000,,Mobile Telephones,Technical Sals&Overheads,D01AEDE0245013,
http://statistics.data.gov.uk/id/local-authority/29UP,Tonbridge & Malling Borough Council,3/23/2022,0012008293/12,12008293, 39.50,O2 UK Ltd,01268000,,Mobile Telephones,Technical Sals&Overheads,D01AEDE0445013,
http://statistics.data.gov.uk/id/local-authority/29UP,Tonbridge & Malling Borough Council,3/23/2022,0012008293/13,12008293, 3.00,O2 UK Ltd,01268000,,Mobile Telephones,Technical Sals&Overheads,D01AEDE0545013,
http://statistics.data.gov.uk/id/local-authority/29UP,Tonbridge & Malling Borough Council,3/23/2022,0012008293/14,12008293, 12.00,O2 UK Ltd,01268000,,Mobile Telephones,Finance Sals&Overheads,D01AFDF0045013,
http://statistics.data.gov.uk/id/local-authority/29UP,Tonbridge & Malling Borough Council,3/23/2022,0012008293/15,12008293, 6.00,O2 UK Ltd,01268000,,Mobile Telephones,Finance Sals&Overheads,D01AFDF0945013,
http://statistics.data.gov.uk/id/local-authority/29UP,Tonbridge & Malling Borough Council,3/23/2022,0012008293/16,12008293, 12.00,O2 UK Ltd,01268000,,Mobile Telephones,St Scene & Leis Sals&Overheads,D01AGDG0045013,
http://statistics.data.gov.uk/id/local-authority/29UP,Tonbridge & Malling Borough Council,3/23/2022,0012008293/17,12008293, 6.00,O2 UK Ltd,01268000,,Mobile Telephones,St Scene & Leis Sals&Overheads,D01AGDG0145013,
http://statistics.data.gov.uk/id/local-authority/29UP,Tonbridge & Malling Borough Council,3/23/2022,0012008293/18,12008293, 9.00,O2 UK Ltd,01268000,,Mobile Telephones,St Scene & Leis Sals&Overheads,D01AGDG0445013,
http://statistics.data.gov.uk/id/local-authority/29UP,Tonbridge & Malling Borough Council,3/23/2022,0012008293/19,12008293, 33.00,O2 UK Ltd,01268000,,Mobile Telephones,St Scene & Leis Sals&Overheads,D01AGDG2045013,
http://statistics.data.gov.uk/id/local-authority/29UP,Tonbridge & Malling Borough Council,3/23/2022,0012008293/2,12008293, 6.00,O2 UK Ltd,01268000,,Telephones - General,Leybourne Lakes Country Park,B22LK000045010,
http://statistics.data.gov.uk/id/local-authority/29UP,Tonbridge & Malling Borough Council,3/23/2022,0012008293/20,12008293, 9.00,O2 UK Ltd,01268000,,Mobile Telephones,Planning Sals&Overheads,D01AJDJ0045013,
http://statistics.data.gov.uk/id/local-authority/29UP,Tonbridge & Malling Borough Council,3/23/2022,0012008293/21,12008293, 12.10,O2 UK Ltd,01268000,,Mobile Telephones,Planning Sals&Overheads,D01AJDJ0245013,
http://statistics.data.gov.uk/id/local-authority/29UP,Tonbridge & Malling Borough Council,3/23/2022,0012008293/22,12008293, 6.00,O2 UK Ltd,01268000,,Mobile Telephones,Legal Sals&Overheads,D01ARDR0045013,
http://statistics.data.gov.uk/id/local-authority/29UP,Tonbridge & Malling Borough Council,3/23/2022,0012008293/23,12008293, 12.10,O2 UK Ltd,01268000,,Mobile Telephones,Legal Sals&Overheads,D01ARDR0445013,
http://statistics.data.gov.uk/id/local-authority/29UP,Tonbridge & Malling Borough Council,3/23/2022,0012008293/24,12008293, 3.00,O2 UK Ltd,01268000,,Mobile Telephones,Legal Sals&Overheads,D01ARDR0745013,
http://statistics.data.gov.uk/id/local-authority/29UP,Tonbridge & Malling Borough Council,3/23/2022,0012008293/25,12008293, 3.00,O2 UK Ltd,01268000,,Mobile Telephones,Env Hlth & Hsg Sals&Overheads,D01AVDV0045013,
http://statistics.data.gov.uk/id/local-authority/29UP,Tonbridge & Malling Borough Council,3/23/2022,0012008293/26,12008293, 9.00,O2 UK Ltd,01268000,,Mobile Telephones,Env Hlth & Hsg Sals&Overheads,D01AVDV0145013,
http://statistics.data.gov.uk/id/local-authority/29UP,Tonbridge & Malling Borough Council,3/23/2022,0012008293/27,12008293, 6.00,O2 UK Ltd,01268000,,Mobile Telephones,Env Hlth & Hsg Sals&Overheads,D01AVDV0345013,
http://statistics.data.gov.uk/id/local-authority/29UP,Tonbridge & Malling Borough Council,3/23/2022,0012008293/28,12008293, 3.00,O2 UK Ltd,01268000,,Mobile Telephones,Env Hlth & Hsg Sals&Overheads,D01AVDV0745013,
http://statistics.data.gov.uk/id/local-authority/29UP,Tonbridge & Malling Borough Council,3/23/2022,0012008293/29,12008293, 6.00,O2 UK Ltd,01268000,,Mobile Telephones,Env Hlth & Hsg Sals&Overheads,D01AVDV0945013,
http://statistics.data.gov.uk/id/local-authority/29UP,Tonbridge & Malling Borough Council,3/23/2022,0012008293/3,12008293, 6.00,O2 UK Ltd,01268000,,Mobile Telephones,Admin & Prop Sals&Overheads,D01AADA0045013,
http://statistics.data.gov.uk/id/local-authority/29UP,Tonbridge & Malling Borough Council,3/23/2022,0012008293/30,12008293, 9.00,O2 UK Ltd,01268000,,Mobile Telephones,Customer Services,D23CS000045013,
http://statistics.data.gov.uk/id/local-authority/29UP,Tonbridge & Malling Borough Council,3/23/2022,0012008293/31,12008293, 3.00,O2 UK Ltd,01268000,,Mobile Telephones,Tonbridge Gateway,D23TG000045013,
http://statistics.data.gov.uk/id/local-authority/29UP,Tonbridge & Malling Borough Council,3/23/2022,0012008293/32,12008293, 627.00,O2 UK Ltd,01268000,,Leased Lines & Modems,Information Technology,D27KD000045011,
http://statistics.data.gov.uk/id/local-authority/29UP,Tonbridge & Malling Borough Council,3/23/2022,0012008293/33,12008293, 3.00,O2 UK Ltd,01268000,,Mobile Telephones,Mayoral & Other Member Support,D29LX000045013,
http://statistics.data.gov.uk/id/local-authority/29UP,Tonbridge & Malling Borough Council,3/23/2022,0012008293/34,12008293, 3.00,O2 UK Ltd,01268000,,Emergency Out of Hours Recharg,Refuse Collection,H20SA000045030,
http://statistics.data.gov.uk/id/local-authority/29UP,Tonbridge & Malling Borough Council,3/23/2022,0012008293/35,12008293, 3.00,O2 UK Ltd,01268000,,Emergency Out of Hours Recharg,Street Scene,H23SD000045030,
http://statistics.data.gov.uk/id/local-authority/29UP,Tonbridge & Malling Borough Council,3/23/2022,0012008293/4,12008293, 3.10,O2 UK Ltd,01268000,,Mobile Telephones,Admin & Prop Sals&Overheads,D01AADA1045013,
http://statistics.data.gov.uk/id/local-authority/29UP,Tonbridge & Malling Borough Council,3/23/2022,0012008293/5,12008293, 9.00,O2 UK Ltd,01268000,,Mobile Telephones,Admin & Prop Sals&Overheads,D01AADA1245013,
http://statistics.data.gov.uk/id/local-authority/29UP,Tonbridge & Malling Borough Council,3/23/2022,0012008293/6,12008293, 3.00,O2 UK Ltd,01268000,,Mobile Telephones,Chief Exec Sals&Overheads,D01ACDC0045013,
http://statistics.data.gov.uk/id/local-authority/29UP,Tonbridge & Malling Borough Council,3/23/2022,0012008293/7,12008293, 3.00,O2 UK Ltd,01268000,,Mobile Telephones,Chief Exec Sals&Overheads,D01ACDC0145013,
http://statistics.data.gov.uk/id/local-authority/29UP,Tonbridge & Malling Borough Council,3/23/2022,0012008293/8,12008293, 3.00,O2 UK Ltd,01268000,,Mobile Telephones,Chief Exec Sals&Overheads,D01ACDC0245013,
http://statistics.data.gov.uk/id/local-authority/29UP,Tonbridge & Malling Borough Council,3/23/2022,0012008293/9,12008293, 3.00,O2 UK Ltd,01268000,,Mobile Telephones,Technical Sals&Overheads,D01AEDE0045013,
http://statistics.data.gov.uk/id/local-authority/29UP,Tonbridge & Malling Borough Council,3/23/2022,0012008294/1,12008294, 2000.00,Phoenix Software Ltd,00077400,755349015,Consultancy Fees,Information Technology,D27KD000044011,410032108
http://statistics.data.gov.uk/id/local-authority/29UP,Tonbridge & Malling Borough Council,3/23/2022,0012008294/2,12008294, 1900.00,Phoenix Software Ltd,00077400,755349015,Consultancy Fees,Information Technology,D27KD000044011,410032108
http://statistics.data.gov.uk/id/local-authority/29UP,Tonbridge & Malling Borough Council,3/23/2022,0012008294/3,12008294, 1900.00,Phoenix Software Ltd,00077400,755349015,Consultancy Fees,Information Technology,D27KD000044011,410032108
http://statistics.data.gov.uk/id/local-authority/29UP,Tonbridge & Malling Borough Council,3/23/2022,0012008295/1,12008295, 513.00,Ferret Information Systems,01023100,,Software Hire & Support,Information Technology,D27KD000044059,410032166
http://statistics.data.gov.uk/id/local-authority/29UP,Tonbridge & Malling Borough Council,3/23/2022,0012008296/3,12008296, 169.82,British Telecommunications Plc,00012800,,Telephones - Rentals,General Admin Telephones,D24GT000045005,
http://statistics.data.gov.uk/id/local-authority/29UP,Tonbridge & Malling Borough Council,3/23/2022,0012008297/1,12008297, 12530.74,Frontier Software Plc,00231900,,Software Hire & Support,Information Technology,D27KD000044059,410032154
http://statistics.data.gov.uk/id/local-authority/29UP,Tonbridge & Malling Borough Council,3/23/2022,0012008298/1,12008298, 57.36,CCS Media Ltd,00018000,,Purchases,Information Technology,D27KD000040101,410032148
http://statistics.data.gov.uk/id/local-authority/29UP,Tonbridge & Malling Borough Council,3/23/2022,0012008298/2,12008298, 62.56,CCS Media Ltd,00018000,,Purchases,Information Technology,D27KD000040101,410032148
http://statistics.data.gov.uk/id/local-authority/29UP,Tonbridge & Malling Borough Council,3/23/2022,0012008299/1,12008299, 49.99,CCS Media Ltd,00018000,,Purchases,Information Technology,D27KD000040101,410032159
http://statistics.data.gov.uk/id/local-authority/29UP,Tonbridge & Malling Borough Council,3/23/2022,0012008299/2,12008299, 2.00,CCS Media Ltd,00018000,,Delivery Expenses,Information Technology,D27KD000044069,410032159
http://statistics.data.gov.uk/id/local-authority/29UP,Tonbridge & Malling Borough Council,3/23/2022,0012008300/1,12008300, 385.98,Vanquish Tech,01798700,,Purchases,Information Technology,D27KD000040101,410032164
http://statistics.data.gov.uk/id/local-authority/29UP,Tonbridge & Malling Borough Council,3/23/2022,0012008300/2,12008300, 5.77,Vanquish Tech,01798700,,Delivery Expenses,Information Technology,D27KD000044069,410032164
http://statistics.data.gov.uk/id/local-authority/29UP,Tonbridge & Malling Borough Council,3/23/2022,0021037826/1,21037826, 2229.99,Cater-Kwik Ltd,01265500,,Initial Furniture & Equipment,Capital Renewals Leisure,P05KGBC0209906,210056695
http://statistics.data.gov.uk/id/local-authority/29UP,Tonbridge & Malling Borough Council,3/23/2022,0021037828/3,21037828, 1700.00,My Hexagone Ltd,01291500,993770761,Initial Furniture & Equipment,Capital Renewals Leisure,P05KGBC0409906,
http://statistics.data.gov.uk/id/local-authority/29UP,Tonbridge & Malling Borough Council,3/23/2022,0021037829/1,21037829, 4000.00,Medway Valley Countryside PartnershipKCC,00780000,,Maintenance of Grounds,Countryside/Woodland Mgt,B22LG000020402,210056635
http://statistics.data.gov.uk/id/local-authority/29UP,Tonbridge & Malling Borough Council,3/23/2022,0021037830/3,21037830, 538.60,KCC - L.A.S.E.R Commercial Services ,00184300,,Electricity,Cemetery,B26MP000021002,
http://statistics.data.gov.uk/id/local-authority/29UP,Tonbridge & Malling Borough Council,3/23/2022,0021037831/1,21037831, 2170.70,Nissen (Leisure) Ltd,00591500,,Initial Furniture & Equipment,Capital Renewals Leisure,P05KGBC0209906,210056696
http://statistics.data.gov.uk/id/local-authority/29UP,Tonbridge & Malling Borough Council,3/23/2022,0021037832/1,21037832, 4000.00,Forestry First,01834900,,Re-opening High Streets,Eco Dev & Reg Gen Bus Support,D52TDCV1948076,210056678
http://statistics.data.gov.uk/id/local-authority/29UP,Tonbridge & Malling Borough Council,3/23/2022,0021037833/1,21037833, 960.00,SWS Countryside & Landscape,01567200,,Re-opening High Streets,Eco Dev & Reg Gen Bus Support,D52TDCV1948076,210056676
http://statistics.data.gov.uk/id/local-authority/29UP,Tonbridge & Malling Borough Council,3/23/2022,0021037834/1,21037834, 125.00,Highgate Planning & Development Ltd,01838600,,Application & Appeals,Development Management,A01AB000044194,320003396
http://statistics.data.gov.uk/id/local-authority/29UP,Tonbridge & Malling Borough Council,3/23/2022,0021037834/2,21037834, 875.00,Highgate Planning & Development Ltd,01838600,,Temporary Staff,Planning Sals&Overheads,D01AJDJ0111300,320003396
http://statistics.data.gov.uk/id/local-authority/29UP,Tonbridge & Malling Borough Council,3/23/2022,0021037834/3,21037834, 1125.00,Highgate Planning & Development Ltd,01838600,,Temporary Staff,Planning Sals&Overheads,D01AJDJ0111300,320003396
http://statistics.data.gov.uk/id/local-authority/29UP,Tonbridge & Malling Borough Council,3/23/2022,0021037835/1,21037835, 30.00,Kent County Council,00322500,,Tonbridge Hanging Baskets,Tonbridge Castle Grounds,B22LB000050104,
http://statistics.data.gov.uk/id/local-authority/29UP,Tonbridge & Malling Borough Council,3/23/2022,0021037835/2,21037835, 1870.00,Kent County Council,00322500,,Re-opening High Streets,Eco Dev & Reg Gen Bus Support,D52TDCV1948076,
http://statistics.data.gov.uk/id/local-authority/29UP,Tonbridge & Malling Borough Council,3/23/2022,0021037836/1,21037836, 120.39,KCC - L.A.S.E.R Commercial Services ,00184300,,Electricity,Cemetery,B26MP000021002,
http://statistics.data.gov.uk/id/local-authority/29UP,Tonbridge & Malling Borough Council,3/23/2022,0021037837/1,21037837, 395.00,Lemon Drainage Services LTD,01761600,,Sewerage Charges,Haysden Country Park,B22LC000024003,210056703
http://statistics.data.gov.uk/id/local-authority/29UP,Tonbridge & Malling Borough Council,3/23/2022,0021037837/2,21037837, 300.00,Lemon Drainage Services LTD,01761600,,Sewerage Charges,Haysden Country Park,B22LC000024003,210056703
http://statistics.data.gov.uk/id/local-authority/29UP,Tonbridge & Malling Borough Council,3/23/2022,0021037838/1,21037838, 24243.20,Arnold Tarmac Ltd,01685100,,Re-opening High Streets,Eco Dev & Reg Gen Bus Support,D52TDCV1948076,210056679
http://statistics.data.gov.uk/id/local-authority/29UP,Tonbridge & Malling Borough Council,3/23/2022,0021037839/1,21037839, 1950.00,Arnold Tarmac Ltd,01685100,,Re-opening High Streets,Eco Dev & Reg Gen Bus Support,D52TDCV1948076,210056672
http://statistics.data.gov.uk/id/local-authority/29UP,Tonbridge & Malling Borough Council,3/23/2022,0021037840/1,21037840, 24375.00,Arnold Tarmac Ltd,01685100,,Re-opening High Streets,Eco Dev & Reg Gen Bus Support,D52TDCV1948076,210056708
http://statistics.data.gov.uk/id/local-authority/29UP,Tonbridge & Malling Borough Council,3/23/2022,0022026406/1,22026406, 2937.12,Clarion Housing,01776300,,Temporary Accommodation,Homelessness,C01AA000044051,
http://statistics.data.gov.uk/id/local-authority/29UP,Tonbridge & Malling Borough Council,3/23/2022,0022026407/1,22026407, 225.00,Mallard Consultancy Ltd,01528600,,Minimum Energy Efficiency Proj,Private Sector Housing Renewal,C03BD000044032,220003205
http://statistics.data.gov.uk/id/local-authority/29UP,Tonbridge & Malling Borough Council,3/23/2022,0022026408/1,22026408, 1365.36,Maidstone Borough Council,01173700,,Council Tax,Homelessness,C01AAMAUN23002,
http://statistics.data.gov.uk/id/local-authority/29UP,Tonbridge & Malling Borough Council,3/23/2022,0022026409/3,22026409, 400.00,Monitor Pest Control Ltd,01476700,,Other Expenses,Pest Control,H24SE000048010,
http://statistics.data.gov.uk/id/local-authority/29UP,Tonbridge & Malling Borough Council,3/23/2022,0022026410/1,22026410, 871.53,Sevenoaks District Council,00089300,,Partnership Receipts,Env Hlth & Hsg Sals&Overheads,D01AVDV0295008,
http://statistics.data.gov.uk/id/local-authority/29UP,Tonbridge & Malling Borough Council,3/23/2022,0022026411/1,22026411, 995.00,W Naylar & Son,01835800,,Funeral Expenses,Public Health Act 1984,H26SG000054002,220003197
http://statistics.data.gov.uk/id/local-authority/29UP,Tonbridge & Malling Borough Council,3/23/2022,0022026412/1,22026412, 4512.08,All Home Services Ltd,01802400,,Other Expenses,Disabled Facilities Grant Mand,P03AC000009908,
http://statistics.data.gov.uk/id/local-authority/29UP,Tonbridge & Malling Borough Council,3/23/2022,0022026413/1,22026413, 649.74,Peabody South East LTD,01680900,,Other Expenses,Disabled Facilities Grant Mand,P03AC000009908,
http://statistics.data.gov.uk/id/local-authority/29UP,Tonbridge & Malling Borough Council,3/23/2022,0022026414/1,22026414, 1064.40,Elite Complete Build LTD,01625900,,Other Expenses,Disabled Facilities Grant Mand,P03AC000009908,
http://statistics.data.gov.uk/id/local-authority/29UP,Tonbridge & Malling Borough Council,3/23/2022,0022026415/1,22026415, 1277.28,Peabody South East LTD,01680900,,Other Expenses,Disabled Facilities Grant Mand,P03AC000009908,
http://statistics.data.gov.uk/id/local-authority/29UP,Tonbridge & Malling Borough Council,3/23/2022,0022026416/1,22026416, 6159.54,Hubbard & Houghton Construction Ltd,00970600,,Other Expenses,Disabled Facilities Grant Mand,P03AC000009908,
http://statistics.data.gov.uk/id/local-authority/29UP,Tonbridge & Malling Borough Council,3/23/2022,0022026417/1,22026417, 886.97,Peabody South East LTD,01680900,,Other Expenses,Disabled Facilities Grant Mand,P03AC000009908,
http://statistics.data.gov.uk/id/local-authority/29UP,Tonbridge & Malling Borough Council,3/23/2022,0022026418/1,22026418, 1920.76,Peabody South East LTD,01680900,,Other Expenses,Disabled Facilities Grant Mand,P03AC000009908,
http://statistics.data.gov.uk/id/local-authority/29UP,Tonbridge & Malling Borough Council,3/23/2022,0022026419/1,22026419, 4769.00,MCL  Mechanical Handling Ltd,00064100,,Other Expenses,Disabled Facilities Grant Mand,P03AC000009908,
http://statistics.data.gov.uk/id/local-authority/29UP,Tonbridge & Malling Borough Council,3/23/2022,0022026420/1,22026420, 686.74,Peabody South East LTD,01680900,,Other Expenses,Disabled Facilities Grant Mand,P03AC000009908,
http://statistics.data.gov.uk/id/local-authority/29UP,Tonbridge & Malling Borough Council,3/23/2022,0022026421/1,22026421, 5523.82,CJB Services,01823200,,Other Expenses,Disabled Facilities Grant Mand,P03AC000009908,
http://statistics.data.gov.uk/id/local-authority/29UP,Tonbridge & Malling Borough Council,3/23/2022,0022026422/1,22026422, 12689.50,DCB (Kent) LTD,01326800,,Other Expenses,Disabled Facilities Grant Mand,P03AC000009908,
http://statistics.data.gov.uk/id/local-authority/29UP,Tonbridge & Malling Borough Council,3/23/2022,0022026423/1,22026423, 1522.74,Peabody South East LTD,01680900,,Other Expenses,Disabled Facilities Grant Mand,P03AC000009908,
http://statistics.data.gov.uk/id/local-authority/29UP,Tonbridge & Malling Borough Council,3/23/2022,0022026424/1,22026424, 3113.14,Adaptec Mobilty Ltd,01785800,339578354,Other Expenses,Disabled Facilities Grant Mand,P03AC000009908,
http://statistics.data.gov.uk/id/local-authority/29UP,Tonbridge & Malling Borough Council,3/23/2022,0022026425/1,22026425, 448.30,Peabody South East LTD,01680900,,Other Expenses,Disabled Facilities Grant Mand,P03AC000009908,
http://statistics.data.gov.uk/id/local-authority/29UP,Tonbridge & Malling Borough Council,3/23/2022,0022026426/1,22026426, 42.69,British Gas Services LTD,01260000,,Electricity,Homelessness,C01AAMAUN21002,
http://statistics.data.gov.uk/id/local-authority/29UP,Tonbridge & Malling Borough Council,3/23/2022,0022026427/1,22026427, 53123.00,Paramount Independent Property Suppliers,01595300,,Temporary Accommodation,Homelessness,C01AA000044051,
http://statistics.data.gov.uk/id/local-authority/29UP,Tonbridge & Malling Borough Council,3/23/2022,0022026428/1,22026428, 1404.00,The Oyster Partnership,01196400,,Temporary Staff,Env Hlth & Hsg Sals&Overheads,D01AVDV0711300,
http://statistics.data.gov.uk/id/local-authority/29UP,Tonbridge & Malling Borough Council,3/23/2022,0022026429/1,22026429, 426.80,Countrystyle Group,00835900,781981681,Plastic Recycling,Dry Recycling,H34SR000054019,
http://statistics.data.gov.uk/id/local-authority/29UP,Tonbridge & Malling Borough Council,3/23/2022,0022026430/1,22026430, 1066.00,Astor Bannerman (Medical) Ltd,00963200,,Other Expenses,Disabled Facilities Grant Mand,P03AC000009908,
http://statistics.data.gov.uk/id/local-authority/29UP,Tonbridge & Malling Borough Council,3/23/2022,0022026431/1,22026431, 10743.00,DCB (Kent) LTD,01326800,,Other Expenses,Disabled Facilities Grant Mand,P03AC000009908,
http://statistics.data.gov.uk/id/local-authority/29UP,Tonbridge & Malling Borough Council,3/23/2022,0022026432/1,22026432, 1552.99,Peabody South East LTD,01680900,,Other Expenses,Disabled Facilities Grant Mand,P03AC000009908,
http://statistics.data.gov.uk/id/local-authority/29UP,Tonbridge & Malling Borough Council,3/23/2022,0022026433/1,22026433, 294.00,Peabody South East LTD,01680900,,Other Expenses,Disabled Facilities Grant Mand,P03AC000009908,
http://statistics.data.gov.uk/id/local-authority/29UP,Tonbridge & Malling Borough Council,3/23/2022,0022026434/1,22026434, 971.50,Vivid Resourcing,01773700,,Temporary Staff,Env Hlth & Hsg Sals&Overheads,D01AVDV0711300,
http://statistics.data.gov.uk/id/local-authority/29UP,Tonbridge & Malling Borough Council,3/23/2022,0022026435/1,22026435, 334.79,Castle Water,01696500,,Water Charges (Metered),Public Conveniences,H22SCH00424001,
http://statistics.data.gov.uk/id/local-authority/29UP,Tonbridge & Malling Borough Council,3/23/2022,0022026436/1,22026436, 300.00,Monitor Pest Control Ltd,01476700,,Other Expenses,Pest Control,H24SE000048010,
http://statistics.data.gov.uk/id/local-authority/29UP,Tonbridge & Malling Borough Council,3/23/2022,0031018541/1,31018541, 39.13,Alfafado Ltd t/a Battery Station,01835100,,Purchases,Civil Contingencies,D33NA000040101,310042802
http://statistics.data.gov.uk/id/local-authority/29UP,Tonbridge & Malling Borough Council,3/23/2022,0031018541/2,31018541, 5.40,Alfafado Ltd t/a Battery Station,01835100,,Purchases,Civil Contingencies,D33NA000040101,310042802
http://statistics.data.gov.uk/id/local-authority/29UP,Tonbridge & Malling Borough Council,3/23/2022,0031018542/1,31018542, 3200.00,Arnold & Court Ltd,01411300,,Premises Repairs & Maintenance,Parking Off-Street,E10HA000020601,310042777
http://statistics.data.gov.uk/id/local-authority/29UP,Tonbridge & Malling Borough Council,3/23/2022,0031018543/1,31018543, 400.00,Arnold & Court Ltd,01411300,,Contract Payments,Boro Drainage & Land Drainage,E20MA000054001,310042725
http://statistics.data.gov.uk/id/local-authority/29UP,Tonbridge & Malling Borough Council,3/23/2022,0031018544/1,31018544, 4000.00,Arnold & Court Ltd,01411300,,Bridge Maintenance,Open Spaces & Amenity Areas,B22LE000020505,210056627
http://statistics.data.gov.uk/id/local-authority/29UP,Tonbridge & Malling Borough Council,3/23/2022,0031018545/1,31018545, 3400.00,Arnold & Court Ltd,01411300,,Bridge Maintenance,Open Spaces & Amenity Areas,B22LE000020505,210056652
http://statistics.data.gov.uk/id/local-authority/29UP,Tonbridge & Malling Borough Council,3/23/2022,0031018546/1,31018546, 800.00,Arnold & Court Ltd,01411300,,Contract Payments,TRSG Riverside Rivetment,P05DD000009904,210056648
http://statistics.data.gov.uk/id/local-authority/29UP,Tonbridge & Malling Borough Council,3/23/2022,0031018546/2,31018546, 250.00,Arnold & Court Ltd,01411300,,Contract Payments,TRSG Riverside Rivetment,P05DD000009904,210056648
http://statistics.data.gov.uk/id/local-authority/29UP,Tonbridge & Malling Borough Council,3/23/2022,0031018548/1,31018548, 1417.60,The Royal British Legion Industries,00085300,,Premises Repairs & Maintenance,Parking On-Street,E10HD000020601,310042792
http://statistics.data.gov.uk/id/local-authority/29UP,Tonbridge & Malling Borough Council,3/23/2022,0031018549/3,31018549, 1260.00,Sevenoaks District Council,00089300,,Out of Hours Service,Civil Contingencies,D33NA000045025,
http://statistics.data.gov.uk/id/local-authority/29UP,Tonbridge & Malling Borough Council,3/23/2022,0031018551/1,31018551, 2434.20,SKF Contractors Ltd,00092000,,Premises Repairs & Maintenance,Parking On-Street,E10HD000020601,310042801
http://statistics.data.gov.uk/id/local-authority/29UP,Tonbridge & Malling Borough Council,3/23/2022,0031018552/1,31018552, 1500.00,Chroma Vision Ltd,00891600,,Maintenance - General,Security Services Management,E09GA000040135,310042800
http://statistics.data.gov.uk/id/local-authority/29UP,Tonbridge & Malling Borough Council,3/23/2022,0031018553/1,31018553, 642.00,Archway Highway Services Ltd,01398000,,Premises Repairs & Maintenance,Parking On-Street,E10HD000020601,310042782
http://statistics.data.gov.uk/id/local-authority/29UP,Tonbridge & Malling Borough Council,3/23/2022,0031018553/2,31018553, 675.00,Archway Highway Services Ltd,01398000,,Premises Repairs & Maintenance,Parking On-Street,E10HD000020601,310042782
http://statistics.data.gov.uk/id/local-authority/29UP,Tonbridge & Malling Borough Council,3/23/2022,0031018553/3,31018553, 600.00,Archway Highway Services Ltd,01398000,,Premises Repairs & Maintenance,Parking On-Street,E10HD000020601,310042782
http://statistics.data.gov.uk/id/local-authority/29UP,Tonbridge & Malling Borough Council,3/23/2022,0031018556/1,31018556, 299.88,KM Media Group Ltd,00053900,,Advertising General,Parking On-Street,E10HD000044216,310042799
http://statistics.data.gov.uk/id/local-authority/29UP,Tonbridge & Malling Borough Council,3/23/2022,0031018557/1,31018557, 710.04,Royal British Legion Industries Ltd,00139700,,Car Parking Action Plan,Parking On-Street,E10HD000020801,310042796
http://statistics.data.gov.uk/id/local-authority/29UP,Tonbridge & Malling Borough Council,3/23/2022,0032009446/3,32009446, 2625.00,G2 Recruitment Solutions,01786000,,Temporary Staff,Planning Sals&Overheads,D01AJDJ0111300,
http://statistics.data.gov.uk/id/local-authority/29UP,Tonbridge & Malling Borough Council,3/23/2022,0032009447/3,32009447, 3170.86,G2 Recruitment Solutions,01786000,,Temporary Staff,Planning Sals&Overheads,D01AJDJ0111300,
http://statistics.data.gov.uk/id/local-authority/29UP,Tonbridge & Malling Borough Council,3/23/2022,0032009448/1,32009448, 149.94,KM Media Group Ltd,00053900,,Advertising General,Development Management,A01ABZ99944216,320003391
http://statistics.data.gov.uk/id/local-authority/29UP,Tonbridge & Malling Borough Council,3/23/2022,0032009449/1,32009449, 3000.00,Robinson Escott Planning LLP,01653000,,Application & Appeals,Development Management,A01AB000044194,320003326
http://statistics.data.gov.uk/id/local-authority/29UP,Tonbridge & Malling Borough Council,3/23/2022,0032009450/1,32009450, 1288.00,Vivid Resourcing,01773700,,Temporary Staff,Env Hlth & Hsg Sals&Overheads,D01AVDV0711300,
http://statistics.data.gov.uk/id/local-authority/29UP,Tonbridge & Malling Borough Council,3/23/2022,0032009451/1,32009451, 12275.00,Urban Intelligence Ltd,01816600,,Development of Local Plan,Development of Local Plan,A01AE000044023,320003398
http://statistics.data.gov.uk/id/local-authority/29UP,Tonbridge & Malling Borough Council,3/23/2022,0032009452/1,32009452, 260.00,Farleigh Coaches,01026100,,Development of Local Plan,Development of Local Plan,A01AE000044023,
http://statistics.data.gov.uk/id/local-authority/29UP,Tonbridge & Malling Borough Council,3/23/2022,0041034090/3,41034090, 89000.00,Kent County Council,00322500,,Temporary Staff,Finance Sals&Overheads,D01AFDF0811300,
http://statistics.data.gov.uk/id/local-authority/29UP,Tonbridge & Malling Borough Council,3/23/2022,0041034096/1,41034096, 925.00,Morgan Hunt UK Ltd,01086900,,Temporary Staff,Finance Sals&Overheads,D01AFDF1111300,
http://statistics.data.gov.uk/id/local-authority/29UP,Tonbridge & Malling Borough Council,3/23/2022,0041034097/1,41034097, 980.50,Morgan Hunt UK Ltd,01086900,,Temporary Staff,Finance Sals&Overheads,D01AFDF1111300,
http://statistics.data.gov.uk/id/local-authority/29UP,Tonbridge & Malling Borough Council,3/23/2022,0041034098/1,41034098, 7664.56,Rundle & Co Ltd,00087200,,Bailiffs Commission,Local Revenue & NNDR Collect,D41QA000044075,
http://statistics.data.gov.uk/id/local-authority/29UP,Tonbridge & Malling Borough Council,3/23/2022,0041034099/1,41034099, 65.88,Sky Guard,01620000,,Purchases,Local Revenue & NNDR Collect,D41QA000040101,
http://statistics.data.gov.uk/id/local-authority/29UP,Tonbridge & Malling Borough Council,3/23/2022,0041034102/1,41034102, 80.00,WorldPay Ltd,01402000,991280207,Credit Card Commission,Banking Arrangements,D43QK000044082,
http://statistics.data.gov.uk/id/local-authority/29UP,Tonbridge & Malling Borough Council,3/23/2022,0041034102/2,41034102, 54.64,WorldPay Ltd,01402000,991280207,Credit Card Commission,Banking Arrangements,D43QK000044082,
http://statistics.data.gov.uk/id/local-authority/29UP,Tonbridge & Malling Borough Council,3/23/2022,0041034102/3,41034102, 0.24,WorldPay Ltd,01402000,991280207,Credit Card Commission,Banking Arrangements,D43QK000044082,
http://statistics.data.gov.uk/id/local-authority/29UP,Tonbridge & Malling Borough Council,3/23/2022,0041034103/1,41034103, 80.00,WorldPay Ltd,01402000,991280207,Credit Card Commission,Banking Arrangements,D43QK000044082,
http://statistics.data.gov.uk/id/local-authority/29UP,Tonbridge & Malling Borough Council,3/23/2022,0041034103/2,41034103, 33.04,WorldPay Ltd,01402000,991280207,Credit Card Commission,Banking Arrangements,D43QK000044082,
http://statistics.data.gov.uk/id/local-authority/29UP,Tonbridge & Malling Borough Council,3/23/2022,0041034103/3,41034103, 0.80,WorldPay Ltd,01402000,991280207,Credit Card Commission,Banking Arrangements,D43QK000044082,
http://statistics.data.gov.uk/id/local-authority/29UP,Tonbridge & Malling Borough Council,3/23/2022,0041034104/1,41034104, 80.00,WorldPay Ltd,01402000,991280207,Credit Card Commission,Banking Arrangements,D43QK000044082,
http://statistics.data.gov.uk/id/local-authority/29UP,Tonbridge & Malling Borough Council,3/23/2022,0041034104/2,41034104, 110.56,WorldPay Ltd,01402000,991280207,Credit Card Commission,Banking Arrangements,D43QK000044082,
http://statistics.data.gov.uk/id/local-authority/29UP,Tonbridge & Malling Borough Council,3/23/2022,0041034104/3,41034104, 0.56,WorldPay Ltd,01402000,991280207,Credit Card Commission,Banking Arrangements,D43QK000044082,
http://statistics.data.gov.uk/id/local-authority/29UP,Tonbridge & Malling Borough Council,3/23/2022,0041034105/1,41034105, 507.38,KH Recruitment Ltd,01738900,,Temporary Staff,Finance Sals&Overheads,D01AFDF1111300,
http://statistics.data.gov.uk/id/local-authority/29UP,Tonbridge & Malling Borough Council,3/23/2022,0041034107/1,41034107, 16500.00,Tonbridge Baptist Church,00401200,,Charitable / Voluntary Organis,Grants & Payments to Vol Orgn,D37PACV1947005,
http://statistics.data.gov.uk/id/local-authority/29UP,Tonbridge & Malling Borough Council,3/23/2022,0041034108/1,41034108, 16500.00,Citizens Advice North and West Kent ,01617600,,Charitable / Voluntary Organis,Grants & Payments to Vol Orgn,D37PACV1947005,
http://statistics.data.gov.uk/id/local-authority/29UP,Tonbridge & Malling Borough Council,3/23/2022,0041034109/1,41034109, 527.69,Leybourne PC Fundraising,01834600,,Charitable / Voluntary Organis,Grants & Payments to Vol Orgn,D37PACV1947005,
http://statistics.data.gov.uk/id/local-authority/29UP,Tonbridge & Malling Borough Council,3/23/2022,0041034110/1,41034110, 250.00,PCC St Mary Hadlow,01835200,,Charitable / Voluntary Organis,Grants & Payments to Vol Orgn,D37PACV1947005,
http://statistics.data.gov.uk/id/local-authority/29UP,Tonbridge & Malling Borough Council,3/23/2022,0041034117/1,41034117, 785.39,King & Shaxson Investments,01411100,,Professional Fees,Treasury Management,D43QT000044001,
http://statistics.data.gov.uk/id/local-authority/29UP,Tonbridge & Malling Borough Council,3/23/2022,0041034118/1,41034118, 200.41,National Westminster Bank Plc,00069400,,Direct Debit / Bank Charges,Local Revenue & NNDR Collect,D41QA000044079,
http://statistics.data.gov.uk/id/local-authority/29UP,Tonbridge & Malling Borough Council,3/23/2022,0041034119/1,41034119, 68.00,National Westminster Bank Plc,00069400,,Direct Debit / Bank Charges,Local Revenue & NNDR Collect,D41QA000044079,
http://statistics.data.gov.uk/id/local-authority/29UP,Tonbridge & Malling Borough Council,3/24/2022,0041034125/1,41034125, 123.41,WorldPay ,01568000,,Credit Card Commission,Banking Arrangements,D43QK000044082,
http://statistics.data.gov.uk/id/local-authority/29UP,Tonbridge & Malling Borough Council,3/28/2022,0011044114/1,11044114, 64.00,K T Fire Protection Ltd,00057000,,BRREP Servicing - FireAlarmSys,Tonbridge Farm Pavillion,M15HGP20001937,110069105
http://statistics.data.gov.uk/id/local-authority/29UP,Tonbridge & Malling Borough Council,3/28/2022,0011044115/1,11044115, 225.00,Lemon Drainage Services LTD,01761600,,BRREP Servicing - Pumping Stn,Pleasure Grounds & Open Spaces,M15HHP20001931,110068979
http://statistics.data.gov.uk/id/local-authority/29UP,Tonbridge & Malling Borough Council,3/28/2022,0011044116/1,11044116, 1880.00,PV Environmental Surveys,00987200,,BRREP General Maintenance,Shops & Maisonettes,M15NAP10001900,110069449
http://statistics.data.gov.uk/id/local-authority/29UP,Tonbridge & Malling Borough Council,3/28/2022,0011044117/1,11044117, 56.00,Willow Pumps Ltd,00114100,,BRREP Servicing - Pumping Stn,Tonbridge Swimming Pool,M15HBP20001931,110069172
http://statistics.data.gov.uk/id/local-authority/29UP,Tonbridge & Malling Borough Council,3/28/2022,0011044117/2,11044117, 112.00,Willow Pumps Ltd,00114100,,BRREP Servicing - Pumping Stn,Ton Sportsgrnd Bldgs / Toilets,M15HCP20001931,110069172
http://statistics.data.gov.uk/id/local-authority/29UP,Tonbridge & Malling Borough Council,3/28/2022,0011044117/3,11044117, 112.00,Willow Pumps Ltd,00114100,,BRREP Servicing - Pumping Stn,Vale Rise Depot,M15LCP20001931,110069172
http://statistics.data.gov.uk/id/local-authority/29UP,Tonbridge & Malling Borough Council,3/28/2022,0011044118/1,11044118, 1543.75,Electrosonic Ltd,00031100,,Marketing,Tonbridge Castle Gatehouse,B40TG000044215,110069469
http://statistics.data.gov.uk/id/local-authority/29UP,Tonbridge & Malling Borough Council,3/28/2022,0011044119/1,11044119, 327.00,BML Building Services Ltd,01505000,,BRREP Response - General,Tonbridge Castle / CAB,M15KFP50001997,110069479
http://statistics.data.gov.uk/id/local-authority/29UP,Tonbridge & Malling Borough Council,3/28/2022,0011044120/1,11044120, 1558.03,GSF SANDYLIGHT LTD,01705300,,Temporary Staff,Admin & Prop Sals&Overheads,D01AADA0511300,
http://statistics.data.gov.uk/id/local-authority/29UP,Tonbridge & Malling Borough Council,3/28/2022,0011044121/1,11044121, 152.00,Tonbridge & Malling Leisure Trust,01469100,,Professional Fees,Land Review,D40PSTON144001,
http://statistics.data.gov.uk/id/local-authority/29UP,Tonbridge & Malling Borough Council,3/28/2022,0011044122/1,11044122, 833.00,JD Bush Decorators Ltd,01781600,,BRREP External decoration,Tonbridge Castle / CAB,M15KFP20001921,
http://statistics.data.gov.uk/id/local-authority/29UP,Tonbridge & Malling Borough Council,3/28/2022,0011044123/1,11044123, 232.50,Antalis,01556800,317187204,Purchases - Paper,Printing,D22GA000040102,
http://statistics.data.gov.uk/id/local-authority/29UP,Tonbridge & Malling Borough Council,3/28/2022,0011044124/1,11044124, 1919.02,KCS,00054200,,Electricity,Buildings,D21FEDD6021002,
http://statistics.data.gov.uk/id/local-authority/29UP,Tonbridge & Malling Borough Council,3/28/2022,0011044125/3,11044125, 3934.50,KCS,00054200,,Electricity,Buildings,D21FEDD1021002,
http://statistics.data.gov.uk/id/local-authority/29UP,Tonbridge & Malling Borough Council,3/28/2022,0011044126/3,11044126, 230.99,KCS,00054200,,Estate Management Charge,Land Review,D40PS000020400,
http://statistics.data.gov.uk/id/local-authority/29UP,Tonbridge & Malling Borough Council,3/28/2022,0011044127/3,11044127, 1.60,Royal Mail,00086200,,Purchases,Mailsort Stock Account,K37BR000001002,
http://statistics.data.gov.uk/id/local-authority/29UP,Tonbridge & Malling Borough Council,3/28/2022,0011044127/4,11044127, 6.24,Royal Mail,00086200,,Purchases,Mailsort Stock Account,K37BR000001002,
http://statistics.data.gov.uk/id/local-authority/29UP,Tonbridge & Malling Borough Council,3/28/2022,0011044127/5,11044127, 1416.58,Royal Mail,00086200,,Purchases,Mailsort Stock Account,K37BR000001002,
http://statistics.data.gov.uk/id/local-authority/29UP,Tonbridge & Malling Borough Council,3/28/2022,0011044128/3,11044128, 2872.24,KCS,00054200,,Electricity,Buildings,D21FEDD5021002,
http://statistics.data.gov.uk/id/local-authority/29UP,Tonbridge & Malling Borough Council,3/28/2022,0011044129/3,11044129, 867.67,Royal Mail,00086200,,Postages - Business Reply,Electoral Registration,D31MF000045003,
http://statistics.data.gov.uk/id/local-authority/29UP,Tonbridge & Malling Borough Council,3/28/2022,0011044129/4,11044129, 111.84,Royal Mail,00086200,,Purchases,Business Reply Stock Account,K14AT000001002,
http://statistics.data.gov.uk/id/local-authority/29UP,Tonbridge & Malling Borough Council,3/28/2022,0011044130/3,11044130, 1.91,Royal Mail,00086200,,Purchases,Mailsort Stock Account,K37BR000001002,
http://statistics.data.gov.uk/id/local-authority/29UP,Tonbridge & Malling Borough Council,3/28/2022,0011044130/4,11044130, 2812.38,Royal Mail,00086200,,Purchases,Mailsort Stock Account,K37BR000001002,
http://statistics.data.gov.uk/id/local-authority/29UP,Tonbridge & Malling Borough Council,3/28/2022,0011044131/3,11044131, 5440.00,Cornerstones Barristers,01359100,,Other Planning Enq - Legal Cos,Legal Sals&Overheads,D01ARDR0044146,
http://statistics.data.gov.uk/id/local-authority/29UP,Tonbridge & Malling Borough Council,3/28/2022,0011044132/3,11044132, 1164.02,KH Recruitment Ltd,01738900,,Temporary Staff,Personnel Sals&Overheads,D01ABDB0311300,
http://statistics.data.gov.uk/id/local-authority/29UP,Tonbridge & Malling Borough Council,3/28/2022,0011044134/1,11044134, 265.00,SWEET SENSTATIONS EATS & TREATS LTD,01749200,,H&CG Fund Council Specific,Eco Dev & Reg Gen Bus Support,D52TD000047027,110069438
http://statistics.data.gov.uk/id/local-authority/29UP,Tonbridge & Malling Borough Council,3/28/2022,0011044135/1,11044135, 4778.26,Chubb Fire & Security Ltd,00115400,174605362,BRREP Servicing-IntruderAlarm,Angel Centre,M15HAP20001939,110069275
http://statistics.data.gov.uk/id/local-authority/29UP,Tonbridge & Malling Borough Council,3/28/2022,0011044136/1,11044136, 1306.00,Hadene Engineering Ltd,00041900,,BRREP Servicing - boilers,Larkfield Leisure Centre,M15HDP20001929,110069451
http://statistics.data.gov.uk/id/local-authority/29UP,Tonbridge & Malling Borough Council,3/28/2022,0011044137/1,11044137, 300.00,BML Building Services Ltd,01505000,,BRREP Drain and gully cleaning,PC - General,M15JAP20001975,110069488
http://statistics.data.gov.uk/id/local-authority/29UP,Tonbridge & Malling Borough Council,3/28/2022,0011044138/1,11044138, 1033.80,Westcountry Group,00656400,,Purchases,Central Stationery Stock A/c,K03AD000001002,110069466
http://statistics.data.gov.uk/id/local-authority/29UP,Tonbridge & Malling Borough Council,3/28/2022,0011044139/1,11044139, 250.00,BML Building Services Ltd,01505000,,BRREP Response - General,Shops & Maisonettes,M15NAP50001997,110069505
http://statistics.data.gov.uk/id/local-authority/29UP,Tonbridge & Malling Borough Council,3/28/2022,0011044140/1,11044140, 185.00,Atac Solutions LTD,01558800,,BRREP LeybourneCP SewageDigest,Leybourne Lakes Country Park,M15HLP20001961,110069478
http://statistics.data.gov.uk/id/local-authority/29UP,Tonbridge & Malling Borough Council,3/28/2022,0011044142/1,11044142, 2240.00,G C Industrial Heating Services,00578100,,BRREP Plant renewals,Tonbridge Swimming Pool,M15HBP20001909,110069498
http://statistics.data.gov.uk/id/local-authority/29UP,Tonbridge & Malling Borough Council,3/28/2022,0011044143/1,11044143, 304.12,Castle Water,01696500,,Estate Management Charge,Land Review,D40PS000020400,
http://statistics.data.gov.uk/id/local-authority/29UP,Tonbridge & Malling Borough Council,3/28/2022,0011044144/1,11044144, 1053.06,Kent County Council,00322500,,Kent Highways,Local Land Charges,D35NK000044240,
http://statistics.data.gov.uk/id/local-authority/29UP,Tonbridge & Malling Borough Council,3/28/2022,0011044146/1,11044146, 195.00,Cornerstones Barristers,01359100,,Other Planning Enq - Legal Cos,Legal Sals&Overheads,D01ARDR0044146,
http://statistics.data.gov.uk/id/local-authority/29UP,Tonbridge & Malling Borough Council,3/28/2022,0011044147/1,11044147, 9135.20,Cornerstones Barristers,01359100,,Other Planning Enq - Legal Cos,Legal Sals&Overheads,D01ARDR0044146,
http://statistics.data.gov.uk/id/local-authority/29UP,Tonbridge & Malling Borough Council,3/28/2022,0011044148/1,11044148, 945.00,Rubicon Environmental Services Limited,01634100,,BRREP General Maintenance,Angel Centre,M15HAP10001900,110069429
http://statistics.data.gov.uk/id/local-authority/29UP,Tonbridge & Malling Borough Council,3/28/2022,0011044149/1,11044149, 180.00,Leybourne Chase Community Centre,01718500,,Rents,Conduct of Elections,D31MG000022001,
http://statistics.data.gov.uk/id/local-authority/29UP,Tonbridge & Malling Borough Council,3/28/2022,0012008301/1,12008301, 299.53,Imperial Civil Enforcement Solutions,00057200,,Software Hire & Support,Information Technology,D27KD000044059,410032121
http://statistics.data.gov.uk/id/local-authority/29UP,Tonbridge & Malling Borough Council,3/28/2022,0012008302/1,12008302, 15435.62,Capita Secure Information Solutions Ltd,00817100,,Software Hire & Support,Information Technology,D27KD000044059,
http://statistics.data.gov.uk/id/local-authority/29UP,Tonbridge & Malling Borough Council,3/28/2022,0012008302/2,12008302, 3368.98,Capita Secure Information Solutions Ltd,00817100,,Software Hire & Support,Information Technology,D27KD000044059,
http://statistics.data.gov.uk/id/local-authority/29UP,Tonbridge & Malling Borough Council,3/28/2022,0012008303/1,12008303, 470.00,Buchanan Computing,00528900,,Software Hire & Support,Information Technology,D27KD000044059,
http://statistics.data.gov.uk/id/local-authority/29UP,Tonbridge & Malling Borough Council,3/28/2022,0012008304/1,12008304, 850.00,Imperial Civil Enforcement Solutions,00057200,,Consultancy Fees,Information Technology,D27KD000044011,410032107
http://statistics.data.gov.uk/id/local-authority/29UP,Tonbridge & Malling Borough Council,3/28/2022,0021037842/1,21037842, 3300.00,SWS Countryside & Landscape,01567200,,Health & Safety - Trees,Countryside/Woodland Mgt,B22LG000044045,210056623
http://statistics.data.gov.uk/id/local-authority/29UP,Tonbridge & Malling Borough Council,3/28/2022,0021037843/1,21037843, 400.00,SWS Countryside & Landscape,01567200,,Maintenance of Grounds,Open Spaces & Amenity Areas,B22LE000020402,210056616
http://statistics.data.gov.uk/id/local-authority/29UP,Tonbridge & Malling Borough Council,3/28/2022,0021037844/1,21037844, 430.00,SWS Countryside & Landscape,01567200,,Health & Safety - Trees,Countryside/Woodland Mgt,B22LG000044045,210056512
http://statistics.data.gov.uk/id/local-authority/29UP,Tonbridge & Malling Borough Council,3/28/2022,0021037845/1,21037845, 890.00,SWS Countryside & Landscape,01567200,,Health & Safety - Trees,Countryside/Woodland Mgt,B22LG000044045,210056481
http://statistics.data.gov.uk/id/local-authority/29UP,Tonbridge & Malling Borough Council,3/28/2022,0021037846/1,21037846, 110.00,Peoplesafe -  Skyguard Ltd,01779900,,Other Expenses,Food & Safety - Food Safety,H35SX000048010,220003202
http://statistics.data.gov.uk/id/local-authority/29UP,Tonbridge & Malling Borough Council,3/28/2022,0021037847/1,21037847, 4500.00,SWS Countryside & Landscape,01567200,,Maintenance of Grounds,Countryside/Woodland Mgt,B22LG000020402,210056632
http://statistics.data.gov.uk/id/local-authority/29UP,Tonbridge & Malling Borough Council,3/28/2022,0021037848/1,21037848, 389.00,Keep Britain Tidy,00519900,,Maintenance of Grounds,Sports Grounds,B13ET000020402,210056642
http://statistics.data.gov.uk/id/local-authority/29UP,Tonbridge & Malling Borough Council,3/28/2022,0021037849/1,21037849, 554.02,HAGS SMP Ltd,00793600,,Maintenance of Play Equipment,Open Spaces & Amenity Areas,B22LE000020503,210056667
http://statistics.data.gov.uk/id/local-authority/29UP,Tonbridge & Malling Borough Council,3/28/2022,0021037850/1,21037850, 4816.53,PSR Lighting & Signs Ltd,01265400,,Initial Furniture & Equipment,Capital Renewals Leisure,P05KGBC0509906,210056639
http://statistics.data.gov.uk/id/local-authority/29UP,Tonbridge & Malling Borough Council,3/28/2022,0021037851/1,21037851, 1120.00,Landscape Services Ltd,00057600,,Events Support,Events Development,B41TJ000044041,210056662
http://statistics.data.gov.uk/id/local-authority/29UP,Tonbridge & Malling Borough Council,3/28/2022,0021037852/1,21037852, 323.55,Landscape Services Ltd,00057600,,Maintenance of Grounds,Sports Grounds,B13ET000020402,210056710
http://statistics.data.gov.uk/id/local-authority/29UP,Tonbridge & Malling Borough Council,3/28/2022,0021037853/1,21037853, 384.00,Landscape Services Ltd,00057600,,Maintenance of Grounds,Open Spaces & Amenity Areas,B22LE000020402,210056709
http://statistics.data.gov.uk/id/local-authority/29UP,Tonbridge & Malling Borough Council,3/28/2022,0021037854/1,21037854, 417.00,Landscape Services Ltd,00057600,,Maintenance of Grounds,Sports Grounds,B13ET000020402,210056693
http://statistics.data.gov.uk/id/local-authority/29UP,Tonbridge & Malling Borough Council,3/28/2022,0021037855/1,21037855, 3294.00,CJS Plants LTD,01596000,,Purchases,Tonbridge Castle Grounds,B22LB000040101,210056628
http://statistics.data.gov.uk/id/local-authority/29UP,Tonbridge & Malling Borough Council,3/28/2022,0021037856/1,21037856, 4099.50,CJS Plants LTD,01596000,,Tonbridge Hanging Baskets,Tonbridge Castle Grounds,B22LB000050104,210056629
http://statistics.data.gov.uk/id/local-authority/29UP,Tonbridge & Malling Borough Council,3/28/2022,0021037857/1,21037857, 252.00,Amethyst Horticulture,01546900,,Purchases,Tonbridge Castle Grounds,B22LB000040101,210056620
http://statistics.data.gov.uk/id/local-authority/29UP,Tonbridge & Malling Borough Council,3/28/2022,0021037858/1,21037858, 1540.00,Amethyst Horticulture,01546900,,Purchases,Tonbridge Castle Grounds,B22LB000040101,210056599
http://statistics.data.gov.uk/id/local-authority/29UP,Tonbridge & Malling Borough Council,3/28/2022,0021037859/1,21037859, 225.00,PSR Lighting & Signs Ltd,01265400,,Maintenance of Grounds,Sports Grounds,B13ET000020402,210056644
http://statistics.data.gov.uk/id/local-authority/29UP,Tonbridge & Malling Borough Council,3/28/2022,0021037860/1,21037860, 839.40,The Play Inspection Company,01242100,,Maintenance of Play Equipment,Open Spaces & Amenity Areas,B22LE000020503,210056651
http://statistics.data.gov.uk/id/local-authority/29UP,Tonbridge & Malling Borough Council,3/28/2022,0021037861/1,21037861, 440.00,Arnold & Court Ltd,01411300,,Maintenance of Play Equipment,Open Spaces & Amenity Areas,B22LE000020503,210056645
http://statistics.data.gov.uk/id/local-authority/29UP,Tonbridge & Malling Borough Council,3/28/2022,0021037862/1,21037862, 90.00,Arnold & Court Ltd,01411300,,Maintenance of Play Equipment,Open Spaces & Amenity Areas,B22LE000020503,210056705
http://statistics.data.gov.uk/id/local-authority/29UP,Tonbridge & Malling Borough Council,3/28/2022,0021037863/1,21037863, 310.00,Arnold & Court Ltd,01411300,,Maintenance of Grounds,Tonbridge Castle Grounds,B22LB000020402,210056707
http://statistics.data.gov.uk/id/local-authority/29UP,Tonbridge & Malling Borough Council,3/28/2022,0021037864/1,21037864, 550.00,Arnold & Court Ltd,01411300,,Maintenance of Grounds,Sports Grounds,B13ET000020402,210056706
http://statistics.data.gov.uk/id/local-authority/29UP,Tonbridge & Malling Borough Council,3/28/2022,0021037865/1,21037865, 13.75,B&Q/Screwfix Direct(TradeUKAccount),00141300,,Maintenance of Grounds,Haysden Country Park,B22LC000020402,
http://statistics.data.gov.uk/id/local-authority/29UP,Tonbridge & Malling Borough Council,3/28/2022,0021037866/1,21037866, 1265.00,SWS Countryside & Landscape,01567200,,Maintenance of Grounds,Leybourne Lakes Country Park,B22LK000020402,
http://statistics.data.gov.uk/id/local-authority/29UP,Tonbridge & Malling Borough Council,3/28/2022,0022026437/3,22026437, 154.64,E.ON - Next,01790900,,Electricity,Homelessness,C01AATNPR21002,
http://statistics.data.gov.uk/id/local-authority/29UP,Tonbridge & Malling Borough Council,3/28/2022,0022026439/1,22026439, 5898.00,DCB (Kent) LTD,01326800,,Other Expenses,Disabled Facilities Grant Mand,P03AC000009908,
http://statistics.data.gov.uk/id/local-authority/29UP,Tonbridge & Malling Borough Council,3/28/2022,0022026440/1,22026440, 1548.67,Peabody South East LTD,01680900,,Other Expenses,Disabled Facilities Grant Mand,P03AC000009908,
http://statistics.data.gov.uk/id/local-authority/29UP,Tonbridge & Malling Borough Council,3/28/2022,0022026441/1,22026441, 796.32,Peabody South East LTD,01680900,,Other Expenses,Housing Assistance,P03AD000009908,
http://statistics.data.gov.uk/id/local-authority/29UP,Tonbridge & Malling Borough Council,3/28/2022,0022026442/1,22026442, 600.00,Peabody South East LTD,01680900,,Countywide DFG Project,Private Sector Housing Renewal,C03BD000044031,
http://statistics.data.gov.uk/id/local-authority/29UP,Tonbridge & Malling Borough Council,3/28/2022,0022026443/1,22026443, 582.00,Peabody South East LTD,01680900,,Countywide DFG Project,Private Sector Housing Renewal,C03BD000044031,
http://statistics.data.gov.uk/id/local-authority/29UP,Tonbridge & Malling Borough Council,3/28/2022,0022026444/1,22026444, 1400.00,Kent Housing,01503200,,Temporary Accommodation,Homelessness,C01AA000044051,
http://statistics.data.gov.uk/id/local-authority/29UP,Tonbridge & Malling Borough Council,3/28/2022,0022026445/1,22026445, 6188.00,Under My Roof Ltd,01806700,,Temporary Accommodation,Homelessness,C01AA000044051,
http://statistics.data.gov.uk/id/local-authority/29UP,Tonbridge & Malling Borough Council,3/28/2022,0022026446/1,22026446, 632.78,Clarion Housing,01776300,,Rent Deposit / Rent in Advance,Homelessness,C01AAC83644093,
http://statistics.data.gov.uk/id/local-authority/29UP,Tonbridge & Malling Borough Council,3/28/2022,0022026447/1,22026447, 674.00,BML Building Services Ltd,01505000,,Repairs & Mtce to Buildings,Homelessness,C01AATNHS20101,
http://statistics.data.gov.uk/id/local-authority/29UP,Tonbridge & Malling Borough Council,3/28/2022,0022026450/1,22026450, 5000.00,Kent County Council,00322500,,Other Expenses,Homelessness,C01AACV1948010,
http://statistics.data.gov.uk/id/local-authority/29UP,Tonbridge & Malling Borough Council,3/28/2022,0022026451/1,22026451, 1021.75,Vivid Resourcing,01773700,,Temporary Staff,Env Hlth & Hsg Sals&Overheads,D01AVDV0711300,
http://statistics.data.gov.uk/id/local-authority/29UP,Tonbridge & Malling Borough Council,3/28/2022,0022026452/1,22026452, 1340.00,Independent Reviews Ltd,01657100,,Temporary Staff,Env Hlth & Hsg Sals&Overheads,D01AVDV0711300,
http://statistics.data.gov.uk/id/local-authority/29UP,Tonbridge & Malling Borough Council,3/28/2022,0022026453/1,22026453, 3876.25,Independent Reviews Ltd,01657100,,Temporary Staff,Env Hlth & Hsg Sals&Overheads,D01AVDV0711300,
http://statistics.data.gov.uk/id/local-authority/29UP,Tonbridge & Malling Borough Council,3/28/2022,0022026454/1,22026454, 1221.00,G2 Recruitment Solutions,01786000,,Temporary Staff,Env Hlth & Hsg Sals&Overheads,D01AVDV0711300,
http://statistics.data.gov.uk/id/local-authority/29UP,Tonbridge & Malling Borough Council,3/28/2022,0022026455/1,22026455, 1221.00,G2 Recruitment Solutions,01786000,,Temporary Staff,Env Hlth & Hsg Sals&Overheads,D01AVDV0711300,
http://statistics.data.gov.uk/id/local-authority/29UP,Tonbridge & Malling Borough Council,3/28/2022,0022026457/1,22026457, 1033.00,Prime Time Boilers,01841500,,Other Expenses,Housing Assistance,P03AD000009908,
http://statistics.data.gov.uk/id/local-authority/29UP,Tonbridge & Malling Borough Council,3/28/2022,0022026458/1,22026458, 1000.00,REDACTED PERSONAL DATA,01841600,,Other Expenses,Housing Assistance,P03AD000009908,
http://statistics.data.gov.uk/id/local-authority/29UP,Tonbridge & Malling Borough Council,3/28/2022,0022026459/1,22026459, 354.43,Urbaser LTD,01718800,,Maintenance of Grounds,Sports Grounds,B13ET000020402,
http://statistics.data.gov.uk/id/local-authority/29UP,Tonbridge & Malling Borough Council,3/28/2022,0022026459/10,22026459, 55.10,Urbaser LTD,01718800,,Maintenance of Grounds,Grounds,D21FF000020402,
http://statistics.data.gov.uk/id/local-authority/29UP,Tonbridge & Malling Borough Council,3/28/2022,0022026459/11,22026459, 168.53,Urbaser LTD,01718800,,Maintenance of Grounds,Parking Off-Street,E10HA000020402,
http://statistics.data.gov.uk/id/local-authority/29UP,Tonbridge & Malling Borough Council,3/28/2022,0022026459/12,22026459, 4288.11,Urbaser LTD,01718800,,Maintenance of Grounds,Parking Off-Street,E10HAE00120402,
http://statistics.data.gov.uk/id/local-authority/29UP,Tonbridge & Malling Borough Council,3/28/2022,0022026459/13,22026459, 461.92,Urbaser LTD,01718800,,Maintenance of Grounds,Parking Off-Street,E10HAE00220402,
http://statistics.data.gov.uk/id/local-authority/29UP,Tonbridge & Malling Borough Council,3/28/2022,0022026459/14,22026459, 288.97,Urbaser LTD,01718800,,Maintenance of Grounds,Parking Off-Street,E10HAE00320402,
http://statistics.data.gov.uk/id/local-authority/29UP,Tonbridge & Malling Borough Council,3/28/2022,0022026459/15,22026459, 1511.29,Urbaser LTD,01718800,,Maintenance of Grounds,Parking Off-Street,E10HAE00420402,
http://statistics.data.gov.uk/id/local-authority/29UP,Tonbridge & Malling Borough Council,3/28/2022,0022026459/16,22026459, 251.14,Urbaser LTD,01718800,,Maintenance of Grounds,Parking Off-Street,E10HAE00520402,
http://statistics.data.gov.uk/id/local-authority/29UP,Tonbridge & Malling Borough Council,3/28/2022,0022026459/17,22026459, 936.67,Urbaser LTD,01718800,,Maintenance of Grounds,Parking Off-Street,E10HAE00620402,
http://statistics.data.gov.uk/id/local-authority/29UP,Tonbridge & Malling Borough Council,3/28/2022,0022026459/18,22026459, 7.90,Urbaser LTD,01718800,,Maintenance of Grounds,Parking Off-Street,E10HAE00820402,
http://statistics.data.gov.uk/id/local-authority/29UP,Tonbridge & Malling Borough Council,3/28/2022,0022026459/19,22026459, 7.80,Urbaser LTD,01718800,,Maintenance of Grounds,Parking Off-Street,E10HAE00920402,
http://statistics.data.gov.uk/id/local-authority/29UP,Tonbridge & Malling Borough Council,3/28/2022,0022026459/2,22026459, 75.43,Urbaser LTD,01718800,,Maintenance of Grounds,Poult Wood Golf Centre,B21KE000020402,
http://statistics.data.gov.uk/id/local-authority/29UP,Tonbridge & Malling Borough Council,3/28/2022,0022026459/20,22026459, 18.51,Urbaser LTD,01718800,,Maintenance of Grounds,Parking Off-Street,E10HAE01020402,
http://statistics.data.gov.uk/id/local-authority/29UP,Tonbridge & Malling Borough Council,3/28/2022,0022026459/21,22026459, 87.95,Urbaser LTD,01718800,,Maintenance of Grounds,Parking Off-Street,E10HAE01120402,
http://statistics.data.gov.uk/id/local-authority/29UP,Tonbridge & Malling Borough Council,3/28/2022,0022026459/22,22026459, 55.34,Urbaser LTD,01718800,,Maintenance of Grounds,Parking Off-Street,E10HAE01220402,
http://statistics.data.gov.uk/id/local-authority/29UP,Tonbridge & Malling Borough Council,3/28/2022,0022026459/23,22026459, 1049.30,Urbaser LTD,01718800,,Maintenance of Grounds,Parking Off-Street,E10HAE01320402,
http://statistics.data.gov.uk/id/local-authority/29UP,Tonbridge & Malling Borough Council,3/28/2022,0022026459/24,22026459, 79.80,Urbaser LTD,01718800,,Maintenance of Grounds,Parking Off-Street,E10HAE01420402,
http://statistics.data.gov.uk/id/local-authority/29UP,Tonbridge & Malling Borough Council,3/28/2022,0022026459/25,22026459, 245.93,Urbaser LTD,01718800,,Maintenance of Grounds,Parking Off-Street,E10HAE01520402,
http://statistics.data.gov.uk/id/local-authority/29UP,Tonbridge & Malling Borough Council,3/28/2022,0022026459/26,22026459, 264.50,Urbaser LTD,01718800,,Maintenance of Grounds,Parking Off-Street,E10HAE01620402,
http://statistics.data.gov.uk/id/local-authority/29UP,Tonbridge & Malling Borough Council,3/28/2022,0022026459/27,22026459, 780.85,Urbaser LTD,01718800,,Maintenance of Grounds,Parking Off-Street,E10HAE01720402,
http://statistics.data.gov.uk/id/local-authority/29UP,Tonbridge & Malling Borough Council,3/28/2022,0022026459/28,22026459, 224.12,Urbaser LTD,01718800,,Maintenance of Grounds,Parking Off-Street,E10HAE01920402,
http://statistics.data.gov.uk/id/local-authority/29UP,Tonbridge & Malling Borough Council,3/28/2022,0022026459/29,22026459, 492.32,Urbaser LTD,01718800,,Maintenance of Grounds,Parking Off-Street,E10HAE02020402,
http://statistics.data.gov.uk/id/local-authority/29UP,Tonbridge & Malling Borough Council,3/28/2022,0022026459/3,22026459, 31.13,Urbaser LTD,01718800,,Maintenance of Grounds,Haysden Country Park,B22LC000020402,
http://statistics.data.gov.uk/id/local-authority/29UP,Tonbridge & Malling Borough Council,3/28/2022,0022026459/30,22026459, 17.09,Urbaser LTD,01718800,,Maintenance of Grounds,Parking Off-Street,E10HAE02120402,
http://statistics.data.gov.uk/id/local-authority/29UP,Tonbridge & Malling Borough Council,3/28/2022,0022026459/31,22026459, 112.54,Urbaser LTD,01718800,,Maintenance of Grounds,Parking Off-Street,E10HAE02220402,
http://statistics.data.gov.uk/id/local-authority/29UP,Tonbridge & Malling Borough Council,3/28/2022,0022026459/32,22026459, 946.10,Urbaser LTD,01718800,,Maintenance of Grounds,Parking Off-Street,E10HAE02320402,
http://statistics.data.gov.uk/id/local-authority/29UP,Tonbridge & Malling Borough Council,3/28/2022,0022026459/33,22026459, 2.44,Urbaser LTD,01718800,,Maintenance of Grounds,Parking Off-Street,E10HAE02720402,
http://statistics.data.gov.uk/id/local-authority/29UP,Tonbridge & Malling Borough Council,3/28/2022,0022026459/34,22026459, 343.77,Urbaser LTD,01718800,,Maintenance of Grounds,Parking Off-Street,E10HAE02820402,
http://statistics.data.gov.uk/id/local-authority/29UP,Tonbridge & Malling Borough Council,3/28/2022,0022026459/35,22026459, 6.19,Urbaser LTD,01718800,,Maintenance of Grounds,Parking Off-Street,E10HAE02920402,
http://statistics.data.gov.uk/id/local-authority/29UP,Tonbridge & Malling Borough Council,3/28/2022,0022026459/36,22026459, 36.43,Urbaser LTD,01718800,,Maintenance of Grounds,Parking Off-Street,E10HAE03020402,
http://statistics.data.gov.uk/id/local-authority/29UP,Tonbridge & Malling Borough Council,3/28/2022,0022026459/37,22026459, 31.00,Urbaser LTD,01718800,,Maintenance of Grounds,Parking Off-Street,E10HAE03120402,
http://statistics.data.gov.uk/id/local-authority/29UP,Tonbridge & Malling Borough Council,3/28/2022,0022026459/38,22026459, 657.32,Urbaser LTD,01718800,,Maintenance of Grounds,Parking Off-Street,E10HAE04020402,
http://statistics.data.gov.uk/id/local-authority/29UP,Tonbridge & Malling Borough Council,3/28/2022,0022026459/39,22026459, 455.90,Urbaser LTD,01718800,,Maintenance of Grounds,Parking Off-Street,E10HAE04220402,
http://statistics.data.gov.uk/id/local-authority/29UP,Tonbridge & Malling Borough Council,3/28/2022,0022026459/4,22026459, 23.91,Urbaser LTD,01718800,,Dog Bin Emptying,Haysden Country Park,B22LC000044012,
http://statistics.data.gov.uk/id/local-authority/29UP,Tonbridge & Malling Borough Council,3/28/2022,0022026459/40,22026459, 1308.55,Urbaser LTD,01718800,,Maintenance of Grounds,Parking Off-Street,E10HAE04520402,
http://statistics.data.gov.uk/id/local-authority/29UP,Tonbridge & Malling Borough Council,3/28/2022,0022026459/41,22026459, 81773.77,Urbaser LTD,01718800,,Contract Payments,Refuse Collection,H20SA000054001,
http://statistics.data.gov.uk/id/local-authority/29UP,Tonbridge & Malling Borough Council,3/28/2022,0022026459/42,22026459, 865.70,Urbaser LTD,01718800,,Responsible Dog Ownership,Street Scene,H23SD000044050,
http://statistics.data.gov.uk/id/local-authority/29UP,Tonbridge & Malling Borough Council,3/28/2022,0022026459/43,22026459, 51717.72,Urbaser LTD,01718800,,Contract Payments,Street Scene,H23SD000054001,
http://statistics.data.gov.uk/id/local-authority/29UP,Tonbridge & Malling Borough Council,3/28/2022,0022026459/44,22026459, 819.23,Urbaser LTD,01718800,,General Maintenance,Dry Recycling,H34SR000020301,
http://statistics.data.gov.uk/id/local-authority/29UP,Tonbridge & Malling Borough Council,3/28/2022,0022026459/45,22026459, 73613.88,Urbaser LTD,01718800,,Contract Payments,Dry Recycling,H34SR000054001,
http://statistics.data.gov.uk/id/local-authority/29UP,Tonbridge & Malling Borough Council,3/28/2022,0022026459/46,22026459, 3803.64,Urbaser LTD,01718800,,Bring Sites Mixed Recycling,Dry Recycling,H34SR000054026,
http://statistics.data.gov.uk/id/local-authority/29UP,Tonbridge & Malling Borough Council,3/28/2022,0022026459/47,22026459, 28804.34,Urbaser LTD,01718800,,Contract Payments,Food Recycling,H34SS000054001,
http://statistics.data.gov.uk/id/local-authority/29UP,Tonbridge & Malling Borough Council,3/28/2022,0022026459/48,22026459, 16367.16,Urbaser LTD,01718800,,Contract Payments,Garden Waste Recycling,H34ST000054001,
http://statistics.data.gov.uk/id/local-authority/29UP,Tonbridge & Malling Borough Council,3/28/2022,0022026459/5,22026459, 677.66,Urbaser LTD,01718800,,Maintenance of Grounds,Open Spaces & Amenity Areas,B22LE000020402,
http://statistics.data.gov.uk/id/local-authority/29UP,Tonbridge & Malling Borough Council,3/28/2022,0022026459/6,22026459, 12.75,Urbaser LTD,01718800,,Dog Bin Emptying,Open Spaces & Amenity Areas,B22LE000044012,
http://statistics.data.gov.uk/id/local-authority/29UP,Tonbridge & Malling Borough Council,3/28/2022,0022026459/7,22026459, 22.00,Urbaser LTD,01718800,,Maintenance of Grounds,Countryside/Woodland Mgt,B22LG000020402,
http://statistics.data.gov.uk/id/local-authority/29UP,Tonbridge & Malling Borough Council,3/28/2022,0022026459/8,22026459, 66.06,Urbaser LTD,01718800,,Maintenance of Grounds,Leybourne Lakes Country Park,B22LK000020402,
http://statistics.data.gov.uk/id/local-authority/29UP,Tonbridge & Malling Borough Council,3/28/2022,0022026459/9,22026459, 23.91,Urbaser LTD,01718800,,Dog Bin Emptying,Leybourne Lakes Country Park,B22LK000044012,
http://statistics.data.gov.uk/id/local-authority/29UP,Tonbridge & Malling Borough Council,3/28/2022,0031018560/1,31018560, 369.60,British Parking Association,00380000,,Adjudication & Enforcement Ser,Parking Off-Street,E10HA000044230,310042791
http://statistics.data.gov.uk/id/local-authority/29UP,Tonbridge & Malling Borough Council,3/28/2022,0031018560/2,31018560, 554.40,British Parking Association,00380000,,Adjudication & Enforcement Ser,Parking On-Street,E10HD000044230,310042791
http://statistics.data.gov.uk/id/local-authority/29UP,Tonbridge & Malling Borough Council,3/28/2022,0031018565/1,31018565, 853.76,CDER Group,01773300,,Adjudication & Enforcement Ser,Parking Off-Street,E10HA000044230,
http://statistics.data.gov.uk/id/local-authority/29UP,Tonbridge & Malling Borough Council,3/28/2022,0031018566/1,31018566, 321.92,Shell U.K. Oil Products Limited,01673300,,Payment re Prev Yrs Cred Acc,Sundry Creditors SSLTS,J80TL000001101,
http://statistics.data.gov.uk/id/local-authority/29UP,Tonbridge & Malling Borough Council,3/28/2022,0031018567/1,31018567, 9.73,B&Q/Screwfix Direct(TradeUKAccount),00141300,,Purchases,Boro Highways & Emergency Oper,E01AA000040101,
http://statistics.data.gov.uk/id/local-authority/29UP,Tonbridge & Malling Borough Council,3/28/2022,0032009454/1,32009454, 1860.00,The Oyster Partnership,01196400,,Temporary Staff,Planning Sals&Overheads,D01AJDJ0111300,
http://statistics.data.gov.uk/id/local-authority/29UP,Tonbridge & Malling Borough Council,3/28/2022,0032009455/1,32009455, 3136.07,G2 Recruitment Solutions,01786000,,Temporary Staff,Planning Sals&Overheads,D01AJDJ0111300,
http://statistics.data.gov.uk/id/local-authority/29UP,Tonbridge & Malling Borough Council,3/28/2022,0032009456/1,32009456, 2625.00,G2 Recruitment Solutions,01786000,,Temporary Staff,Planning Sals&Overheads,D01AJDJ0111300,
http://statistics.data.gov.uk/id/local-authority/29UP,Tonbridge & Malling Borough Council,3/28/2022,0032009457/1,32009457, 1566.80,The Oyster Partnership,01196400,,Temporary Staff,Planning Sals&Overheads,D01AJDJ0111300,
http://statistics.data.gov.uk/id/local-authority/29UP,Tonbridge & Malling Borough Council,3/28/2022,0032009458/1,32009458, 224.91,KM Media Group Ltd,00053900,,Advertising General,Development Management,A01ABZ99944216,320003392
http://statistics.data.gov.uk/id/local-authority/29UP,Tonbridge & Malling Borough Council,3/28/2022,0041034121/1,41034121, 657441.00,"Dep for Business, Energy & Industial Str",01793500,,Government Grant - Covid 19,Local Revenue & NNDR Collect,D41QACV1990007,
http://statistics.data.gov.uk/id/local-authority/29UP,Tonbridge & Malling Borough Council,3/28/2022,0041034122/1,41034122, 485.00,Link Treasury Services Client Trust Acco,00845100,,Contract Services,Finance Sals&Overheads,D01AFDF0244005,410032152
http://statistics.data.gov.uk/id/local-authority/29UP,Tonbridge & Malling Borough Council,3/28/2022,0041034126/1,41034126, 1600.00,Tameside Metropolitan Borough,00770200,,Subscriptions,Finance Sals&Overheads,D01AFDF0647002,410032135
http://statistics.data.gov.uk/id/local-authority/29UP,Tonbridge & Malling Borough Council,3/28/2022,0041034127/1,41034127, 925.00,Morgan Hunt UK Ltd,01086900,,Temporary Staff,Finance Sals&Overheads,D01AFDF1111300,
http://statistics.data.gov.uk/id/local-authority/29UP,Tonbridge & Malling Borough Council,3/28/2022,0041034128/1,41034128, 993.75,Morgan Hunt UK Ltd,01086900,,Temporary Staff,Finance Sals&Overheads,D01AFDF1111300,
http://statistics.data.gov.uk/id/local-authority/29UP,Tonbridge & Malling Borough Council,3/28/2022,0041034129/1,41034129, 237.99,Maidstone Borough Council,01173700,,Bailiffs Commission,Local Revenue & NNDR Collect,D41QA000044075,
http://statistics.data.gov.uk/id/local-authority/29UP,Tonbridge & Malling Borough Council,3/28/2022,0041034130/1,41034130, 2464.59,Maidstone Borough Council,01173700,,Bailiffs Commission,Local Revenue & NNDR Collect,D41QA000044075,
http://statistics.data.gov.uk/id/local-authority/29UP,Tonbridge & Malling Borough Council,3/28/2022,0041034131/1,41034131, 2150.66,Rundle & Co Ltd,00087200,,Bailiffs Commission,Local Revenue & NNDR Collect,D41QA000044075,
http://statistics.data.gov.uk/id/local-authority/29UP,Tonbridge & Malling Borough Council,3/28/2022,0041034132/1,41034132, 9512.00,Grant Thornton UK LLP,01407400,,Audit Fees,Public Accountability,D29LR000044223,410032065
http://statistics.data.gov.uk/id/local-authority/29UP,Tonbridge & Malling Borough Council,3/29/2022,0041034136/1,41034136, 14.89,National Westminster Bank Plc,00894500,,Purchases,Tonbridge Castle Gatehouse,B40TG000040101,
http://statistics.data.gov.uk/id/local-authority/29UP,Tonbridge & Malling Borough Council,3/29/2022,0041034136/12,41034136, 39.42,National Westminster Bank Plc,00894500,,Purchases,Information Technology,D27KD000040101,
http://statistics.data.gov.uk/id/local-authority/29UP,Tonbridge & Malling Borough Council,3/29/2022,0041034136/13,41034136, 2.49,National Westminster Bank Plc,00894500,,Purchases,Information Technology,D27KD000040101,
http://statistics.data.gov.uk/id/local-authority/29UP,Tonbridge & Malling Borough Council,3/29/2022,0041034136/14,41034136, 18.86,National Westminster Bank Plc,00894500,,Software Hire & Support,Information Technology,D27KD000044059,
http://statistics.data.gov.uk/id/local-authority/29UP,Tonbridge & Malling Borough Council,3/29/2022,0041034136/15,41034136, 2.99,National Westminster Bank Plc,00894500,,Delivery Expenses,Information Technology,D27KD000044069,
